{"text_format":"1","workbook":"xlsx","n_sheets":15,"sheets":["Accueil","Calcul des taux (formules)","Aide ATFDT","Martelage","→ Réductions zones-bandes ←","→ Coupes sans investissement ←","Traitements admissibles","Étapes calcul majorations","Carte - Admissibilité ATFDT","Versions du fichier","Calculs grille","Menus","Majorations applicables","RXF","Log"],"not_rendered":{"charts":0,"images":8,"macros":1,"external_links":2,"defined_names":170,"comments":4,"pivot_tables":0},"unopened":[],"bounds":{"document_bytes":16777216,"sheet_cells":100000,"rows_first":2000,"rows_last":500,"rows_between":2000,"halvings":0,"cell_chars":16384,"cell_head_chars":4096},"cells_cut":0,"cells_raw":0,"read":"row_number_cap","date_system":"1900"}

{"sheet":"Accueil","index":0,"n_rows":22,"n_cols":4,"rows_kept":22,"cut":false,"hidden":false,"merged":[[14,3,14,13],[21,3,21,13],[17,3,18,13]]}
[]
[]
[]
[]
[]
[]
[]
[]
[]
[]
[]
[]
[]
[]
[null,null,null,"Annexe au rapport et au calcul de l'aide au transport des bois de feuillus durs de trituration provenant d'une coupe de régénération\n   2019-2020                     \nForêt publique"]
[]
[]
[null,null,null,"L'activation du contenu de ce fichier est requise afin d'assurer l'exécution des macro-commandes qui sont nécessaires\nà son bon fonctionnement."]
[]
[]
[]
[null,null,null,"https://support.office.com/fr-fr/article/activer-ou-d%C3%A9sactiver-les-macros-dans-les-fichiers-office-12b036fd-d140-4e74-b45e-16fed1a7e5c6"]

{"sheet":"Calcul des taux (formules)","index":1,"n_rows":1048523,"n_cols":22,"rows_kept":4500,"cut":true,"hidden":true,"merged":[[1,0,1,8],[179,6,179,8],[179,0,179,5],[181,0,182,8],[177,6,178,8],[177,0,178,5],[173,0,175,5],[173,6,175,8],[162,0,164,5],[162,6,164,8],[166,0,167,5],[148,0,148,8],[149,0,149,8],[160,0,160,8],[159,0,159,8],[170,0,170,8],[171,0,171,8],[169,0,169,8],[172,0,172,8],[176,0,176,5],[176,6,176,8],[151,0,153,5],[150,0,150,8],[157,0,157,5],[154,0,154,5],[154,6,154,8],[155,6,156,8],[157,6,157,8],[158,0,158,8],[161,0,161,8],[165,0,165,5],[165,6,165,8],[166,6,167,8],[168,0,168,5],[168,6,168,8],[1048494,0,1048494,5],[1048491,0,1048491,1],[1048491,2,1048491,3],[1048491,4,1048491,5],[1048492,0,1048492,1],[1048492,2,1048492,3],[1048492,4,1048492,5],[1048493,0,1048493,1],[1048493,2,1048493,3],[1048493,4,1048493,5],[1048489,0,1048489,1],[1048489,2,1048489,3],[1048489,4,1048489,5],[1048490,0,1048490,1],[1048490,2,1048490,3],[1048490,4,1048490,5],[52,0,52,5],[69,0,69,8],[62,0,62,8],[71,0,71,8],[57,4,57,5],[59,4,59,5],[60,4,60,5],[67,0,67,5],[53,0,53,8],[58,4,58,5],[57,0,57,1],[58,0,58,1],[57,2,57,3],[58,2,58,3],[64,0,64,3],[70,0,70,5],[63,0,63,8],[54,0,54,8],[55,0,55,1],[56,4,56,5],[65,0,65,8],[66,0,66,8],[56,0,56,1],[55,2,55,3],[33,0,33,8],[12,0,12,4],[6,0,6,5],[7,0,7,5],[8,0,8,5],[32,0,32,8],[28,0,28,8],[30,0,30,8],[27,0,27,8],[29,0,29,8],[31,0,31,8],[10,4,10,5],[10,0,10,3],[18,0,18,8],[19,0,19,8],[35,0,35,5],[51,0,51,5],[49,0,49,5],[36,0,36,5],[34,0,34,4],[50,0,50,5],[45,0,45,2],[45,3,45,5],[41,0,41,8],[48,0,48,8],[42,6,42,8],[45,6,45,8],[37,0,37,5],[42,0,42,5],[50,6,50,8],[51,6,51,8],[56,2,56,3],[74,0,74,5],[77,0,77,5],[76,0,76,5],[78,0,78,5],[81,0,81,5],[61,0,61,5],[59,0,59,1],[60,0,60,1],[59,2,59,3],[60,2,60,3],[72,0,72,8],[64,4,64,5],[83,0,83,5],[75,0,75,5],[79,0,79,5],[80,0,80,5],[82,0,82,5],[84,0,84,4],[101,0,101,4],[88,0,88,5],[89,0,89,5],[94,0,94,5],[93,0,93,5],[96,0,96,5],[138,0,138,5],[139,0,139,5],[142,0,142,8],[133,0,133,5],[135,0,135,5],[136,0,136,5],[100,0,100,5],[120,0,120,5],[127,0,127,8],[129,0,129,5],[134,0,134,5],[128,0,128,5],[106,0,106,5],[124,0,124,5],[111,0,111,5],[115,0,115,5],[113,0,113,5],[104,0,104,5],[112,0,112,5],[107,0,107,8],[123,0,123,8],[117,0,117,5],[119,0,119,5],[116,0,116,5],[146,0,146,8],[0,0,0,8],[11,0,11,8],[13,0,13,8],[14,0,14,8],[15,0,15,8],[17,0,17,8],[21,0,21,8],[23,0,23,8],[25,0,25,8],[5,0,5,5],[3,0,3,5],[4,0,4,8],[16,0,16,8],[20,0,20,8],[22,0,22,8],[24,0,24,8],[105,0,105,5],[85,0,85,5],[87,0,87,5],[137,0,137,5],[95,0,95,5],[97,0,97,5],[92,0,92,5],[2,0,2,6],[2,7,2,8],[143,0,143,5],[86,0,86,8],[144,0,144,5],[130,0,130,5],[140,0,140,4],[131,0,131,5],[141,0,141,5],[121,0,121,4],[98,0,98,5],[99,0,99,5],[108,0,108,5],[114,0,114,5],[109,0,109,5],[110,0,110,5],[125,0,125,5],[122,0,122,5],[102,0,102,5],[132,0,132,5],[73,0,73,5],[55,4,55,5],[68,0,68,8],[9,0,9,5],[151,6,153,8],[155,0,156,5],[147,0,147,8],[5,6,5,8],[6,6,6,8],[7,6,7,8],[8,6,8,8],[38,0,38,8],[39,0,39,8],[35,6,35,8],[36,6,36,8],[37,6,37,8],[40,0,40,8],[43,0,43,8],[44,0,44,8],[46,0,46,8],[47,0,47,8],[49,6,49,8],[118,0,118,5],[91,0,91,5],[145,0,145,5],[90,0,90,8],[103,0,103,8],[126,0,126,5]],"bounds":{"rows_first":2000,"rows_last":500,"rows_between":2000,"halvings":0},"read":"row_number_cap"}
[]
["Annexe au rapport et au calcul des taux d'investissement pour les coupes partielles\n2019-2020\nForêt publique"]
[" *** Veuillez saisir les informations dans les cellules blanches (Planification et BGAD) et jaunes (Ministère) ***",null,null,null,null,null,null,"Version 2 : 2020-01-07"]
["Contexte d'utilisation",null,null,null,null,null,null,null,"Inscrire une valeur"]
["Identification"]
["Unité d'aménagement (UA)"]
["Secteur d'intervention"]
["Unité de compilation"]
["Numéro de la prescription"]
["Traitement (Code DICA)",null,null,null,null,null,null,null,"Inscrire une valeur"]
["Traitement (Code RATF)",null,null,null,{"$f":"IFERROR(VLOOKUP($I$10,Menus!$A$213:$E$315,3,FALSE),Menus!$C$315)","v":"RATF_Utilisateur"}]
["Formule à utiliser pour le calcul"]
[{"$f":"IF($I$10<>\"\",\"Choix de la formule en fonction du code DICA  -  \"&$I$10,\"Choix de la formule en fonction du code DICA\")","v":"Choix de la formule en fonction du code DICA  -  Inscrire une valeur"},null,null,null,null,{"$f":"IFERROR(VLOOKUP($I$10,Menus!$A$366:$F$473,6,FALSE),Menus!$F$474)","v":"F_Utilisateur"},null,null,"Inscrire une valeur"]
["Constante et formule utilisées pour déterminer le taux d'investissement"]
["Constante 1"]
["C1 = - 0,0425P + (327,505 / P) + 4,8643"]
["Constante 2"]
["C2 = - 0,0530P + (327,505 / P) + 5,5333"]
["Constante 3"]
["C3 = - 0,0419P + (163,753 / P) + 5,7780"]
["Formule 1 - EC1"]
["Valeur = ( C1 + (4,944vr -0,682 - 7,615vp -0,391)) x P"]
["Formule 1 - EC2"]
["Valeur = ( C3 + (4,944vr -0,682 - 7,615vp -0,391)) x P"]
["Formule 2"]
["Valeur = ( C1 + (14,631vr -0,237 - 10,362vp -0,237) - 0,44) x P"]
["Formule 4"]
["Valeur = ( C2 + (11,18vr -0,526 - 6,603vp -0,563) - 0,44) x P"]
["Formule 6"]
["Valeur = ( C2 + (7,769vr -0,534 - 6,418vp -0,564) x P  "]
["Formule 7"]
["Valeur = ( C2 + (7,615vr -0,643 - 6,418vp -0,564) x P"]
["Intrants"]
["Intrants (Toutes)"]
["Sélection des tiges à récolter",null,null,null,null,{"$f":"IFERROR((VLOOKUP($I$13,Menus!$A$319:$C$325,2,FALSE)),\"\")","v":""}]
["Volume à prélever, m3/ha net (P)"]
["Volume moyen des tiges du peuplement avant la récolte, m3/tige brut (vp)"]
["Volume moyen des tiges à récolter, m3/tige brut (vr)"]
[{"$f":"\"Majorations et/ou réductions admissibles pour la formule retenue « \"&I13&\" »\"&\" - Voir l'onglet «Étapes calcul majoration»\"","v":"Majorations et/ou réductions admissibles pour la formule retenue « Inscrire une valeur » - Voir l'onglet «Étapes calcul majoration»"}]
[{"$f":"VLOOKUP('Calcul des taux (formules)'!$I$13,'Majorations applicables'!$A$2:$G$8,7,FALSE)","v":"Inscrire une valeur à la cellule I13"}]
["Réduction selon le ratio des trouées récoltées sous forme de CPRS (EMR1)"]
["Réduction EMR1 (F4-F6-F7)"]
["Ratio des trouées sous forme de CPRS (%)"]
["Réduction pour les bandes non traitées (BNT1) - Voir l'onglet «Réductions zones-bandes»"]
["Formule utilisée pour calculer la proportion que la coupe partielle représente par rapport au secteur (Pr)"]
[{"$f":"'Majorations applicables'!$A$25","v":" Pr (%)  = LP x 2 / (LP x 2 + SE + ZNT)"},null,null,"Selon les valeurs inscrites à G50-G51-G52",null,null,{"$f":"IFERROR(IF(EXACT($G$50,\"\"),\"\",IF(EXACT($G$50,0),0,IF($G$50>0,$G$50*2/($G$50*2+SUM($G$51:$G$52)),0))),0)","v":""}]
["Formule utilisée pour calculer la réduction (BNT1)"]
[{"$f":"'Majorations applicables'!$B$18","v":"BNT1 = (1,8 x Pr2) - (2,7 x Pr) + 1"}]
["Majoration BNT1 (F4-F6-F7)"]
["LP : Largeur de la coupe partielle, un côté seulement (m)"]
["SE : Largeur du sentier de débardage (m)"]
["ZNT : Largeur de la zone ou bande non traitée (m)"]
["Inscrire les renseignements dans la colonne associée au contexte d'utilisation",null,null,null,null,null,"Planification","BGAD","Ministère"]
["Majoration en fonction de la pente (PE2)"]
["Majoration en fonction de la pente (PE2) (Toutes)"]
["Classe de pente numérique",null,"Taux calculé ($/ha)",null,"Écart ($/ha)",null,"Superficie (ha)","Superficie (ha)","Superficie (ha)"]
["Pente A",null,{"$f":"IFERROR((VLOOKUP($I$13,$A$1048513:$W$1048523,8,FALSE)*VLOOKUP($A$57,'Majorations applicables'!$A$11:$B$15,2,FALSE)),0)","v":0},null,{"$f":"IFERROR(($C$57-(VLOOKUP($I$13,$A$1048513:$W$1048523,8,FALSE))),0)","v":0}]
["Pente B",null,{"$f":"IFERROR((VLOOKUP($I$13,$A$1048513:$W$1048523,8,FALSE)*VLOOKUP($A$58,'Majorations applicables'!$A$11:$B$15,2,FALSE)),0)","v":0},null,{"$f":"IFERROR(($C$58-(VLOOKUP($I$13,$A$1048513:$W$1048523,8,FALSE))),0)","v":0}]
["Pente C",null,{"$f":"IFERROR((VLOOKUP($I$13,$A$1048513:$W$1048523,8,FALSE)*VLOOKUP($A$59,'Majorations applicables'!$A$11:$B$15,2,FALSE)),0)","v":0},null,{"$f":"IFERROR(($C$59-(VLOOKUP($I$13,$A$1048513:$W$1048523,8,FALSE))),0)","v":0}]
["Pente D",null,{"$f":"IFERROR((VLOOKUP($I$13,$A$1048513:$W$1048523,8,FALSE)*VLOOKUP($A$60,'Majorations applicables'!$A$11:$B$15,2,FALSE)),0)","v":0},null,{"$f":"IFERROR(($C$60-(VLOOKUP($I$13,$A$1048513:$W$1048523,8,FALSE))),0)","v":0}]
["Pente E et plus",null,{"$f":"IFERROR((VLOOKUP($I$13,$A$1048513:$W$1048523,8,FALSE)*VLOOKUP($A$61,'Majorations applicables'!$A$11:$B$15,2,FALSE)),0)","v":0},null,{"$f":"IFERROR(($C$61-(VLOOKUP($I$13,$A$1048513:$W$1048523,8,FALSE))),0)","v":0}]
["Total",null,null,null,null,null,{"$f":"SUM($G$57:$G$61)","v":0},{"$f":"SUM($H$57:$H$61)","v":0},{"$f":"SUM($I$57:$I$61)","v":0}]
["Majorations pour les opérations manuelles (MAN)"]
["Majoration MAN (F1 - EC1)"]
["Type d'opérations ",null,null,null,{"$f":"IF(EXACT($I$13,\"\"),\"\",IF(EXACT($I$13,'Majorations applicables'!$A$2),Menus!$C$334,IF(EXACT($I$13,'Majorations applicables'!$A$3),Menus!$C$334,Menus!$C$336)))","v":"Majoration_MAN_DIFF_F1"}]
["Majoration pour le rubannage des sentiers (RUB1)"]
["Majoration RUB1 (F1-F2-F4-F7)"]
["Espacement entre les sentiers (m)"]
["Majoration pour l'hébergement (H1)"]
["Majoration H1 (F1-F2-F4-F6-F7)"]
[{"$f":"IFERROR(\"Hébergement (\"&TEXT(Menus!$B$329*100,\"#,#\")&\"%)\",\"Hébergement\")","v":"Hébergement (3,2%)"}]
["Totaux"]
["Totaux (F1 - EC1 et F1 - EC2)"]
["Taux de base exécution ($/m³)",null,null,null,null,null,{"$f":"IFERROR(IF(OR(EXACT($I$13,'Majorations applicables'!$A$2),EXACT($I$13,'Majorations applicables'!$A$3)),VLOOKUP($I$13,'Calcul des taux (formules)'!$A$1048514:$W$1048523,8,FALSE)/$G$36,0),0)","v":0},{"$f":"IFERROR(IF(OR(EXACT($I$4,Menus!$A$880),EXACT($I$4,Menus!$A$881)),IF(OR(EXACT($I$13,'Majorations applicables'!$A$2),EXACT($I$13,'Majorations applicables'!$A$3)),VLOOKUP($I$13,'Calcul des taux (formules)'!$A$1048514:$W$1048523,8,FALSE)/$G$36,0),0),0)","v":0},{"$f":"IFERROR(IF($I$4=Menus!$A$881,IF(OR(EXACT($I$13,'Majorations applicables'!A$2),EXACT($I$13,'Majorations applicables'!A$3)),VLOOKUP($I$13,'Calcul des taux (formules)'!$A$1048514:$W$1048523,8,FALSE)/$G$36,0),0),0)","v":0}]
["Majoration pour la pente PE2 ($/m³)",null,null,null,null,null,{"$f":"IFERROR(IF(OR(EXACT($I$13,'Majorations applicables'!$A$2),EXACT($I$13,'Majorations applicables'!$A$3)),VLOOKUP($I$13,$A$1048514:$W$1048523,11,FALSE)/$G$36,0),0)","v":0},{"$f":"IFERROR(IF(OR(EXACT($I$4,Menus!$A$880),EXACT($I$4,Menus!$A$881)),IF(OR(EXACT($I$13,'Majorations applicables'!$A$2),EXACT($I$13,'Majorations applicables'!$A$3)),VLOOKUP($I$13,$A$1048514:$W$1048523,12,FALSE)/$G$36,0),0),0)","v":0},{"$f":"IFERROR(IF(EXACT($I$4,Menus!$A$881),IF(OR(EXACT($I$13,'Majorations applicables'!$A$2),EXACT($I$13,'Majorations applicables'!$A$3)),VLOOKUP($I$13,$A$1048514:$W$1048523,13,FALSE)/$G$36,0),0),0)","v":0}]
["Majoration pour la pente PE2 ($/ha)",null,null,null,null,null,{"$f":"IFERROR(IF(OR(EXACT($I$13,'Majorations applicables'!$A$2),EXACT($I$13,'Majorations applicables'!$A$3)),VLOOKUP($I$13,$A$1048514:$W$1048523,11,FALSE),0),0)","v":0},{"$f":"IFERROR(IF(OR(EXACT($I$4,Menus!$A$880),EXACT($I$4,Menus!$A$881)),IF(OR(EXACT($I$13,'Majorations applicables'!$A$2),EXACT($I$13,'Majorations applicables'!$A$3)),VLOOKUP($I$13,$A$1048514:$W$1048523,12,FALSE),0),0),0)","v":0},{"$f":"IFERROR(IF(EXACT($I$4,Menus!$A$881),IF(OR(EXACT($I$13,'Majorations applicables'!$A$2),EXACT($I$13,'Majorations applicables'!$A$3)),VLOOKUP($I$13,$A$1048514:$W$1048523,13,FALSE),0),0),0)","v":0}]
["Taux MAN ($/m³)",null,null,null,null,null,{"$f":"IFERROR(VLOOKUP($I$13,'Calcul des taux (formules)'!$A$1048514:$W$1048523,14,FALSE)/$G$36,0)","v":0},{"$f":"IFERROR(IF(OR(EXACT($I$4,Menus!$A$880),EXACT($I$4,Menus!$A$881)),IF(OR(EXACT($I$13,'Majorations applicables'!$A$2),EXACT($I$13,'Majorations applicables'!$A$3)),VLOOKUP($I$13,$A$1048514:$W$1048523,15,FALSE)/$G$36,0),0),0)","v":0},{"$f":"IFERROR(IF(EXACT($I$4,Menus!$A$881),IF(OR(EXACT($I$13,'Majorations applicables'!$A$2),EXACT($I$13,'Majorations applicables'!$A$3)),VLOOKUP($I$13,$A$1048514:$W$1048523,16,FALSE)/$G$36,0),0),0)","v":0}]
["Taux RUB1 ($/m³)",null,null,null,null,null,{"$f":"IFERROR(IF(OR(EXACT($I$13,'Majorations applicables'!$A$2),EXACT($I$13,'Majorations applicables'!$A$3)),IF($G$68<>ROUND($G$68,0),\"Valider RUB1\",VLOOKUP($I$13,'Calcul des taux (formules)'!$A$1048514:$W$1048523,17,FALSE)/$G$36),0),0)","v":0},{"$f":"IFERROR(IF(OR(EXACT($I$4,Menus!$A$880),EXACT($I$4,Menus!$A$881)),IF(OR(EXACT($I$13,'Majorations applicables'!$A$2),EXACT($I$13,'Majorations applicables'!$A$3)),IF($H$68<>ROUND($H$68,0),\"Valider RUB1\",VLOOKUP($I$13,'Calcul des taux (formules)'!$A$1048514:$W$1048523,18,FALSE)/$G$36),0),0),0)","v":0},{"$f":"IFERROR(IF(EXACT($I$4,Menus!$A$881),IF(OR(EXACT($I$13,'Majorations applicables'!$A$2),EXACT($I$13,'Majorations applicables'!$A$3)),IF($I$68<>ROUND($I$68,0),\"Valider RUB1\",VLOOKUP($I$13,'Calcul des taux (formules)'!$A$1048514:$W$1048523,19,FALSE)/$G$36),0),0),0)","v":0}]
["Taux H1 ($/m³)",null,null,null,null,null,{"$f":"IFERROR(VLOOKUP($I$13,'Calcul des taux (formules)'!$A$1048514:$W$1048523,20,FALSE)/$G$36,0)","v":0},{"$f":"IFERROR(IF(OR(EXACT($I$4,Menus!$A$880),EXACT($I$4,Menus!$A$881)),VLOOKUP($I$13,'Calcul des taux (formules)'!$A$1048514:$W$1048523,21,FALSE)/$G$36,0),0)","v":0},{"$f":"IFERROR(IF(EXACT($I$4,Menus!$A$881),VLOOKUP($I$13,'Calcul des taux (formules)'!$A$1048514:$W$1048523,22,FALSE)/$G$36,0),0)","v":0}]
["Total des majorations à l'exécution ($/m³)",null,null,null,null,null,{"$f":"IFERROR(IF($G$78<>\"Valider RUB1\",SUM($G$77:$G$79,$G$75),0),0)","v":0},{"$f":"IFERROR(IF($H$78<>\"Valider RUB1\",SUM($H$77:$H$79,$H$75),0),0)","v":0},{"$f":"IFERROR(IF($I$78<>\"Valider RUB1\",SUM($I$77:$I$79,$I$75),0),0)","v":0}]
["Total des majorations à l'exécution ($/ha)",null,null,null,null,null,{"$f":"IFERROR($G$80*$G$36,0)","v":0},{"$f":"IFERROR($H$80*$G$36,0)","v":0},{"$f":"IFERROR($I$80*$G$36,0)","v":0}]
["Taux d'exécution ($/m³)",null,null,null,null,null,{"$f":"IFERROR(SUM(G$74,G$80),0)","v":0},{"$f":"IFERROR(SUM(H$74,H$80),0)","v":0},{"$f":"IFERROR(SUM(I$74,I$80),0)","v":0}]
["Taux d'exécution ($/m³)",null,null,null,null,null,{"$f":"IFERROR(G$82*G$36,0)","v":0},{"$f":"IFERROR(H$82*G$36,0)","v":0},{"$f":"IFERROR($I$82*$G$36,0)","v":0}]
["Tous les critères sont atteints1 (Oui ou Non)",null,null,null,null,null,"S/O"]
[{"$f":"IFERROR(\"Plancher d'investissement de \"&'Majorations applicables'!$B$45&\"$/ha (Oui, Non ou Sans Objet)\",\"Plancher d'investissement (Oui, Non ou Sans Objet)\")","v":"Plancher d'investissement de 40$/ha (Oui, Non ou Sans Objet)"},null,null,null,null,{"$f":"IFERROR((IF(AND($I$88<='Majorations applicables'!$B$45,$I$84<>\"\"),\"Question_2_Sous_plancher\",IF($I$88>='Majorations applicables'!$B$45,\"Question_2_Plancher_et_plus\",\"Question_2\"))),\"Question_2\")","v":"Question_2"},"S/O","S/O"]
["Pourcentage d'investissement",null,null,null,null,null,{"$f":"IFERROR('Majorations applicables'!$A$33,0.9)","v":0.9},{"$f":"IFERROR('Majorations applicables'!$A$33,0.9)","v":0.9},{"$f":"IFERROR('Majorations applicables'!$A$33,0.9)","v":0.9}]
["Résumé de l'investissement"]
["Taux global à payer ($/ha) - taux à inscrire à l'état d'avancement et au RATF",null,null,null,null,null,{"$f":"IFERROR(IF($G$62<>0,IF(ROUND(($G$83*$G$86),2)<'Majorations applicables'!$B$45,'Majorations applicables'!$B$45,ROUND(($G$83*$G$86),2)),0),0)","v":0},{"$f":"IFERROR(IF($H$62<>0,IF($H$84<>\"\",IF(OR(EXACT($I$4,Menus!$A$880),EXACT($I$4,Menus!$A$881)),IF($H$62<>0,IF(ROUND(($H$83*$H$86),2)<'Majorations applicables'!$B$45,'Majorations applicables'!$B$45,ROUND(($H$83*$H$86),2)),0),0),0),0),0)","v":0},{"$f":"IFERROR(IF($I$62<>0,IF(EXACT($I$4,Menus!$A$881),IF($I$62<>0,IF(AND(ROUND(($I$83*(IF($I$84<>\"\",$I$84,0))*$I$86),2)<'Majorations applicables'!$B$45,$I$85=\"Oui\"),'Majorations applicables'!$B$45,IF(ROUND(($I$83*(IF($I$84<>\"\",$I$84,0))*$I$86),2)<0,0,ROUND(($I$83*(IF($I$84<>\"\",$I$84,0))*$I$86),2))),0),0),0),0)","v":0}]
["Superficie (ha)",null,null,null,null,null,{"$f":"IFERROR(IF(OR(EXACT($I$13,'Majorations applicables'!$A$2),EXACT($I$13,'Majorations applicables'!$A$3)),ROUND($G$62,2),0),0)","v":0},{"$f":"IFERROR(IF(OR(EXACT($I$4,Menus!$A$880),EXACT($I$4,Menus!$A$881)),IF(OR(EXACT($I$13,'Majorations applicables'!$A$2),EXACT($I$13,'Majorations applicables'!$A$3)),ROUND($H$62,2),0),0),0)","v":0},{"$f":"IFERROR(IF(EXACT($I$4,Menus!$A$881),IF(OR(EXACT($I$13,'Majorations applicables'!$A$2),EXACT($I$13,'Majorations applicables'!$A$3)),ROUND($I$62,2),0),0),0)","v":0}]
["Montant total à payer ($)",null,null,null,null,null,{"$f":"IFERROR(ROUND($G$88*$G$89,2),0)","v":0},{"$f":"IFERROR(ROUND($H$88*$H$89,2),0)","v":0},{"$f":"IFERROR(ROUND($I$88*$I$89,2),0)","v":0}]
["Totaux (F2)"]
["Taux de base exécution  ($/m³)",null,null,null,null,null,{"$f":"IFERROR(IF(EXACT($I$13,'Majorations applicables'!$A$4),VLOOKUP($I$13,'Calcul des taux (formules)'!$A$1048514:$W$1048523,8,FALSE)/$G$36,0),0)","v":0},{"$f":"IFERROR(IF(OR(EXACT($I$4,Menus!$A$880),EXACT($I$4,Menus!$A$881)),IF(EXACT($I$13,'Majorations applicables'!$A$4),VLOOKUP($I$13,'Calcul des taux (formules)'!$A$1048514:$W$1048523,8,FALSE)/$G$36,0),0),0)","v":0},{"$f":"IFERROR(IF(EXACT($I$4,Menus!$A$881),IF(EXACT($I$13,'Majorations applicables'!A$4),VLOOKUP($I$13,'Calcul des taux (formules)'!$A$1048514:$W$1048523,8,FALSE)/$G$36,0),0),0)","v":0}]
["Majoration pour la pente PE2 ($/m³)",null,null,null,null,null,{"$f":"IFERROR(IF(EXACT($I$13,'Majorations applicables'!$A$4),VLOOKUP($I$13,$A$1048514:$W$1048523,11,FALSE)/$G$36,0),0)","v":0},{"$f":"IFERROR(IF(OR(EXACT($I$4,Menus!$A$880),EXACT($I$4,Menus!$A$881)),IF(EXACT($I$13,'Majorations applicables'!$A$4),VLOOKUP($I$13,$A$1048514:$W$1048523,12,FALSE)/$G$36,0),0),0)","v":0},{"$f":"IFERROR(IF(EXACT($I$4,Menus!$A$881),IF(EXACT($I$13,'Majorations applicables'!$A$4),VLOOKUP($I$13,$A$1048514:$W$1048523,13,FALSE)/$G$36,0),0),0)","v":0}]
["Majoration pour la pente PE2 ($/ha)",null,null,null,null,null,{"$f":"IFERROR(IF(EXACT($I$13,'Majorations applicables'!$A$4),VLOOKUP($I$13,$A$1048514:$W$1048523,11,FALSE),0),0)","v":0},{"$f":"IFERROR(IF(OR(EXACT($I$4,Menus!$A$880),EXACT($I$4,Menus!$A$881)),IF(EXACT($I$13,'Majorations applicables'!$A$4),VLOOKUP($I$13,$A$1048514:$W$1048523,12,FALSE),0),0),0)","v":0},{"$f":"IFERROR(IF(EXACT($I$4,Menus!$A$881),IF(EXACT($I$13,'Majorations applicables'!$A$4),VLOOKUP($I$13,$A$1048514:$W$1048523,13,FALSE),0),0),0)","v":0}]
["Taux RUB1 ($/m³)",null,null,null,null,null,{"$f":"IFERROR(IF(EXACT($I$13,'Majorations applicables'!$A$4),IF($G$68<>ROUND($G$68,0),\"Valider RUB1\",VLOOKUP($I$13,'Calcul des taux (formules)'!$A$1048514:$W$1048523,17,FALSE)/$G$36),0),0)","v":0},{"$f":"IFERROR(IF(OR(EXACT($I$4,Menus!$A$880),EXACT($I$4,Menus!$A$881)),IF(EXACT($I$13,'Majorations applicables'!$A$4),IF($H$68<>ROUND($H$68,0),\"Valider RUB1\",VLOOKUP($I$13,'Calcul des taux (formules)'!$A$1048514:$W$1048523,18,FALSE)/$G$36),0),0),0)","v":0},{"$f":"IFERROR(IF(EXACT($I$4,Menus!$A$881),IF(EXACT($I$13,'Majorations applicables'!$A$4),IF($I$68<>ROUND($I$68,0),\"Valider RUB1\",VLOOKUP($I$13,'Calcul des taux (formules)'!$A$1048514:$W$1048523,19,FALSE)/$G$36),0),0),0)","v":0}]
["Taux H1 ($/m³)",null,null,null,null,null,{"$f":"IFERROR(VLOOKUP($I$13,'Calcul des taux (formules)'!$A$1048514:$W$1048523,20,FALSE)/$G$36,0)","v":0},{"$f":"IFERROR(IF(OR(EXACT($I$4,Menus!$A$880),EXACT($I$4,Menus!$A$881)),VLOOKUP($I$13,'Calcul des taux (formules)'!$A$1048514:$W$1048523,21,FALSE)/$G$36,0),0)","v":0},{"$f":"IFERROR(IF(EXACT($I$4,Menus!$A$881),VLOOKUP($I$13,'Calcul des taux (formules)'!$A$1048514:$W$1048523,22,FALSE)/$G$36,0),0)","v":0}]
["Total des majorations à l'exécution ($/m³)",null,null,null,null,null,{"$f":"IFERROR(IF($G$95<>\"Valider RUB1\",SUM($G$95:$G$96,$G$93),0),0)","v":0},{"$f":"IFERROR(IF($H$95<>\"Valider RUB1\",SUM($H$95:$H$96,$H$93),0),0)","v":0},{"$f":"IFERROR(IF($I$95<>\"Valider RUB1\",SUM($I$95:$I$96,$I$93),0),0)","v":0}]
["Total des majorations à l'exécution ($/ha)",null,null,null,null,null,{"$f":"IFERROR($G$97*$G$36,0)","v":0},{"$f":"IFERROR($H$97*$G$36,0)","v":0},{"$f":"IFERROR($I$97*$G$36,0)","v":0}]
["Taux d'exécution ($/m³)",null,null,null,null,null,{"$f":"IFERROR(SUM($G$92,$G$97),0)","v":0},{"$f":"IFERROR(SUM($H$92,$H$97),0)","v":0},{"$f":"IFERROR(SUM($I$92,$I$97),0)","v":0}]
["Taux d'exécution ($/ha)",null,null,null,null,null,{"$f":"IFERROR($G$99*$G$36,0)","v":0},{"$f":"IFERROR($H$99*$G$36,0)","v":0},{"$f":"IFERROR($I$99*$G$36,0)","v":0}]
["Tous les critères sont atteints1 (Oui ou Non)",null,null,null,null,null,"S/O"]
[{"$f":"IFERROR(\"Plancher d'investissement de \"&'Majorations applicables'!$B$45&\"$/ha (Oui, Non ou Sans Objet)\",\"Plancher d'investissement (Oui, Non ou Sans Objet)\")","v":"Plancher d'investissement de 40$/ha (Oui, Non ou Sans Objet)"},null,null,null,null,{"$f":"IFERROR((IF(AND($I$105<='Majorations applicables'!$B$45,$I$101<>\"\"),\"Question_2_Sous_plancher\",IF($I$105>='Majorations applicables'!$B$45,\"Question_2_Plancher_et_plus\",\"Question_2\"))),\"Question_2\")","v":"Question_2"},"S/O","S/O"]
["Pourcentage d'investissement",null,null,null,null,null,{"$f":"IFERROR('Majorations applicables'!$A$33,0.9)","v":0.9},{"$f":"IFERROR('Majorations applicables'!$A$33,0.9)","v":0.9},{"$f":"IFERROR('Majorations applicables'!$A$33,0.9)","v":0.9}]
["Résumé de l'investissement"]
["Taux global à payer ($/ha) - taux à inscrire à l'état d'avancement et au RATF",null,null,null,null,null,{"$f":"IFERROR(IF($G$62<>0,IF(ROUND(($G$100*$G$103),2)<'Majorations applicables'!$B$45,'Majorations applicables'!$B$45,ROUND(($G$100*$G$103),2)),0),0)","v":0},{"$f":"IFERROR(IF($H$62<>0,IF($H$101<>\"\",IF(OR(EXACT($I$4,Menus!$A$880),EXACT($I$4,Menus!$A$881)),IF($H$62<>0,IF(ROUND(($H$100*$H$103),2)<'Majorations applicables'!$B$45,'Majorations applicables'!$B$45,ROUND(($H$100*$H$103),2)),0),0),0),0),0)","v":0},{"$f":"IFERROR(IF($I$62<>0,IF(EXACT($I$4,Menus!$A$881),IF($I$62<>0,IF(AND(ROUND(($I$100*(IF($I$101<>\"\",$I$101,0))*$I$103),2)<'Majorations applicables'!$B$45,$I$102=\"Oui\"),'Majorations applicables'!$B$45,IF(ROUND(($I$100*(IF($I$101<>\"\",$I$101,0))*$I$103),2)<0,0,ROUND(($I$100*(IF($I$101<>\"\",$I$101,0))*$I$103),2))),0),0),0),0)","v":0}]
["Superficie (ha)",null,null,null,null,null,{"$f":"IFERROR(IF(EXACT($I13,'Majorations applicables'!$A$4),ROUND($G$62,2),0),0)","v":0},{"$f":"IFERROR(IF(OR(EXACT($I$4,Menus!$A$880),EXACT($I$4,Menus!$A$881)),IF(EXACT($I$13,'Majorations applicables'!$A$4),ROUND($H$62,2),0),0),0)","v":0},{"$f":"IFERROR(IF(EXACT($I$4,Menus!$A$881),IF(EXACT($I$13,'Majorations applicables'!$A$4),ROUND($I$62,2),0),0),0)","v":0}]
["Montant total à payer ($)",null,null,null,null,null,{"$f":"IFERROR(ROUND($G$105*$G$106,2),0)","v":0},{"$f":"IFERROR(ROUND($H$105*$H$106,2),0)","v":0},{"$f":"IFERROR(ROUND($I$105*$I$106,2),0)","v":0}]
["Totaux (F4-F7)"]
["Taux de base exécution  ($/m³)",null,null,null,null,null,{"$f":"IFERROR(IF(OR(EXACT($I$13,'Majorations applicables'!$A$5),EXACT($I$13,'Majorations applicables'!$A$7)),VLOOKUP($I$13,'Calcul des taux (formules)'!$A$1048514:$W$1048523,8,FALSE)/$G$36,0),0)","v":0},{"$f":"IFERROR((IF(OR(EXACT($I$4,Menus!$A$880),EXACT($I$4,Menus!$A$881)),IF(OR(EXACT($I$13,'Majorations applicables'!$A$5),EXACT($I$13,'Majorations applicables'!$A$7)),VLOOKUP($I$13,'Calcul des taux (formules)'!$A$1048514:$W$1048523,8,FALSE)/$G$36,0),0)),0)","v":0},{"$f":"IFERROR(IF(EXACT($I$4,Menus!$A$881),IF(OR(EXACT($I$13,'Majorations applicables'!$A$5),EXACT($I$13,'Majorations applicables'!$A$7)),VLOOKUP($I$13,'Calcul des taux (formules)'!$A$1048514:$W$1048523,8,FALSE)/$G$36,0),0),0)","v":0}]
["Taux EMR1 ($/m³)",null,null,null,null,null,{"$f":"IFERROR(VLOOKUP($I$13,'Calcul des taux (formules)'!$A$1048514:$W$1048523,9,FALSE)/$G$36,0)","v":0},{"$f":"IFERROR(IF(OR(EXACT($I$4,Menus!$A$880),EXACT($I$4,Menus!$A$881)),VLOOKUP($I$13,'Calcul des taux (formules)'!$A$1048514:$W$1048523,9,FALSE)/$G$36,0),0)","v":0},{"$f":"IFERROR(IF(EXACT($I$4,Menus!$A$881),VLOOKUP($I$13,'Calcul des taux (formules)'!$A$1048514:$W$1048523,9,FALSE)/$G$36,0),0)","v":0}]
["Taux BNT1 (%)",null,null,null,null,null,{"$f":"IFERROR(IF(OR(EXACT($G$52,0),EXACT($G$52,\"\")),0,IF($G$50>0,-(('Majorations applicables'!$B$19*POWER($G$46,'Majorations applicables'!$B$20))-('Majorations applicables'!$B$21*$G$46)+1),IF(AND(OR(EXACT($G$50,0),(EXACT($G$50,\"\"))),OR($G$51>0,$G$52>0)),\"Valider BNT1\",0))),0)","v":0},{"$f":"IFERROR((IF(OR(EXACT($I$4,Menus!$A$880),EXACT($I$4,Menus!$A$881)),IF(OR(EXACT($G$52,0),EXACT($G$52,\"\")),0,IF($G$50>0,-(('Majorations applicables'!$B$19*POWER($G$46,'Majorations applicables'!$B$20))-('Majorations applicables'!$B$21*$G$46)+1),IF(AND(OR(EXACT($G$50,0),(EXACT($G$50,\"\"))),OR($G$51>0,$G$52>0)),\"Valider BNT1\",0))),0)),0)","v":0},{"$f":"IFERROR((IF(EXACT($I$4,Menus!$A$881),IF(OR(EXACT($G$52,0),EXACT($G$52,\"\")),0,IF($G$50>0,-(('Majorations applicables'!$B$19*POWER($G$46,'Majorations applicables'!$B$20))-('Majorations applicables'!$B$21*$G$46)+1),IF(AND(OR(EXACT($G$50,0),(EXACT($G$50,\"\"))),OR($G$51>0,$G$52>0)),\"Valider BNT1\",0))),0)),0)","v":0}]
["Taux BNT1 ($/m³)",null,null,null,null,null,{"$f":"IFERROR(VLOOKUP($I$13,'Calcul des taux (formules)'!$A$1048514:$W$1048523,10,FALSE)/$G$36,0)","v":0},{"$f":"IFERROR(IF(OR(EXACT($I$4,Menus!$A$880),EXACT($I$4,Menus!$A$881)),VLOOKUP($I$13,'Calcul des taux (formules)'!$A$1048514:$W$1048523,10,FALSE)/$G$36,0),0)","v":0},{"$f":"IFERROR(IF(EXACT($I$4,Menus!$A$881),VLOOKUP($I$13,'Calcul des taux (formules)'!$A$1048514:$W$1048523,10,FALSE)/$G$36,0),0)","v":0}]
["Majoration pour la pente PE2 ($/m³)",null,null,null,null,null,{"$f":"IFERROR(IF(OR(EXACT($I$13,'Majorations applicables'!$A$5),EXACT($I$13,'Majorations applicables'!$A$7)),VLOOKUP($I$13,'Calcul des taux (formules)'!$A$1048514:$W$1048523,11,FALSE)/$G$36,0),0)","v":0},{"$f":"IFERROR(IF(OR(EXACT($I$4,Menus!$A$880),EXACT($I$4,Menus!$A$881)),IF(OR(EXACT($I$13,'Majorations applicables'!$A$5),EXACT($I$13,'Majorations applicables'!$A$7)),VLOOKUP($I$13,'Calcul des taux (formules)'!$A$1048514:$W$1048523,12,FALSE)/$G$36,0),0),0)","v":0},{"$f":"IFERROR(IF(EXACT($I$4,Menus!$A$881),IF(OR(EXACT($I$13,'Majorations applicables'!$A$5),EXACT($I$13,'Majorations applicables'!$A$7)),VLOOKUP($I$13,'Calcul des taux (formules)'!$A$1048514:$W$1048523,13,FALSE)/$G$36,0),0),0)","v":0}]
["Majoration pour la pente PE2 ($/ha)",null,null,null,null,null,{"$f":"IFERROR(IF(OR(EXACT($I$13,'Majorations applicables'!$A$5),EXACT($I$13,'Majorations applicables'!$A$7)),VLOOKUP($I$13,'Calcul des taux (formules)'!$A$1048514:$W$1048523,11,FALSE),0),0)","v":0},{"$f":"IFERROR(IF(OR(EXACT($I$4,Menus!$A$880),EXACT($I$4,Menus!$A$881)),IF(OR(EXACT($I$13,'Majorations applicables'!$A$5),EXACT($I$13,'Majorations applicables'!$A$7)),VLOOKUP($I$13,'Calcul des taux (formules)'!$A$1048514:$W$1048523,12,FALSE),0),0),0)","v":0},{"$f":"IFERROR(IF(EXACT($I$4,Menus!$A$881),IF(OR(EXACT($I$13,'Majorations applicables'!$A$5),EXACT($I$13,'Majorations applicables'!$A$7)),VLOOKUP($I$13,'Calcul des taux (formules)'!$A$1048514:$W$1048523,13,FALSE),0),0),0)","v":0}]
["Taux RUB1 ($/m³)",null,null,null,null,null,{"$f":"IFERROR(IF(OR(EXACT($I$13,'Majorations applicables'!$A$5),EXACT($I$13,'Majorations applicables'!$A$7)),IF($G$68<>ROUND($G$68,0),\"Valider RUB1\",VLOOKUP($I$13,'Calcul des taux (formules)'!$A$1048514:$W$1048523,17,FALSE)/$G$36),0),0)","v":0},{"$f":"IFERROR(IF(OR(EXACT($I$4,Menus!$A$880),EXACT($I$4,Menus!$A$881)),IF(OR(EXACT($I$13,'Majorations applicables'!$A$5),EXACT($I$13,'Majorations applicables'!$A$7)),IF($H$68<>ROUND($H$68,0),\"Valider RUB1\",VLOOKUP($I$13,'Calcul des taux (formules)'!$A$1048514:$W$1048523,18,FALSE)/$G$36),0),0),0)","v":0},{"$f":"IFERROR(IF(EXACT($I$4,Menus!$A$881),IF(OR(EXACT($I$13,'Majorations applicables'!$A$5),EXACT($I$13,'Majorations applicables'!$A$7)),IF($I$68<>ROUND($I$68,0),\"Valider RUB1\",VLOOKUP($I$13,'Calcul des taux (formules)'!$A$1048514:$W$1048523,19,FALSE)/$G$36),0),0),0)","v":0}]
["Taux H1 ($/m³)",null,null,null,null,null,{"$f":"IFERROR(IF(OR(EXACT($I$13,'Majorations applicables'!$A$5),EXACT($I$13,'Majorations applicables'!$A$7)),VLOOKUP($I$13,'Calcul des taux (formules)'!$A$1048514:$W$1048523,20,FALSE)/$G$36,0),0)","v":0},{"$f":"IFERROR(IF(OR(EXACT($I$4,Menus!$A$880),EXACT($I$4,Menus!$A$881)),IF(OR(EXACT($I$13,'Majorations applicables'!$A$5),EXACT($I$13,'Majorations applicables'!$A$7)),VLOOKUP($I$13,'Calcul des taux (formules)'!$A$1048514:$W$1048523,21,FALSE)/$G$36,0),0),0)","v":0},{"$f":"IFERROR(IF(EXACT($I$4,Menus!$A$881),IF(OR(EXACT($I$13,'Majorations applicables'!$A$5),EXACT($I$13,'Majorations applicables'!$A$7)),VLOOKUP($I$13,'Calcul des taux (formules)'!$A$1048514:$W$1048523,22,FALSE)/$G$36,0),0),0)","v":0}]
["Total des majorations et réductions à l'exécution ($/m³)",null,null,null,null,null,{"$f":"IFERROR(IF(AND($G$111<>\"Valider BNT1\",$G$115<>\"Valider RUB1\"),SUM($G$110,$G$112,$G$115:$G$116,$G$113),0),0)","v":0},{"$f":"IFERROR(IF(AND($H$111<>\"Valider BNT1\",$H$115<>\"Valider RUB1\"),SUM($H$110,$H$112,$H$115:$H$116,$H$113),0),0)","v":0},{"$f":"IFERROR(IF(AND($I$111<>\"Valider BNT1\",$I$115<>\"Valider RUB1\"),SUM($I$110,$I$112,$I$115:$I$116,$I$113),0),0)","v":0}]
["Total des majorations et réductions à l'exécution ($/ha)",null,null,null,null,null,{"$f":"IFERROR($G$117*$G$36,0)","v":0},{"$f":"IFERROR($H$117*$G$36,0)","v":0},{"$f":"IFERROR($I$117*$G$36,0)","v":0}]
["Taux d'exécution ($/m³)",null,null,null,null,null,{"$f":"IFERROR(IF($G$46=0,0,SUM($G$109,$G$117)),0)","v":0},{"$f":"IFERROR(IF($G$46=0,0,SUM($H$109,$H$117)),0)","v":0},{"$f":"IFERROR(IF($G$46=0,0,SUM($I$109,$I$117)),0)","v":0}]
["Taux d'exécution ($/ha)",null,null,null,null,null,{"$f":"IFERROR(IF($G$46=0,0,$G$119*$G$36),0)","v":0},{"$f":"IFERROR(IF($G$46=0,0,$H$119*$G$36),0)","v":0},{"$f":"IFERROR(IF($G$46=0,0,$I$119*$G$36),0)","v":0}]
["Tous les critères sont atteints1 (Oui ou Non)",null,null,null,null,null,"S/O"]
[{"$f":"IFERROR(\"Plancher d'investissement de \"&'Majorations applicables'!$B$45&\"$/ha (Oui, Non ou Sans Objet)\",\"Plancher d'investissement (Oui, Non ou Sans Objet)\")","v":"Plancher d'investissement de 40$/ha (Oui, Non ou Sans Objet)"},null,null,null,null,{"$f":"IFERROR((IF(AND($I$125<='Majorations applicables'!$B$45,$I$121<>\"\"),\"Question_2_Sous_plancher\",IF($I$125>='Majorations applicables'!$B$45,\"Question_2_Plancher_et_plus\",\"Question_2\"))),\"Question_2\")","v":"Question_2"},"S/O","S/O"]
["Pourcentage d'investissement",null,null,null,null,null,{"$f":"IFERROR('Majorations applicables'!$A$33,0.9)","v":0.9},{"$f":"IFERROR('Majorations applicables'!$A$33,0.9)","v":0.9},{"$f":"IFERROR('Majorations applicables'!$A$33,0.9)","v":0.9}]
["Résumé de l'investissement"]
["Taux global à payer ($/ha) - taux à inscrire à l'état d'avancement et au RATF",null,null,null,null,null,{"$f":"IFERROR((IF($G$62<>0,IF(ROUND(($G$120*$G$123),2)<'Majorations applicables'!$B$45,'Majorations applicables'!$B$45,ROUND(($G$120*$G$123),2)),0)),0)","v":0},{"$f":"IFERROR((IF($H$62<>0,IF($H$121<>\"\",IF(OR(EXACT($I$4,Menus!$A$880),EXACT($I$4,Menus!$A$881)),IF($H$62<>0,IF(ROUND(($H$120*$H$123),2)<'Majorations applicables'!$B$45,'Majorations applicables'!$B$45,ROUND(($H$120*$H$123),2)),0),0),0),0)),0)","v":0},{"$f":"IFERROR(IF($I$62<>0,IF(EXACT($I$4,Menus!$A$881),IF($I$62<>0,IF(AND(ROUND(($I$120*(IF($I$121<>\"\",$I$121,0))*$I$123),2)<'Majorations applicables'!$B$45,$I$122=\"Oui\"),'Majorations applicables'!$B$45,IF(ROUND(($I$120*(IF($I$121<>\"\",$I$121,0))*$I$123),2)<0,0,ROUND(($I$120*(IF($I$121<>\"\",$I$121,0))*$I$123),2))),0),0),0),0)","v":0}]
["Superficie (ha)",null,null,null,null,null,{"$f":"IFERROR(IF(OR(EXACT(I$13,'Majorations applicables'!$A$5),EXACT(I$13,'Majorations applicables'!$A$7)),ROUND($G$62,2),0),0)","v":0},{"$f":"IFERROR(IF(OR(EXACT($I$4,Menus!$A$880),EXACT($I$4,Menus!$A$881)),IF(OR(EXACT($I13,'Majorations applicables'!$A$5),EXACT($I13,'Majorations applicables'!$A$7)),ROUND($H$62,2),0),0),0)","v":0},{"$f":"IFERROR(IF(EXACT($I$4,Menus!$A$881),IF(OR(EXACT($I13,'Majorations applicables'!$A$5),EXACT($I13,'Majorations applicables'!$A$7)),ROUND($I$62,2),0),0),0)","v":0}]
["Montant total à payer ($)",null,null,null,null,null,{"$f":"IFERROR(ROUND(($G$125*$G$126),2),0)","v":0},{"$f":"IFERROR(ROUND($H$125*$H$126,2),0)","v":0},{"$f":"IFERROR(ROUND(($I$125*$I$126),2),0)","v":0}]
["Totaux (F6)"]
["Taux de base exécution  ($/m³)",null,null,null,null,null,{"$f":"IFERROR(IF(EXACT($I$13,'Majorations applicables'!$A$6),VLOOKUP($I$13,'Calcul des taux (formules)'!$A$1048514:$W$1048523,8,FALSE)/$G$36,0),0)","v":0},{"$f":"IFERROR(IF(OR(EXACT($I$4,Menus!$A$880),EXACT($I$4,Menus!$A$881)),IF(EXACT($I$13,'Majorations applicables'!$A$6),VLOOKUP($I$13,'Calcul des taux (formules)'!$A$1048514:$W$1048523,8,FALSE)/$G$36,0),0),0)","v":0},{"$f":"IFERROR(IF(EXACT($I$4,Menus!$A$881),IF(EXACT($I$13,'Majorations applicables'!A$6),VLOOKUP($I$13,'Calcul des taux (formules)'!$A$1048514:$W$1048523,8,FALSE)/$G$36,0),0),0)","v":0}]
["Taux EMR1 ($/m³)",null,null,null,null,null,{"$f":"IFERROR(VLOOKUP($I$13,'Calcul des taux (formules)'!$A$1048514:$W$1048523,9,FALSE)/$G$36,0)","v":0},{"$f":"IFERROR(IF(OR(EXACT($I$4,Menus!$A$880),EXACT($I$4,Menus!$A$881)),VLOOKUP($I$13,'Calcul des taux (formules)'!$A$1048514:$W$1048523,9,FALSE)/$G$36,0),0)","v":0},{"$f":"IFERROR(IF(EXACT($I$4,Menus!$A$881),VLOOKUP($I$13,'Calcul des taux (formules)'!$A$1048514:$W$1048523,9,FALSE)/$G$36,0),0)","v":0}]
["Taux BNT1 (%)",null,null,null,null,null,{"$f":"IFERROR(IF(OR(EXACT($G$52,0),EXACT($G$52,\"\")),0,IF($G$50>0,-(('Majorations applicables'!$B$19*POWER($G$46,'Majorations applicables'!$B$20))-('Majorations applicables'!$B$21*$G$46)+1),IF(AND(OR(EXACT($G$50,0),(EXACT($G$50,\"\"))),OR($G$51>0,$G$52>0)),\"Valider BNT1\",0))),0)","v":0},{"$f":"IFERROR((IF(OR(EXACT($I$4,Menus!$A$880),EXACT($I$4,Menus!$A$881)),IF(OR(EXACT($G$52,0),EXACT($G$52,\"\")),0,IF($G$50>0,-(('Majorations applicables'!$B$19*POWER($G$46,'Majorations applicables'!$B$20))-('Majorations applicables'!$B$21*$G$46)+1),IF(AND(OR(EXACT($G$50,0),(EXACT($G$50,\"\"))),OR($G$51>0,$G$52>0)),\"Valider BNT1\",0))),0)),0)","v":0},{"$f":"IFERROR((IF(EXACT($I$4,Menus!$A$881),IF(OR(EXACT($G$52,0),EXACT($G$52,\"\")),0,IF($G$50>0,-(('Majorations applicables'!$B$19*POWER($G$46,'Majorations applicables'!$B$20))-('Majorations applicables'!$B$21*$G$46)+1),IF(AND(OR(EXACT($G$50,0),(EXACT($G$50,\"\"))),OR($G$51>0,$G$52>0)),\"Valider BNT1\",0))),0)),0)","v":0}]
["Taux BNT1 ($/m³)",null,null,null,null,null,{"$f":"IFERROR(VLOOKUP($I$13,'Calcul des taux (formules)'!$A$1048514:$W$1048523,10,FALSE)/$G$36,0)","v":0},{"$f":"IFERROR(IF(OR(EXACT($I$4,Menus!$A$880),EXACT($I$4,Menus!$A$881)),VLOOKUP($I$13,'Calcul des taux (formules)'!$A$1048514:$W$1048523,10,FALSE)/$G$36,0),0)","v":0},{"$f":"IFERROR(IF(EXACT($I$4,Menus!$A$881),VLOOKUP($I$13,'Calcul des taux (formules)'!$A$1048514:$W$1048523,10,FALSE)/$G$36,0),0)","v":0}]
["Majoration pour la pente PE2 ($/m³)",null,null,null,null,null,{"$f":"IFERROR(IF(EXACT($I$13,'Majorations applicables'!$A$6),VLOOKUP($I$13,$A$1048514:$W$1048523,11,FALSE)/$G$36,0),0)","v":0},{"$f":"IFERROR(IF(OR(EXACT($I$4,Menus!$A$880),EXACT($I$4,Menus!$A$881)),IF(EXACT($I$13,'Majorations applicables'!$A$6),VLOOKUP($I$13,$A$1048514:$W$1048523,12,FALSE)/$G$36,0),0),0)","v":0},{"$f":"IFERROR(IF(EXACT($I$4,Menus!$A$881),IF(EXACT($I$13,'Majorations applicables'!$A$6),VLOOKUP($I$13,$A$1048514:$W$1048523,13,FALSE)/$G$36,0),0),0)","v":0}]
["Majoration pour la pente PE2 ($/ha)",null,null,null,null,null,{"$f":"IFERROR(IF(EXACT($I$13,'Majorations applicables'!$A$6),VLOOKUP($I$13,$A$1048514:$W$1048523,11,FALSE),0),0)","v":0},{"$f":"IFERROR(IF(OR(EXACT($I$4,Menus!$A$880),EXACT($I$4,Menus!$A$881)),IF(EXACT($I$13,'Majorations applicables'!$A$6),VLOOKUP($I$13,$A$1048514:$W$1048523,12,FALSE),0),0),0)","v":0},{"$f":"IFERROR(IF($I$4=Menus!$A$881,IF($I$13='Majorations applicables'!$A$6,VLOOKUP($I$13,$A$1048514:$W$1048523,13,FALSE),0),0),0)","v":0}]
["Taux H1 ($/m³)",null,null,null,null,null,{"$f":"IFERROR(VLOOKUP($I$13,'Calcul des taux (formules)'!$A$1048514:$W$1048523,20,FALSE)/$G$36,0)","v":0},{"$f":"IFERROR(IF(OR($I$4=Menus!$A$880,$I$4=Menus!$A$881),VLOOKUP($I$13,'Calcul des taux (formules)'!$A$1048514:$W$1048523,21,FALSE)/$G$36,0),0)","v":0},{"$f":"IFERROR(IF(EXACT($I$4,Menus!$A$881),VLOOKUP($I$13,'Calcul des taux (formules)'!$A$1048514:$W$1048523,22,FALSE)/$G$36,0),0)","v":0}]
["Total des majorations et réductions à l'exécution ($/m³)",null,null,null,null,null,{"$f":"IFERROR(IF($G$131<>\"Valider BNT1\",SUM($G$130,$G$132:$G$133,$G$135),0),0)","v":0},{"$f":"IFERROR(IF($H$131<>\"Valider BNT1\",SUM($H$130,$H$132,H133,$H$135),0),0)","v":0},{"$f":"IFERROR(IF($I$131<>\"Valider BNT1\",SUM($I$130,$I$132,I133,$I$135),0),0)","v":0}]
["Total des majorations et réductions à l'exécution ($/ha)",null,null,null,null,null,{"$f":"IFERROR($G$136*$G$36,0)","v":0},{"$f":"IFERROR($H$136*$G$36,0)","v":0},{"$f":"IFERROR($I$136*$G$36,0)","v":0}]
["Taux d'exécution ($/m³)",null,null,null,null,null,{"$f":"IFERROR(IF(EXACT($G$46,0),0,SUM($G$129,$G$136)),0)","v":0},{"$f":"IFERROR(IF(EXACT($G$46,0),0,SUM($H$129,$H$136)),0)","v":0},{"$f":"IFERROR(IF(EXACT($G$46,0),0,SUM($I$129,$I$136)),0)","v":0}]
["Taux d'exécution ($/ha)",null,null,null,null,null,{"$f":"IFERROR(IF(EXACT($G$46,0),0,$G$138*$G$36),0)","v":0},{"$f":"IFERROR(IF(EXACT($G$46,0),0,$H$138*$G$36),0)","v":0},{"$f":"IFERROR(IF(EXACT($G$46,0),0,$I$138*$G$36),0)","v":0}]
["Tous les critères sont atteints1 (Oui ou Non)",null,null,null,null,null,"S/O"]
[{"$f":"IFERROR(\"Plancher d'investissement de \"&'Majorations applicables'!$B$45&\"$/ha (Oui, Non ou Sans Objet)\",\"Plancher d'investissement (Oui, Non ou Sans Objet)\")","v":"Plancher d'investissement de 40$/ha (Oui, Non ou Sans Objet)"},null,null,null,null,{"$f":"IFERROR((IF(AND($I$144<='Majorations applicables'!$B$45,$I$140<>\"\"),\"Question_2_Sous_plancher\",IF($I$144>='Majorations applicables'!$B$45,\"Question_2_Plancher_et_plus\",\"Question_2\"))),\"Question_2\")","v":"Question_2"},"S/O","S/O"]
["Pourcentage d'investissement",null,null,null,null,null,{"$f":"IFERROR('Majorations applicables'!$A$33,0.9)","v":0.9},{"$f":"IFERROR('Majorations applicables'!$A$33,0.9)","v":0.9},{"$f":"IFERROR('Majorations applicables'!$A$33,0.9)","v":0.9}]
["Résumé de l'investissement"]
["Taux global à payer ($/ha) - taux à inscrire à l'état d'avancement et au RATF",null,null,null,null,null,{"$f":"IFERROR(IF($G$62<>0,IF(ROUND(($G$139*$G$142),2)<'Majorations applicables'!$B$45,'Majorations applicables'!$B$45,ROUND(($G$139*$G$142),2)),0),0)","v":0},{"$f":"IFERROR(IF($H$62<>0,IF($H$140<>\"\",IF(OR(EXACT($I$4,Menus!$A$880),EXACT($I$4,Menus!$A$881)),IF($H$62<>0,IF(ROUND(($H$139*$H$142),2)<'Majorations applicables'!$B$45,'Majorations applicables'!$B$45,ROUND(($H$139*$H$142),2)),0),0),0),0),0)","v":0},{"$f":"IFERROR(IF($I$62<>0,IF(EXACT($I$4,Menus!$A$881),IF($I$62<>0,IF(AND(ROUND(($I$139*(IF($I$140<>\"\",$I$140,0))*$I$142),2)<'Majorations applicables'!$B$45,$I$141=\"Oui\"),'Majorations applicables'!$B$45,IF(ROUND(($I$139*(IF($I$140<>\"\",$I$140,0))*$I$142),2)<0,0,ROUND(($I$139*(IF($I$140<>\"\",$I$140,0))*$I$142),2))),0),0),0),0)","v":0}]
["Superficie (ha)",null,null,null,null,null,{"$f":"IFERROR(IF(EXACT($I$13,'Majorations applicables'!$A$6),ROUND($G$62,2),0),0)","v":0},{"$f":"IFERROR(IF(OR(EXACT($I$4,Menus!$A$880),EXACT($I$4,Menus!$A$881)),IF(EXACT($I$13,'Majorations applicables'!$A$6),ROUND($H$62,2),0),0),0)","v":0},{"$f":"IFERROR(IF(EXACT($I$4,Menus!$A$881),IF(EXACT($I$13,'Majorations applicables'!$A$6),ROUND($I$62,2),0),0),0)","v":0}]
["Montant total à payer ($)",null,null,null,null,null,{"$f":"IFERROR(ROUND($G$144*$G$145,2),0)","v":0},{"$f":"IFERROR(ROUND($H$144*$H$145,2),0)","v":0},{"$f":"IFERROR(ROUND($I$144*$I$145,2),0)","v":0}]
[]
["Section réservée à l'usage de la Planification"]
["Remarques"]
[]
["J'atteste que les renseignements fournis dans ce document afin de calculer les taux d'investissement sont complets et conformes à la vérité, au meilleur de mes connaissances."]
[]
[]
[]
["Nom et prénom de l'ingénieur forestier",null,null,null,null,null,"No de permis"]
[null,null,null,null,null,null,{"$f":"TODAY()","v":"2020-01-07"}]
[]
["Signature de l'ingénieur forestier",null,null,null,null,null,"Date (AAAA-MM-JJ)"]
["Section réservée à l'usage du BGAD"]
["Remarques"]
[]
["J'atteste que les renseignements fournis dans ce document afin de calculer les taux d'investissement sont complets et conformes à la vérité, au meilleur de mes connaissances."]
[]
[]
[]
["Nom et prénom de l'ingénieur forestier",null,null,null,null,null,"No de permis"]
[null,null,null,null,null,null,{"$f":"TODAY()","v":"2020-01-07"}]
[]
["Signature de l'ingénieur forestier",null,null,null,null,null,"Date (AAAA-MM-JJ)"]
["Section réservée à l'usage du Ministère"]
["Remarques"]
[]
["J'atteste que les renseignements fournis dans ce document afin de calculer les taux d'investissement sont complets et conformes à la vérité, au meilleur de mes connaissances."]
[]
[]
[]
["Nom et prénom de l'ingénieur forestier",null,null,null,null,null,"No de permis"]
[null,null,null,null,null,null,{"$f":"TODAY()","v":"2020-01-07"}]
[]
["Signature de l'ingénieur forestier",null,null,null,null,null,"Date (AAAA-MM-JJ)"]
[]
["(1) Si un ou plusieurs des critères établis à la prescription ne sont pas atteints, veuillez inscrire \"Non\". À la suite du dépôt de votre rapport, le responsable du dossier à l'Unité de gestion communiquera avec vous dans les meilleurs délais pour vous indiquer, le cas échéant, le montant de l'aide qui pourrait vous être accordé pour l'exécution des travaux. "]
[]
[]
[]
[]
[]
[]
[]
[]
[]
[]
[]
[]
[]
[]
[]
[]
[]
[]
[]
[]
[]
[]
[]
[]
[]
[]
[]
[]
[]
[]
[]
[]
[]
[]
[]
[]
[]
[]
[]
[]
[]
[]
[]
[]
[]
[]
[]
[]
[]
[]
[]
[]
[]
[]
[]
[]
[]
[]
[]
[]
[]
[]
[]
[]
[]
[]
[]
[]
[]
[]
[]
[]
[]
[]
[]
[]
[]
[]
[]
[]
[]
[]
[]
[]
[]
[]
[]
[]
[]
[]
[]
[]
[]
[]
[]
[]
[]
[]
[]
[]
[]
[]
[]
[]
[]
[]
[]
[]
[]
[]
[]
[]
[]
[]
[]
[]
[]
[]
[]
[]
[]
[]
[]
[]
[]
[]
[]
[]
[]
[]
[]
[]
[]
[]
[]
[]
[]
[]
[]
[]
[]
[]
[]
[]
[]
[]
[]
[]
[]
[]
[]
[]
[]
[]
[]
[]
[]
[]
[]
[]
[]
[]
[]
[]
[]
[]
[]
[]
[]
[]
[]
[]
[]
[]
[]
[]
[]
[]
[]
[]
[]
[]
[]
[]
[]
[]
[]
[]
[]
[]
[]
[]
[]
[]
[]
[]
[]
[]
[]
[]
[]
[]
[]
[]
[]
[]
[]
[]
[]
[]
[]
[]
[]
[]
[]
[]
[]
[]
[]
[]
[]
[]
[]
[]
[]
[]
[]
[]
[]
[]
[]
[]
[]
[]
[]
[]
[]
[]
[]
[]
[]
[]
[]
[]
[]
[]
[]
[]
[]
[]
[]
[]
[]
[]
[]
[]
[]
[]
[]
[]
[]
[]
[]
[]
[]
[]
[]
[]
[]
[]
[]
[]
[]
[]
[]
[]
[]
[]
[]
[]
[]
[]
[]
[]
[]
[]
[]
[]
[]
[]
[]
[]
[]
[]
[]
[]
[]
[]
[]
[]
[]
[]
[]
[]
[]
[]
[]
[]
[]
[]
[]
[]
[]
[]
[]
[]
[]
[]
[]
[]
[]
[]
[]
[]
[]
[]
[]
[]
[]
[]
[]
[]
[]
[]
[]
[]
[]
[]
[]
[]
[]
[]
[]
[]
[]
[]
[]
[]
[]
[]
[]
[]
[]
[]
[]
[]
[]
[]
[]
[]
[]
[]
[]
[]
[]
[]
[]
[]
[]
[]
[]
[]
[]
[]
[]
[]
[]
[]
[]
[]
[]
[]
[]
[]
[]
[]
[]
[]
[]
[]
[]
[]
[]
[]
[]
[]
[]
[]
[]
[]
[]
[]
[]
[]
[]
[]
[]
[]
[]
[]
[]
[]
[]
[]
[]
[]
[]
[]
[]
[]
[]
[]
[]
[]
[]
[]
[]
[]
[]
[]
[]
[]
[]
[]
[]
[]
[]
[]
[]
[]
[]
[]
[]
[]
[]
[]
[]
[]
[]
[]
[]
[]
[]
[]
[]
[]
[]
[]
[]
[]
[]
[]
[]
[]
[]
[]
[]
[]
[]
[]
[]
[]
[]
[]
[]
[]
[]
[]
[]
[]
[]
[]
[]
[]
[]
[]
[]
[]
[]
[]
[]
[]
[]
[]
[]
[]
[]
[]
[]
[]
[]
[]
[]
[]
[]
[]
[]
[]
[]
[]
[]
[]
[]
[]
[]
[]
[]
[]
[]
[]
[]
[]
[]
[]
[]
[]
[]
[]
[]
[]
[]
[]
[]
[]
[]
[]
[]
[]
[]
[]
[]
[]
[]
[]
[]
[]
[]
[]
[]
[]
[]
[]
[]
[]
[]
[]
[]
[]
[]
[]
[]
[]
[]
[]
[]
[]
[]
[]
[]
[]
[]
[]
[]
[]
[]
[]
[]
[]
[]
[]
[]
[]
[]
[]
[]
[]
[]
[]
[]
[]
[]
[]
[]
[]
[]
[]
[]
[]
[]
[]
[]
[]
[]
[]
[]
[]
[]
[]
[]
[]
[]
[]
[]
[]
[]
[]
[]
[]
[]
[]
[]
[]
[]
[]
[]
[]
[]
[]
[]
[]
[]
[]
[]
[]
[]
[]
[]
[]
[]
[]
[]
[]
[]
[]
[]
[]
[]
[]
[]
[]
[]
[]
[]
[]
[]
[]
[]
[]
[]
[]
[]
[]
[]
[]
[]
[]
[]
[]
[]
[]
[]
[]
[]
[]
[]
[]
[]
[]
[]
[]
[]
[]
[]
[]
[]
[]
[]
[]
[]
[]
[]
[]
[]
[]
[]
[]
[]
[]
[]
[]
[]
[]
[]
[]
[]
[]
[]
[]
[]
[]
[]
[]
[]
[]
[]
[]
[]
[]
[]
[]
[]
[]
[]
[]
[]
[]
[]
[]
[]
[]
[]
[]
[]
[]
[]
[]
[]
[]
[]
[]
[]
[]
[]
[]
[]
[]
[]
[]
[]
[]
[]
[]
[]
[]
[]
[]
[]
[]
[]
[]
[]
[]
[]
[]
[]
[]
[]
[]
[]
[]
[]
[]
[]
[]
[]
[]
[]
[]
[]
[]
[]
[]
[]
[]
[]
[]
[]
[]
[]
[]
[]
[]
[]
[]
[]
[]
[]
[]
[]
[]
[]
[]
[]
[]
[]
[]
[]
[]
[]
[]
[]
[]
[]
[]
[]
[]
[]
[]
[]
[]
[]
[]
[]
[]
[]
[]
[]
[]
[]
[]
[]
[]
[]
[]
[]
[]
[]
[]
[]
[]
[]
[]
[]
[]
[]
[]
[]
[]
[]
[]
[]
[]
[]
[]
[]
[]
[]
[]
[]
[]
[]
[]
[]
[]
[]
[]
[]
[]
[]
[]
[]
[]
[]
[]
[]
[]
[]
[]
[]
[]
[]
[]
[]
[]
[]
[]
[]
[]
[]
[]
[]
[]
[]
[]
[]
[]
[]
[]
[]
[]
[]
[]
[]
[]
[]
[]
[]
[]
[]
[]
[]
[]
[]
[]
[]
[]
[]
[]
[]
[]
[]
[]
[]
[]
[]
[]
[]
[]
[]
[]
[]
[]
[]
[]
[]
[]
[]
[]
[]
[]
[]
[]
[]
[]
[]
[]
[]
[]
[]
[]
[]
[]
[]
[]
[]
[]
[]
[]
[]
[]
[]
[]
[]
[]
[]
[]
[]
[]
[]
[]
[]
[]
[]
[]
[]
[]
[]
[]
[]
[]
[]
[]
[]
[]
[]
[]
[]
[]
[]
[]
[]
[]
[]
[]
[]
[]
[]
[]
[]
[]
[]
[]
[]
[]
[]
[]
[]
[]
[]
[]
[]
[]
[]
[]
[]
[]
[]
[]
[]
[]
[]
[]
[]
[]
[]
[]
[]
[]
[]
[]
[]
[]
[]
[]
[]
[]
[]
[]
[]
[]
[]
[]
[]
[]
[]
[]
[]
[]
[]
[]
[]
[]
[]
[]
[]
[]
[]
[]
[]
[]
[]
[]
[]
[]
[]
[]
[]
[]
[]
[]
[]
[]
[]
[]
[]
[]
[]
[]
[]
[]
[]
[]
[]
[]
[]
[]
[]
[]
[]
[]
[]
[]
[]
[]
[]
[]
[]
[]
[]
[]
[]
[]
[]
[]
[]
[]
[]
[]
[]
[]
[]
[]
[]
[]
[]
[]
[]
[]
[]
[]
[]
[]
[]
[]
[]
[]
[]
[]
[]
[]
[]
[]
[]
[]
[]
[]
[]
[]
[]
[]
[]
[]
[]
[]
[]
[]
[]
[]
[]
[]
[]
[]
[]
[]
[]
[]
[]
[]
[]
[]
[]
[]
[]
[]
[]
[]
[]
[]
[]
[]
[]
[]
[]
[]
[]
[]
[]
[]
[]
[]
[]
[]
[]
[]
[]
[]
[]
[]
[]
[]
[]
[]
[]
[]
[]
[]
[]
[]
[]
[]
[]
[]
[]
[]
[]
[]
[]
[]
[]
[]
[]
[]
[]
[]
[]
[]
[]
[]
[]
[]
[]
[]
[]
[]
[]
[]
[]
[]
[]
[]
[]
[]
[]
[]
[]
[]
[]
[]
[]
[]
[]
[]
[]
[]
[]
[]
[]
[]
[]
[]
[]
[]
[]
[]
[]
[]
[]
[]
[]
[]
[]
[]
[]
[]
[]
[]
[]
[]
[]
[]
[]
[]
[]
[]
[]
[]
[]
[]
[]
[]
[]
[]
[]
[]
[]
[]
[]
[]
[]
[]
[]
[]
[]
[]
[]
[]
[]
[]
[]
[]
[]
[]
[]
[]
[]
[]
[]
[]
[]
[]
[]
[]
[]
[]
[]
[]
[]
[]
[]
[]
[]
[]
[]
[]
[]
[]
[]
[]
[]
[]
[]
[]
[]
[]
[]
[]
[]
[]
[]
[]
[]
[]
[]
[]
[]
[]
[]
[]
[]
[]
[]
[]
[]
[]
[]
[]
[]
[]
[]
[]
[]
[]
[]
[]
[]
[]
[]
[]
[]
[]
[]
[]
[]
[]
[]
[]
[]
[]
[]
[]
[]
[]
[]
[]
[]
[]
[]
[]
[]
[]
[]
[]
[]
[]
[]
[]
[]
[]
[]
[]
[]
[]
[]
[]
[]
[]
[]
[]
[]
[]
[]
[]
[]
[]
[]
[]
[]
[]
[]
[]
[]
[]
[]
[]
[]
[]
[]
[]
[]
[]
[]
[]
[]
[]
[]
[]
[]
[]
[]
[]
[]
[]
[]
[]
[]
[]
[]
[]
[]
[]
[]
[]
[]
[]
[]
[]
[]
[]
[]
[]
[]
[]
[]
[]
[]
[]
[]
[]
[]
[]
[]
[]
[]
[]
[]
[]
[]
[]
[]
[]
[]
[]
[]
[]
[]
[]
[]
[]
[]
[]
[]
[]
[]
[]
[]
[]
[]
[]
[]
[]
[]
[]
[]
[]
[]
[]
[]
[]
[]
[]
[]
[]
[]
[]
[]
[]
[]
[]
[]
[]
[]
[]
[]
[]
[]
[]
[]
[]
[]
[]
[]
[]
[]
[]
[]
[]
[]
[]
[]
[]
[]
[]
[]
[]
[]
[]
[]
[]
[]
[]
[]
[]
[]
[]
[]
[]
[]
[]
[]
[]
[]
[]
[]
[]
[]
[]
[]
[]
[]
[]
[]
[]
[]
[]
[]
[]
[]
[]
[]
[]
[]
[]
[]
[]
[]
[]
[]
[]
[]
[]
[]
[]
[]
[]
[]
[]
[]
[]
[]
[]
[]
[]
[]
[]
[]
[]
[]
[]
[]
[]
[]
[]
[]
[]
[]
[]
[]
[]
[]
[]
[]
[]
[]
[]
[]
[]
[]
[]
[]
[]
[]
[]
[]
[]
[]
[]
[]
[]
[]
[]
[]
[]
[]
[]
[]
[]
[]
[]
[]
[]
[]
[]
[]
[]
[]
[]
[]
[]
[]
[]
[]
[]
[]
[]
[]
[]
[]
[]
[]
[]
[]
[]
[]
[]
[]
[]
[]
[]
[]
[]
[]
[]
[]
[]
[]
[]
[]
[]
[]
[]
[]
[]
[]
[]
[]
[]
[]
[]
[]
[]
[]
[]
[]
[]
[]
[]
[]
[]
[]
[]
[]
[]
[]
[]
[]
[]
[]
[]
[]
[]
[]
[]
[]
[]
[]
[]
[]
[]
[]
[]
[]
[]
[]
[]
[]
[]
[]
[]
[]
[]
[]
[]
[]
[]
[]
[]
[]
[]
[]
[]
[]
[]
[]
[]
[]
[]
[]
[]
[]
[]
[]
[]
[]
[]
[]
[]
[]
[]
[]
[]
[]
[]
[]
[]
[]
[]
[]
[]
[]
[]
[]
[]
[]
[]
[]
[]
[]
[]
[]
[]
[]
[]
[]
[]
[]
[]
[]
[]
[]
[]
[]
[]
[]
[]
[]
[]
[]
[]
[]
[]
[]
[]
[]
[]
[]
[]
[]
[]
[]
[]
[]
[]
[]
[]
[]
[]
[]
[]
[]
[]
[]
[]
[]
[]
[]
[]
[]
[]
[]
[]
[]
[]
[]
[]
[]
[]
[]
[]
[]
[]
[]
[]
[]
[]
[]
[]
[]
[]
[]
[]
[]
[]
[]
[]
[]
[]
[]
[]
[]
[]
[]
[]
[]
[]
[]
[]
[]
[]
[]
[]
[]
[]
[]
[]
[]
[]
[]
[]
[]
[]
[]
[]
[]
[]
[]
[]
[]
[]
[]
[]
[]
[]
[]
[]
[]
[]
[]
[]
[]
[]
[]
[]
[]
[]
[]
[]
[]
[]
[]
[]
[]
[]
[]
[]
[]
[]
[]
[]
[]
[]
[]
[]
[]
[]
[]
[]
[]
[]
[]
[]
[]
[]
[]
[]
[]
[]
[]
[]
[]
[]
[]
[]
[]
[]
[]
[]
[]
[]
[]
[]
[]
[]
[]
[]
[]
[]
[]
[]
[]
[]
[]
[]
[]
[]
[]
[]
[]
[]
[]
[]
[]
[]
[]
[]
[]
[]
[]
[]
[]
[]
[]
[]
[]
[]
[]
[]
[]
[]
[]
[]
[]
[]
[]
[]
[]
[]
[]
[]
[]
[]
[]
[]
[]
[]
[]
[]
[]
[]
[]
[]
[]
[]
[]
[]
[]
[]
[]
[]
[]
[]
[]
[]
[]
[]
[]
[]
[]
[]
[]
[]
[]
[]
[]
[]
[]
[]
[]
[]
[]
[]
[]
[]
[]
[]
[]
[]
[]
[]
[]
[]
[]
[]
[]
[]
[]
[]
[]
[]
[]
[]
[]
[]
[]
[]
[]
[]
[]
[]
[]
[]
[]
[]
[]
[]
[]
[]
[]
[]
[]
[]
[]
[]
[]
[]
[]
[]
[]
[]
[]
[]
[]
[]
[]
[]
[]
[]
[]
[]
[]
[]
[]
[]
[]
[]
[]
[]
[]
[]
[]
[]
[]
[]
[]
[]
[]
[]
[]
[]
[]
[]
[]
[]
[]
[]
[]
[]
[]
[]
[]
[]
[]
[]
[]
[]
[]
[]
[]
[]
[]
[]
[]
[]
[]
[]
[]
[]
[]
[]
[]
[]
[]
[]
[]
[]
[]
[]
[]
[]
[]
[]
[]
[]
[]
[]
[]
[]
[]
[]
[]
[]
[]
[]
[]
[]
[]
[]
[]
[]
[]
[]
[]
[]
[]
[]
[]
[]
[]
[]
[]
[]
[]
[]
[]
[]
[]
[]
[]
[]
[]
[]
[]
[]
[]
[]
[]
[]
[]
[]
[]
[]
[]
[]
[]
[]
[]
[]
[]
[]
[]
[]
[]
[]
[]
[]
[]
[]
[]
[]
[]
[]
[]
[]
[]
[]
[]
[]
[]
[]
[]
[]
[]
[]
[]
[]
[]
[]
[]
[]
[]
[]
[]
[]
[]
[]
[]
[]
[]
[]
[]
[]
[]
[]
[]
[]
[]
[]
[]
[]
[]
[]
[]
[]
[]
[]
[]
[]
[]
[]
[]
[]
[]
[]
[]
[]
[]
[]
[]
[]
[]
[]
[]
[]
[]
[]
[]
[]
[]
[]
[]
[]
[]
[]
[]
[]
[]
[]
[]
[]
[]
[]
[]
[]
[]
[]
[]
[]
[]
[]
[]
[]
[]
[]
[]
[]
[]
[]
[]
[]
[]
[]
[]
[]
[]
[]
[]
[]
[]
[]
[]
[]
[]
[]
[]
[]
[]
[]
[]
[]
[]
[]
[]
[]
[]
[]
[]
[]
[]
[]
[]
[]
[]
[]
[]
[]
[]
[]
[]
[]
[]
[]
[]
[]
[]
[]
[]
[]
[]
[]
[]
[]
[]
[]
[]
[]
[]
[]
[]
[]
[]
[]
[]
[]
[]
[]
[]
[]
[]
[]
[]
[]
[]
[]
[]
[]
[]
[]
[]
[]
[]
[]
[]
[]
[]
[]
[]
[]
[]
[]
[]
[]
[]
[]
[]
[]
[]
[]
[]
[]
[]
[]
[]
[]
[]
[]
[]
[]
[]
[]
[]
[]
[]
[]
[]
[]
[]
[]
[]
[]
[]
[]
[]
[]
[]
[]
[]
[]
[]
[]
[]
[]
[]
[]
[]
[]
[]
[]
[]
[]
[]
[]
[]
[]
[]
[]
[]
[]
[]
[]
[]
[]
[]
[]
[]
[]
[]
[]
[]
[]
[]
[]
[]
[]
[]
[]
[]
[]
[]
[]
[]
[]
[]
[]
[]
[]
[]
[]
[]
[]
[]
[]
[]
[]
[]
[]
[]
[]
[]
[]
[]
[]
[]
[]
[]
[]
[]
[]
[]
[]
[]
[]
[]
[]
[]
[]
[]
[]
[]
[]
[]
[]
[]
[]
[]
[]
[]
[]
[]
[]
[]
[]
[]
[]
[]
[]
[]
[]
[]
[]
[]
[]
[]
[]
[]
[]
[]
[]
[]
[]
[]
[]
[]
[]
[]
[]
[]
[]
[]
[]
[]
[]
[]
[]
[]
[]
[]
[]
[]
[]
[]
[]
[]
[]
[]
[]
[]
[]
[]
[]
[]
[]
[]
[]
[]
[]
[]
[]
[]
[]
[]
[]
[]
[]
[]
[]
[]
[]
[]
[]
[]
[]
[]
[]
[]
[]
[]
[]
[]
[]
[]
[]
[]
[]
[]
[]
[]
[]
[]
[]
[]
[]
[]
[]
[]
[]
[]
[]
[]
[]
[]
[]
[]
[]
[]
[]
[]
[]
[]
[]
[]
[]
[]
[]
[]
[]
[]
[]
[]
[]
[]
[]
[]
[]
[]
[]
[]
[]
[]
[]
[]
[]
[]
[]
[]
[]
[]
[]
[]
[]
[]
[]
[]
[]
[]
[]
[]
[]
[]
[]
[]
[]
[]
[]
[]
[]
[]
[]
[]
[]
[]
[]
[]
[]
[]
[]
[]
[]
[]
[]
[]
[]
[]
[]
[]
[]
[]
[]
[]
[]
[]
[]
[]
[]
[]
[]
[]
[]
[]
[]
[]
[]
[]
[]
[]
[]
[]
[]
[]
[]
[]
[]
[]
[]
[]
[]
[]
[]
[]
[]
[]
[]
[]
[]
[]
[]
[]
[]
[]
[]
[]
[]
[]
[]
[]
[]
[]
[]
[]
[]
[]
[]
[]
[]
[]
[]
[]
[]
[]
[]
[]
[]
[]
[]
[]
[]
[]
[]
[]
[]
[]
[]
[]
[]
[]
[]
[]
[]
[]
[]
[]
[]
[]
[]
[]
[]
[]
[]
[]
[]
[]
[]
[]
[]
[]
[]
[]
[]
[]
[]
[]
[]
[]
[]
[]
[]
[]
[]
[]
[]
[]
[]
[]
[]
[]
[]
[]
[]
[]
[]
[]
[]
[]
[]
[]
[]
[]
[]
[]
[]
[]
[]
[]
[]
[]
[]
[]
[]
[]
[]
[]
[]
[]
[]
[]
[]
[]
[]
[]
[]
[]
[]
[]
[]
[]
[]
[]
[]
[]
[]
[]
[]
[]
[]
[]
[]
[]
[]
[]
[]
[]
[]
[]
[]
[]
[]
[]
[]
[]
[]
[]
[]
[]
[]
[]
[]
[]
[]
[]
[]
[]
[]
[]
[]
[]
[]
[]
[]
[]
[]
[]
[]
[]
[]
[]
[]
[]
[]
[]
[]
[]
[]
[]
[]
[]
[]
[]
[]
[]
[]
[]
[]
[]
[]
[]
[]
[]
[]
[]
[]
[]
[]
[]
[]
[]
[]
[]
[]
[]
[]
[]
[]
[]
[]
[]
[]
[]
[]
[]
[]
[]
[]
[]
[]
[]
[]
[]
[]
[]
[]
[]
[]
[]
[]
[]
[]
[]
[]
[]
[]
[]
[]
[]
[]
[]
[]
[]
[]
[]
[]
[]
[]
[]
[]
[]
[]
[]
[]
[]
[]
[]
[]
[]
[]
[]
[]
[]
[]
[]
[]
[]
[]
[]
[]
[]
[]
[]
[]
[]
[]
[]
[]
[]
[]
[]
[]
[]
[]
[]
[]
[]
[]
[]
[]
[]
[]
[]
[]
[]
[]
[]
[]
[]
[]
[]
[]
[]
[]
[]
[]
[]
[]
[]
[]
[]
[]
[]
[]
[]
[]
[]
[]
[]
[]
[]
[]
[]
[]
[]
[]
[]
[]
[]
[]
[]
[]
[]
[]
[]
[]
[]
[]
[]
[]
[]
[]
[]
[]
[]
[]
[]
[]
[]
[]
[]
[]
[]
[]
[]
[]
[]
[]
[]
[]
[]
[]
[]
[]
[]
[]
[]
[]
[]
[]
[]
[]
[]
[]
[]
[]
[]
[]
[]
[]
[]
[]
[]
[]
[]
[]
[]
[]
[]
[]
[]
[]
[]
[]
[]
[]
[]
[]
[]
[]
[]
[]
[]
[]
[]
[]
[]
[]
[]
[]
[]
[]
[]
[]
[]
[]
[]
[]
[]
[]
[]
[]
[]
[]
[]
[]
[]
[]
[]
[]
[]
[]
[]
[]
[]
[]
[]
[]
[]
[]
[]
[]
[]
[]
[]
[]
[]
[]
[]
[]
[]
[]
[]
[]
[]
[]
[]
[]
[]
[]
[]
[]
[]
[]
[]
[]
[]
[]
[]
[]
[]
[]
[]
[]
[]
[]
[]
[]
[]
[]
[]
[]
[]
[]
[]
[]
[]
[]
[]
[]
[]
[]
[]
[]
[]
[]
[]
[]
[]
[]
[]
[]
[]
[]
[]
[]
[]
[]
[]
[]
[]
[]
[]
[]
[]
[]
[]
[]
[]
[]
[]
[]
[]
[]
[]
[]
[]
[]
[]
[]
[]
[]
[]
[]
[]
[]
[]
[]
[]
[]
[]
[]
[]
[]
[]
[]
[]
[]
[]
[]
[]
[]
[]
[]
[]
[]
[]
[]
[]
[]
[]
[]
[]
[]
[]
[]
[]
[]
[]
[]
[]
[]
[]
[]
[]
[]
[]
[]
[]
[]
[]
[]
[]
[]
[]
[]
[]
[]
[]
[]
[]
[]
[]
[]
[]
[]
[]
[]
[]
[]
[]
[]
[]
[]
[]
[]
[]
[]
[]
[]
[]
[]
[]
[]
[]
[]
[]
[]
[]
[]
[]
[]
[]
[]
[]
[]
[]
[]
[]
[]
[]
[]
[]
[]
[]
[]
[]
[]
[]
[]
[]
[]
[]
[]
[]
[]
[]
[]
[]
[]
[]
[]
[]
[]
[]
[]
[]
[]
[]
[]
[]
[]
[]
[]
[]
[]
[]
[]
[]
[]
[]
[]
[]
[]
[]
[]
[]
[]
[]
[]
[]
[]
[]
[]
[]
[]
[]
[]
[]
[]
[]
[]
[]
[]
[]
[]
[]
[]
[]
[]
[]
[]
[]
[]
[]
[]
[]
[]
[]
[]
[]
[]
[]
[]
[]
[]
[]
[]
[]
[]
[]
[]
[]
[]
[]
[]
[]
[]
[]
[]
[]
[]
[]
[]
[]
[]
[]
[]
[]
[]
[]
[]
[]
[]
[]
[]
[]
[]
[]
[]
[]
[]
[]
[]
[]
[]
[]
[]
[]
[]
[]
[]
[]
[]
[]
[]
[]
[]
[]
[]
[]
[]
[]
[]
[]
[]
[]
[]
[]
[]
[]
[]
[]
[]
[]
[]
[]
[]
[]
[]
[]
[]
[]
[]
[]
[]
[]
[]
[]
[]
[]
[]
[]
[]
[]
[]
[]
[]
[]
[]
[]
[]
[]
[]
[]
[]
[]
[]
[]
[]
[]
[]
[]
[]
[]
[]
[]
[]
[]
[]
[]
[]
[]
[]
[]
[]
[]
[]
[]
[]
[]
[]
[]
[]
[]
[]
[]
[]
[]
[]
[]
[]
[]
[]
[]
[]
[]
[]
[]
[]
[]
[]
[]
[]
[]
[]
[]
[]
[]
[]
[]
[]
[]
[]
[]
[]
[]
[]
[]
[]
[]
[]
[]
[]
[]
[]
[]
[]
[]
[]
[]
[]
[]
[]
[]
[]
[]
[]
[]
[]
[]
[]
[]
[]
[]
[]
[]
[]
[]
[]
[]
[]
[]
[]
[]
[]
[]
[]
[]
[]
[]
[]
[]
[]
[]
[]
[]
[]
[]
[]
[]
[]
[]
[]
[]
[]
[]
[]
[]
[]
[]
[]
[]
[]
[]
[]
[]
[]
[]
[]
[]
[]
[]
[]
[]
[]
[]
[]
[]
[]
[]
[]
[]
[]
[]
[]
[]
[]
[]
[]
[]
[]
[]
[]
[]
[]
[]
[]
[]
[]
[]
[]
[]
[]
[]
[]
[]
[]
[]
[]
[]
[]
[]
[]
[]
[]
[]
[]
[]
[]
[]
[]
[]
[]
[]
[]
[]
[]
[]
[]
[]
[]
[]
[]
[]
[]
[]
[]
[]
[]
[]
[]
[]
[]
[]
[]
[]
[]
[]
[]
[]
[]
[]
[]
[]
[]
[]
[]
[]
[]
[]
[]
[]
[]
[]
[]
[]
[]
[]
[]
[]
[]
[]
[]
[]
[]
[]
[]
[]
[]
[]
[]
[]
[]
[]
[]
[]
[]
[]
[]
[]
[]
[]
[]
[]
[]
[]
[]
[]
[]
[]
[]
[]
[]
[]
[]
[]
[]
[]
[]
[]
[]
[]
[]
[]
[]
[]
[]
[]
[]
[]
[]
[]
[]
[]
[]
[]
[]
[]
[]
[]
[]
[]
[]
[]
[]
[]
[]
[]
[]
[]
[]
[]
[]
[]
[]
[]
[]
[]
[]
[]
[]
[]
[]
[]
[]
[]
[]
[]
[]
[]
[]
[]
[]
[]
[]
[]
[]
[]
[]
[]
[]
[]
[]
[]
[]
[]
[]
[]
[]
[]
[]
[]
[]
[]
[]
[]
[]
[]
[]
[]
[]
[]
[]
[]
[]
[]
[]
[]
[]
[]
[]
[]
[]
[]
[]
[]
[]
[]
[]
[]
[]
[]
[]
[]
[]
[]
[]
[]
[]
[]
[]
[]
[]
[]
[]
[]
[]
[]
[]
[]
[]
[]
[]
[]
[]
[]
[]
[]
[]
[]
[]
[]
[]
[]
[]
[]
[]
[]
[]
[]
[]
[]
[]
[]
[]
[]
[]
[]
[]
[]
[]
[]
[]
[]
[]
[]
[]
[]
[]
[]
[]
[]
[]
[]
[]
[]
[]
[]
[]
[]
[]
[]
[]
[]
[]
[]
[]
[]
[]
[]
[]
[]
[]
[]
[]
[]
[]
[]
[]
[]
[]
[]
[]
[]
[]
[]
[]
[]
[]
[]
[]
[]
[]
[]
[]
[]
[]
[]
[]
[]
[]
[]
[]
[]
[]
[]
[]
[]
[]
[]
[]
[]
[]
[]
[]
[]
[]
[]
[]
[]
[]
[]
[]
[]
[]
[]
[]
[]
[]
[]
[]
[]
[]
[]
[]
[]
[]
[]
[]
[]
[]
[]
[]
[]
[]
[]
[]
[]
[]
[]
[]
[]
[]
[]
[]
[]
[]
[]
[]
[]
[]
[]
[]
[]
[]
[]
[]
[]
[]
[]
[]
[]
[]
[]
[]
[]
[]
[]
[]
[]
[]
[]
[]
[]
[]
[]
[]
[]
[]
[]
[]
[]
[]
[]
[]
[]
[]
[]
[]
[]
[]
[]
[]
[]
[]
[]
[]
[]
[]
[]
[]
[]
[]
[]
[]
[]
[]
[]
[]
[]
[]
[]
[]
[]
[]
[]
[]
[]
[]
[]
[]
[]
[]
[]
[]
[]
[]
[]
[]
[]
[]
[]
[]
[]
[]
[]
[]
[]
[]
[]
[]
[]
[]
[]
[]
[]
[]
[]
[]
[]
[]
[]
[]
[]
[]
[]
[]
[]
[]
[]
[]
[]
[]
[]
[]
[]
[]
[]
[]
[]
[]
[]
[]
[]
[]
[]
[]
[]
[]
[]
[]
[]
[]
[]
[]
[]
[]
[]
[]
[]
[]
[]
[]
[]
[]
[]
[]
[]
[]
[]
[]
[]
[]
[]
[]
[]
[]
[]
[]
[]
[]
[]
[]
[]
[]
[]
[]
[]
[]
[null,null,null," "]
[]
[]
[]
[]
["Item","Équation_Texte","A","B","C","E","F","Équation_Calcul_ha","EMR1_Brut_ha","BNT1_Brut_ha","PE2_ha_PLANIF","PE2_ha_BGAD","PE2_ha_MFFP","MAN_ha_PLANIF","MAN_ha_BGAD","MAN_ha_MFFP","RUB1_ha_PLANIF","RUB1_ha_BGAD","RUB1_ha_MFFP","H2_ha_PLANIF","H2_ha_BGAD","H2_ha_MFFP"]
["C1","-0,0425P+(327,505/P)+4,8643",-4.2500000000000003E-2,327.505,4.8643000000000001,null,null,{"$f":"IFERROR(($C$1048514*'Calcul des taux (formules)'!$G$36+($D$1048514/'Calcul des taux (formules)'!$G$36)+$E$1048514),0)","v":0},"N/A","N/A","N/A","N/A","N/A","N/A","N/A","N/A","N/A","N/A","N/A","N/A","N/A","N/A"]
["C2","-0,0530P+(327,055/P)+5,5333",-5.2999999999999999E-2,327.505,5.5332999999999997,null,null,{"$f":"IFERROR(($C$1048515*'Calcul des taux (formules)'!$G$36+($D$1048515/'Calcul des taux (formules)'!$G$36)+$E$1048515),0)","v":0},"N/A","N/A","N/A","N/A","N/A","N/A","N/A","N/A","N/A","N/A","N/A","N/A","N/A","N/A"]
["C3","-0,0425P+(327,505/P)+4,8643",-4.19E-2,163.75299999999999,5.7779999999999996,null,null,{"$f":"IFERROR(($C$1048516*'Calcul des taux (formules)'!$G$36+($D$1048516/'Calcul des taux (formules)'!$G$36)+$E$1048516),0)","v":0},"N/A","N/A","N/A","N/A","N/A","N/A","N/A","N/A","N/A","N/A","N/A","N/A","N/A","N/A"]
[{"$f":"Menus!$A$356","v":"Formule 1 - EC1"},"( C1 + (4,944vr-0,682 - 7,615vp-0,391))x P",4.944,-0.68200000000000005,7.6150000000000002,-0.39100000000000001,null,{"$f":"IFERROR((($H$1048514+($C$1048517*POWER('Calcul des taux (formules)'!$G$38,$D$1048517))-($E$1048517*POWER('Calcul des taux (formules)'!$G$37,$F$1048517)))*'Calcul des taux (formules)'!$G$36),0)","v":0},"N/A","N/A",{"$f":"IFERROR(IF($I$13=$A$1048517,SUMPRODUCT($C$57:$C$61,G$57:G$61)/G$62-$H$1048517,0),0)","v":0},{"$f":"IFERROR(IF($I$13=$A$1048517,SUMPRODUCT($C$57:$C$61,H$57:H$61)/H$62-$H$1048517,0),0)","v":0},{"$f":"IFERROR(IF($I$13=$A$1048517,SUMPRODUCT($C$57:$C$61,I$57:I$61)/I$62-$H$1048517,0),0)","v":0},{"$f":"IFERROR(IF($I$13=$A$1048517,($K$1048517+$H$1048517)*VLOOKUP($G$65,Menus!$A$334:$C$336,2,0),0),0)","v":0},{"$f":"IFERROR(IF($I$13=$A$1048517,($L$1048517+$H$1048517)*VLOOKUP($H$65,Menus!$A$334:$C$336,2,0),0),0)","v":0},{"$f":"IFERROR(IF($I$13=$A$1048517,($M$1048517+$H$1048517)*VLOOKUP($I$65,Menus!$A$334:$C$336,2,0),0),0)","v":0},{"$f":"IFERROR(IF($I$13=$A$1048517,IF(OR(G$68<15,G$68=Menus!$A$340,G$68=\"\",EXACT(ROUND($G$68,0),$G$68)=FALSE),0,'Majorations applicables'!$B$29*POWER(G$68,'Majorations applicables'!$B$30))*(1+($K$1048517/$H$1048517)),0),0)","v":0},{"$f":"IFERROR(IF($I$13=$A$1048517,IF(OR(H$68<15,H$68=Menus!$A$340,H$68=\"\",EXACT(ROUND($H$68,0),$H$68)=FALSE),0,'Majorations applicables'!$B$29*POWER(H$68,'Majorations applicables'!$B$30))*(1+($L$1048517/$H$1048517)),0),0)","v":0},{"$f":"IFERROR(IF($I$13=$A$1048517,IF(OR(I$68<15,I$68=Menus!$A$340,I$68=\"\",EXACT(ROUND($I$68,0),$I$68)=FALSE),0,'Majorations applicables'!$B$29*POWER(I$68,'Majorations applicables'!$B$30))*(1+($M$1048517/$H$1048517)),0),0)","v":0},{"$f":"IFERROR(IF($I$13=$A$1048517,(SUM(H1048517,K1048517,N1048517,Q1048517)*SUM(VLOOKUP($G$71,Menus!$A$329:$B$330,2,FALSE))),0),0)","v":0},{"$f":"IFERROR(IF($I$13=$A$1048517,(SUM(H1048517,L1048517,O1048517,$R1048517)*SUM(VLOOKUP($H$71,Menus!$A$329:$B$330,2,FALSE))),0),0)","v":0},{"$f":"IFERROR(IF($I$13=$A$1048517,(SUM(H1048517,M1048517,P1048517,S1048517)*SUM(VLOOKUP($I$71,Menus!$A$329:$B$330,2,FALSE))),0),0)","v":0}]
[{"$f":"Menus!$A$357","v":"Formule 1 - EC2"},"( C1 + (4,944vr-0,682 - 7,615vp-0,391))x P",4.944,-0.68200000000000005,7.6150000000000002,-0.39100000000000001,null,{"$f":"IFERROR((($H$1048516+($C$1048518*POWER('Calcul des taux (formules)'!$G$38,$D$1048518))-($E$1048518*POWER('Calcul des taux (formules)'!$G$37,$F$1048518)))*'Calcul des taux (formules)'!$G$36),0)","v":0},"N/A","N/A",{"$f":"IFERROR(IF($I$13=$A$1048518,SUMPRODUCT($C$57:$C$61,G$57:G$61)/G$62-$H$1048518,0),0)","v":0},{"$f":"IFERROR(IF($I$13=$A$1048518,SUMPRODUCT($C$57:$C$61,H$57:H$61)/H$62-$H$1048518,0),0)","v":0},{"$f":"IFERROR(IF($I$13=$A$1048518,SUMPRODUCT($C$57:$C$61,I$57:I$61)/I$62-$H$1048518,0),0)","v":0},"N/A","N/A","N/A",{"$f":"IFERROR(IF($I$13=$A$1048518,IF(OR(G$68<15,G$68=Menus!$A$340,G$68=\"\",EXACT(ROUND($G$68,0),$G$68)=FALSE),0,'Majorations applicables'!$B$29*POWER(G$68,'Majorations applicables'!$B$30))*(1+($K$1048518/$H$1048518)),0),0)","v":0},{"$f":"IFERROR(IF($I$13=$A$1048518,IF(OR(H$68<15,H$68=Menus!$A$340,H$68=\"\",EXACT(ROUND($H$68,0),$H$68)=FALSE),0,'Majorations applicables'!$B$29*POWER(H$68,'Majorations applicables'!$B$30))*(1+($L$1048518/$H$1048518)),0),0)","v":0},{"$f":"IFERROR(IF($I$13=$A$1048518,IF(OR(I$68<15,I$68=Menus!$A$340,I$68=\"\",EXACT(ROUND($I$68,0),$I$68)=FALSE),0,'Majorations applicables'!$B$29*POWER(I$68,'Majorations applicables'!$B$30))*(1+($M$1048518/$H$1048518)),0),0)","v":0},{"$f":"IFERROR(IF($I$13=$A$1048518,(SUM(H1048518,K1048518,N1048518,Q1048518)*SUM(VLOOKUP($G$71,Menus!$A$329:$B$330,2,FALSE))),0),0)","v":0},{"$f":"IFERROR(IF($I$13=$A$1048518,(SUM(H1048518,L1048518,O1048518,$R1048518)*SUM(VLOOKUP($H$71,Menus!$A$329:$B$330,2,FALSE))),0),0)","v":0},{"$f":"IFERROR(IF($I$13=$A$1048518,(SUM(H1048518,M1048518,P1048518,S1048518)*SUM(VLOOKUP($I$71,Menus!$A$329:$B$330,2,FALSE))),0),0)","v":0}]
[{"$f":"Menus!$A$358","v":"Formule 2"},"( C1 + (14,631vr-0,237 - 10,362vp-0,237)-0,44) x P",14.631,-0.23699999999999999,10.362,-0.23699999999999999,0.44,{"$f":"IFERROR((($H$1048514+($C$1048519*POWER('Calcul des taux (formules)'!$G$38,$D$1048519))-($E$1048519*POWER('Calcul des taux (formules)'!$G$37,$F$1048519))-$G$1048519)*'Calcul des taux (formules)'!$G$36),0)","v":0},"N/A","N/A",{"$f":"IFERROR(IF($I$13=$A$1048519,SUMPRODUCT($C$57:$C$61,G$57:G$61)/G$62-$H$1048519,0),0)","v":0},{"$f":"IFERROR(IF($I$13=$A$1048519,SUMPRODUCT($C$57:$C$61,H$57:H$61)/H$62-$H$1048519,0),0)","v":0},{"$f":"IFERROR(IF($I$13=$A$1048519,SUMPRODUCT($C$57:$C$61,I$57:I$61)/I$62-$H$1048519,0),0)","v":0},"N/A","N/A","N/A",{"$f":"IFERROR(IF($I$13=$A$1048519,IF(OR(G$68<15,G$68=Menus!$A$340,G$68=\"\",EXACT(ROUND($G$68,0),$G$68)=FALSE),0,'Majorations applicables'!$B$29*POWER(G$68,'Majorations applicables'!$B$30))*(1+($K$1048519/$H$1048519)),0),0)","v":0},{"$f":"IFERROR(IF($I$13=$A$1048519,IF(OR(H$68<15,H$68=Menus!$A$340,H$68=\"\",EXACT(ROUND($H$68,0),$H$68)=FALSE),0,'Majorations applicables'!$B$29*POWER(H$68,'Majorations applicables'!$B$30))*(1+($L$1048519/$H$1048519)),0),0)","v":0},{"$f":"IFERROR(IF($I$13=$A$1048519,IF(OR(I$68<15,I$68=Menus!$A$340,I$68=\"\",EXACT(ROUND($I$68,0),$I$68)=FALSE),0,'Majorations applicables'!$B$29*POWER(I$68,'Majorations applicables'!$B$30))*(1+($M$1048519/$H$1048519)),0),0)","v":0},{"$f":"IFERROR(IF($I$13=$A$1048519,(SUM(H1048519,K1048519,Q1048519)*SUM(VLOOKUP($G$71,Menus!$A$329:$B$330,2,FALSE))),0),0)","v":0},{"$f":"IFERROR(IF($I$13=$A$1048519,(SUM(H1048519,L1048519,$R1048519)*SUM(VLOOKUP($H$71,Menus!$A$329:$B$330,2,FALSE))),0),0)","v":0},{"$f":"IFERROR(IF($I$13=$A$1048519,(SUM(H1048519,M1048519,S1048519)*SUM(VLOOKUP($I$71,Menus!$A$329:$B$330,2,FALSE))),0),0)","v":0}]
[{"$f":"Menus!$A$359","v":"Formule 4"},"( C2 + (11,18vr-0,526 - 6,603vp-0,563)-0,44) x P",11.18,-0.52600000000000002,6.6029999999999998,-0.56299999999999994,0.44,{"$f":"IFERROR((($H$1048515+($C$1048520*POWER('Calcul des taux (formules)'!$G$38,$D$1048520))-($E$1048520*POWER('Calcul des taux (formules)'!$G$37,$F$1048520))-$G$1048520)*'Calcul des taux (formules)'!$G$36),0)","v":0},{"$f":"IFERROR(($H$1048520*(-'Calcul des taux (formules)'!$G$43)),0)","v":0},{"$f":"IFERROR(IF(OR(EXACT($G$52,0),EXACT($G$52,\"\")),0,IF(AND('Calcul des taux (formules)'!$G$50>0,OR('Calcul des taux (formules)'!$G$51>0,'Calcul des taux (formules)'!$G$52>0)),(-('Majorations applicables'!$B$19*POWER('Calcul des taux (formules)'!$G$46,'Majorations applicables'!$B$20)-('Majorations applicables'!$B$21*'Calcul des taux (formules)'!$G$46)+1)*($H$1048520+$I$1048520)),IF(AND('Calcul des taux (formules)'!$G$50>0,OR('Calcul des taux (formules)'!$G$51=0,'Calcul des taux (formules)'!$G$52=0)),(-('Majorations applicables'!$B$19*POWER('Calcul des taux (formules)'!$G$46,'Majorations applicables'!$B$20)-('Majorations applicables'!$B$21*'Calcul des taux (formules)'!$G$46)+1)*($H$1048520+$I$1048520)),0))),0)","v":0},{"$f":"IFERROR(IF($I$13=$A1048520,SUMPRODUCT($C$57:$C$61,G$57:G$61)/G$62-$H$1048520,0),0)","v":0},{"$f":"IFERROR(IF($I$13=$A1048520,SUMPRODUCT($C$57:$C$61,H$57:H$61)/H$62-$H$1048520,0),0)","v":0},{"$f":"IFERROR(IF($I$13=$A1048520,SUMPRODUCT($C$57:$C$61,I$57:I$61)/I$62-$H$1048520,0),0)","v":0},"N/A","N/A","N/A",{"$f":"IFERROR(IF($I$13=$A$1048520,IF(OR(G$68<15,G$68=Menus!$A$340,G$68=\"\",EXACT(ROUND($G$68,0),$G$68)=FALSE),0,'Majorations applicables'!$B$29*POWER(G$68,'Majorations applicables'!$B$30))*(1+($K$1048520/$H$1048520)),0),0)","v":0},{"$f":"IFERROR(IF($I$13=$A$1048520,IF(OR(H$68<15,H$68=Menus!$A$340,H$68=\"\",EXACT(ROUND($H$68,0),$H$68)=FALSE),0,'Majorations applicables'!$B$29*POWER(H$68,'Majorations applicables'!$B$30))*(1+($L$1048520/$H$1048520)),0),0)","v":0},{"$f":"IFERROR(IF($I$13=$A$1048520,IF(OR(I$68<15,I$68=Menus!$A$340,I$68=\"\",EXACT(ROUND($I$68,0),$I$68)=FALSE),0,'Majorations applicables'!$B$29*POWER(I$68,'Majorations applicables'!$B$30))*(1+($M$1048520/$H$1048520)),0),0)","v":0},{"$f":"IFERROR(IF($I$13=$A$1048520,(SUM(H1048520:J1048520,K1048520,Q1048520)*SUM(VLOOKUP($G$71,Menus!$A$329:$B$330,2,FALSE))),0),0)","v":0},{"$f":"IFERROR(IF($I$13=$A$1048520,(SUM(H1048520:J1048520,L1048520,$R1048520)*SUM(VLOOKUP($H$71,Menus!$A$329:$B$330,2,FALSE))),0),0)","v":0},{"$f":"IFERROR(IF($I$13=$A$1048520,(SUM(H1048520:J1048520,M1048520,S1048520)*SUM(VLOOKUP($I$71,Menus!$A$329:$B$330,2,FALSE))),0),0)","v":0}]
[{"$f":"Menus!$A$360","v":"Formule 6"},"( C2 + (7,769vr-0,534 - 6,418vp-0,564) x P",7.7690000000000001,-0.53400000000000003,6.4180000000000001,-0.56399999999999995,null,{"$f":"IFERROR((($H$1048515+($C$1048521*POWER('Calcul des taux (formules)'!$G$38,$D$1048521))-($E$1048521*POWER('Calcul des taux (formules)'!$G$37,$F$1048521)))*'Calcul des taux (formules)'!$G$36),0)","v":0},{"$f":"IFERROR(($H$1048521*(-'Calcul des taux (formules)'!$G$43)),0)","v":0},{"$f":"IFERROR(IF(OR(EXACT($G$52,0),EXACT($G$52,\"\")),0,IF(AND('Calcul des taux (formules)'!$G$50>0,OR('Calcul des taux (formules)'!$G$51>0,'Calcul des taux (formules)'!$G$52>0)),(-('Majorations applicables'!$B$19*POWER('Calcul des taux (formules)'!$G$46,'Majorations applicables'!$B$20)-('Majorations applicables'!$B$21*'Calcul des taux (formules)'!$G$46)+1)*($H$1048521+$I$1048521)),IF(AND('Calcul des taux (formules)'!$G$50>0,OR('Calcul des taux (formules)'!$G$51=0,'Calcul des taux (formules)'!$G$52=0)),(-('Majorations applicables'!$B$19*POWER('Calcul des taux (formules)'!$G$46,'Majorations applicables'!$B$20)-('Majorations applicables'!$B$21*'Calcul des taux (formules)'!$G$46)+1)*($H$1048521+$I$1048521)),0))),0)","v":0},{"$f":"IFERROR(IF($I$13=$A1048521,SUMPRODUCT($C$57:$C$61,G$57:G$61)/G$62-$H$1048521,0),0)","v":0},{"$f":"IFERROR(IF($I$13=$A1048521,SUMPRODUCT($C$57:$C$61,H$57:H$61)/H$62-$H1048521,0),0)","v":0},{"$f":"IFERROR(IF($I$13=$A1048521,SUMPRODUCT($C$57:$C$61,I$57:I$61)/I$62-$H1048521,0),0)","v":0},"N/A","N/A","N/A","N/A","N/A","N/A",{"$f":"IFERROR(IF($I$13=$A$1048521,(SUM(H1048521:J1048521,K1048521)*SUM(VLOOKUP($G$71,Menus!$A$329:$B$330,2,FALSE))),0),0)","v":0},{"$f":"IFERROR(IF($I$13=$A$1048521,(SUM(H1048521:J1048521,L1048521)*SUM(VLOOKUP($H$71,Menus!$A$329:$B$330,2,FALSE))),0),0)","v":0},{"$f":"IFERROR(IF($I$13=$A$1048521,(SUM(H1048521:J1048521,M1048521)*SUM(VLOOKUP($I$71,Menus!$A$329:$B$330,2,FALSE))),0),0)","v":0}]
[{"$f":"Menus!$A$361","v":"Formule 7"},"( C2 + (7,615vr-0,643 - 6,418vp-0,564) x P",7.6150000000000002,-0.64300000000000002,6.4180000000000001,-0.56399999999999995,null,{"$f":"IFERROR((($H$1048515+($C$1048522*POWER('Calcul des taux (formules)'!$G$38,$D$1048522))-($E$1048522*POWER('Calcul des taux (formules)'!$G$37,$F$1048522)))*'Calcul des taux (formules)'!$G$36),0)","v":0},{"$f":"IFERROR(($H$1048522*(-'Calcul des taux (formules)'!$G$43)),0)","v":0},{"$f":"IFERROR(IF(OR(EXACT($G$52,0),EXACT($G$52,\"\")),0,IF(AND('Calcul des taux (formules)'!$G$50>0,OR('Calcul des taux (formules)'!$G$51>0,'Calcul des taux (formules)'!$G$52>0)),(-('Majorations applicables'!$B$19*POWER('Calcul des taux (formules)'!$G$46,'Majorations applicables'!$B$20)-('Majorations applicables'!$B$21*'Calcul des taux (formules)'!$G$46)+1)*($H$1048522+$I$1048522)),IF(AND('Calcul des taux (formules)'!$G$50>0,OR('Calcul des taux (formules)'!$G$51=0,'Calcul des taux (formules)'!$G$52=0)),(-('Majorations applicables'!$B$19*POWER('Calcul des taux (formules)'!$G$46,'Majorations applicables'!$B$20)-('Majorations applicables'!$B$21*'Calcul des taux (formules)'!$G$46)+1)*($H$1048522+$I$1048522)),0))),0)","v":0},{"$f":"IFERROR(IF($I$13=$A1048522,SUMPRODUCT($C$57:$C$61,G$57:G$61)/G$62-$H1048522,0),0)","v":0},{"$f":"IFERROR(IF($I$13=$A1048522,SUMPRODUCT($C$57:$C$61,H$57:H$61)/H$62-$H$1048522,0),0)","v":0},{"$f":"IFERROR(IF($I$13=$A1048522,SUMPRODUCT($C$57:$C$61,I$57:I$61)/I$62-$H$1048522,0),0)","v":0},"N/A","N/A","N/A",{"$f":"IFERROR(IF($I$13=$A$1048522,IF(OR(G$68<15,G$68=Menus!$A$340,G$68=\"\",EXACT(ROUND($G$68,0),$G$68)=FALSE),0,'Majorations applicables'!$B$29*POWER(G$68,'Majorations applicables'!$B$30))*(1+($K$1048522/$H$1048522)),0),0)","v":0},{"$f":"IFERROR(IF($I$13=$A$1048522,IF(OR(H$68<15,H$68=Menus!$A$340,H$68=\"\",EXACT(ROUND($H$68,0),$H$68)=FALSE),0,'Majorations applicables'!$B$29*POWER(H$68,'Majorations applicables'!$B$30))*(1+($L$1048522/$H$1048522)),0),0)","v":0},{"$f":"IFERROR(IF($I$13=$A$1048522,IF(OR(I$68<15,I$68=Menus!$A$340,I$68=\"\",EXACT(ROUND($I$68,0),$I$68)=FALSE),0,'Majorations applicables'!$B$29*POWER(I$68,'Majorations applicables'!$B$30))*(1+($M$1048522/$H$1048522)),0),0)","v":0},{"$f":"IFERROR(IF($I$13=$A$1048522,(SUM(H1048522:J1048522,K1048522,Q1048522)*SUM(VLOOKUP($G$71,Menus!$A$329:$B$330,2,FALSE))),0),0)","v":0},{"$f":"IFERROR(IF($I$13=$A$1048522,(SUM(H1048522:J1048522,L1048522,$R1048522)*SUM(VLOOKUP($H$71,Menus!$A$329:$B$330,2,FALSE))),0),0)","v":0},{"$f":"IFERROR(IF($I$13=$A$1048522,(SUM(H1048522:J1048522,M1048522,S1048522)*SUM(VLOOKUP($I$71,Menus!$A$329:$B$330,2,FALSE))),0),0)","v":0}]
[{"$f":"Menus!$A$362","v":"Inscrire une valeur"},"Veuillez inscrire une formule à G12"]

{"sheet":"Aide ATFDT","index":2,"n_rows":179,"n_cols":102,"rows_kept":179,"cut":false,"hidden":true,"merged":[[29,0,29,5],[30,0,30,5],[33,0,33,5],[31,0,31,5],[32,0,32,5],[34,0,34,5],[35,0,35,5],[36,0,36,5],[38,0,38,5],[37,0,37,5],[22,0,22,5],[26,0,26,8],[1,0,1,8],[19,0,19,5],[18,0,18,5],[23,0,23,5],[24,0,24,5],[20,0,20,5],[64,0,64,5],[64,6,64,8],[65,0,66,5],[65,6,66,8],[25,0,25,5],[41,0,41,5],[61,6,63,8],[56,0,56,5],[56,6,56,8],[46,0,46,8],[54,0,55,5],[54,6,55,8],[57,0,57,8],[58,0,58,8],[59,0,59,8],[61,0,63,5],[67,0,67,5],[67,6,67,8],[78,0,78,5],[78,6,78,8],[68,0,68,8],[69,0,69,8],[70,0,70,8],[71,0,71,8],[72,0,74,5],[72,6,74,8],[75,0,75,5],[75,6,75,8],[76,0,77,5],[76,6,77,8],[50,0,52,5],[50,6,52,8],[53,0,53,5],[53,6,53,8],[45,0,45,8],[47,0,47,8],[48,0,48,8],[49,0,49,8],[60,0,60,8],[0,0,0,8],[14,0,14,5],[15,0,15,5],[16,0,16,5],[5,0,5,5],[13,0,13,8],[6,0,6,5],[3,0,3,5],[5,6,5,8],[6,6,6,8],[7,6,7,8],[3,6,3,8],[4,0,4,8],[42,0,42,5],[39,0,39,5],[43,0,43,5],[44,0,44,5],[40,0,40,8],[2,7,2,8],[8,6,8,8],[8,0,8,5],[17,0,17,8],[12,0,12,5],[2,0,2,6],[7,0,7,5],[9,0,9,5],[10,0,10,8],[11,0,11,8],[27,0,27,8],[28,0,28,8],[21,0,21,5]]}
[]
["Annexe au rapport et au calcul de l'aide au transport des bois de feuillus durs de trituration provenant d'une coupe de régénération\n2019-2020                     \nForêt publique\n"]
[" *** Veuillez saisir les informations dans les cellules blanches (Planification et BGAD) et jaunes (Ministère) ***",null,null,null,null,null,null,"Version 2 : 2020-01-07"]
["Contexte d'utilisation",null,null,null,null,null,"Inscrire une valeur"]
["Identification"]
["Unité d'aménagement (UA)"]
["Secteur d'intervention"]
["Unité de compilation"]
["Numéro de la prescription"]
["Zone de tarification"]
["Admissibilité de la zone de tarification"]
[{"$f":"IFERROR(IF(ISBLANK($I$10),\"Inscrire une valeur à la cellule I10 pour déterminer l'admissibilité de la zone de tarification et permettre le calcul, le cas échéant.\",VLOOKUP(VALUE($I$10),Menus!A675:I864,9,FALSE)),\"Inscrire une valeur à la cellule I10 pour déterminer l'admissibilité de la zone de tarification et permettre le calcul, le cas échéant.\")","v":"Inscrire une valeur à la cellule I10 pour déterminer l'admissibilité de la zone de tarification et permettre le calcul, le cas échéant."}]
["Inscrire les renseignements dans la colonne associée au contexte d'utilisation",null,null,null,null,null,"Planification","BGAD","Ministère"]
["Admissibilité du secteur"]
["Est-ce que les strates récoltées sont feuillues ou mixtes à dominance feuillue ?"]
["Est-ce que les bois de trituration ont été récoltés et transportés ?"]
["Est-ce que le volume net des bois de trituration des feuillus durs ≥ 50% du volume total net des feuillus durs récolté ?"]
["Méthode de calcul de l'aide au transport selon la zone de tarification"]
["Volume net récolté par hectare pour tous les feuillus durs de trituration (m³/ha)\nLe minimum admissible est de 30m³/ha"]
["Superficie admissible (hectare)"]
["Numéro du projet de mesurage 1 (la saisie d'une valeur est optionnelle)"]
["Numéro du projet de mesurage 2 (la saisie d'une valeur est optionnelle)"]
["Proportion des bois assignés à ce calcul (%)"]
["Taux d'aide ($/m³) \nL'aide globale $/ha est limitée à un plafond variable en fonction de la zone de tarification",null,null,null,null,null,{"$f":"IFERROR(IF(AND(EXACT($G$15,Menus!$A$2),EXACT($G$16,Menus!$A$2),EXACT($G$17,Menus!$A$2)),VLOOKUP($I$10,Menus!$A$675:$H$864,7,FALSE),0),0)","v":0},{"$f":"IFERROR(IF(AND(EXACT($H$15,Menus!$A$2),EXACT($H$16,Menus!$A$2),EXACT($H$17,Menus!$A$2)),VLOOKUP($I$10,Menus!$A$675:$H$864,7,FALSE),0),0)","v":0},{"$f":"IFERROR(IF(AND(EXACT($I$15,Menus!$A$2),EXACT($I$16,Menus!$A$2),EXACT($I$17,Menus!$A$2)),VLOOKUP($I$10,Menus!$A$675:$H$864,7,FALSE),0),0)","v":0}]
[{"$f":"IFERROR(\"Sous-total ($/m³) avec un plafond de \"&TEXT(VLOOKUP($I$10,Menus!$A$675:$H$864,8,FALSE),\"###\")&\"$/ha\",\"Sous-total ($/m³) avec un plafond variable\")","v":"Sous-total ($/m³) avec un plafond variable"},null,null,null,null,null,{"$f":"IFERROR(IF(AND(EXACT($G$15,Menus!$A$2),EXACT($G$16,Menus!$A$2),EXACT($G$17,Menus!$A$2)),IF($G$19>=Menus!$B$867,$G$26/$G$19,0),0),0)","v":0},{"$f":"IFERROR(IF(AND(EXACT($H$15,Menus!$A$2),EXACT($H$16,Menus!$A$2),EXACT($H$17,Menus!$A$2)),IF($H$19>=Menus!$B$867,$H$26/$H$19,0),0),0)","v":0},{"$f":"IFERROR(IF(AND(EXACT($I$15,Menus!$A$2),EXACT($I$16,Menus!$A$2),EXACT($I$17,Menus!$A$2)),IF($I$19>=Menus!$B$867,$I$26/$I$19,0),0),0)","v":0}]
["Sous-total selon la zone de tarification ($/ha)",null,null,null,null,null,{"$f":"IFERROR(IF(AND(EXACT($G$15,Menus!$A$2),EXACT($G$16,Menus!$A$2),EXACT($G$17,Menus!$A$2)),IF($G$19>=Menus!$B$867,IF($G$19*$G$24>VLOOKUP($I$10,Menus!$A$675:$H$864,8,FALSE),VLOOKUP($I$10,Menus!$A$675:$H$864,8,FALSE),$G$19*$G$24),0),0),0)","v":0},{"$f":"IFERROR(IF(AND(EXACT($H$15,Menus!$A$2),EXACT($H$16,Menus!$A$2),EXACT($H$17,Menus!$A$2)),IF($H$19>=Menus!$B$867,IF($H$19*$H$24>VLOOKUP($I$10,Menus!$A$675:$H$864,8,FALSE),VLOOKUP($I$10,Menus!$A$675:$H$864,8,FALSE),$H$19*$H$24),0),0),0)","v":0},{"$f":"IFERROR(IF(AND(EXACT($I$15,Menus!$A$2),EXACT($I$16,Menus!$A$2),EXACT($I$17,Menus!$A$2)),IF($I$19>=Menus!$B$867,IF($I$19*$I$24>VLOOKUP($I$10,Menus!$A$675:$H$864,8,FALSE),VLOOKUP($I$10,Menus!$A$675:$H$864,8,FALSE),$I$19*$I$24),0),0),0)","v":0}]
["Méthode de calcul de l'aide au transport selon la destination"]
["Calcul du taux (formule)"]
[{"$f":"Menus!$B$872","v":"Aide = 0,0207 * Distance « Aller simple » - 2,333"}]
["Volume net récolté par hectare pour tous les feuillus durs de trituration (m³/ha)\nLe minimum admissible est de 30 m³/ha"]
["Superficie admissible (hectare)"]
["Destination (la saisie d'une valeur est optionnelle)"]
["Distance « Aller simple » (km)"]
["Numéro du projet de mesurage 1 (la saisie d'une valeur est optionnelle)"]
["Numéro du projet de mesurage 2 (la saisie d'une valeur est optionnelle)"]
["Proportion des bois assignés à ce calcul (%)"]
["Taux d'aide maximale ($/m³)\nL'aide globale $/ha est limitée à un plafond variable en fonction de la distance",null,null,null,null,null,{"$f":"IFERROR(IF(AND(EXACT($G$15,Menus!$A$2),EXACT($G$16,Menus!$A$2),EXACT($G$17,Menus!$A$2)),IF(Menus!$B$873*$G$33-Menus!$B$874<0,0,IF(Menus!$B$873*$G$33-Menus!$B$874>Menus!$B$876,Menus!$B$876,Menus!$B$873*$G$33-Menus!$B$874)),0),0)","v":0},{"$f":"IFERROR(IF(AND(EXACT($H$15,Menus!$A$2),EXACT($H$16,Menus!$A$2),EXACT($H$17,Menus!$A$2)),IF(Menus!$B$873*$H$33-Menus!$B$874<0,0,IF(Menus!$B$873*$H$33-Menus!$B$874>Menus!$B$876,Menus!$B$876,Menus!$B$873*H33-Menus!$B$874)),0),0)","v":0},{"$f":"IFERROR(IF(AND(EXACT($I$15,Menus!$A$2),EXACT($I$16,Menus!$A$2),EXACT($I$17,Menus!$A$2)),IF(Menus!$B$873*$I$33-Menus!$B$874<0,0,IF(Menus!$B$873*$I$33-Menus!$B$874>Menus!$B$876,Menus!$B$876,Menus!$B$873*$I$33-Menus!$B$874)),0),0)","v":0}]
["Plafond d'aide selon la destination ($/ha) par multiple de 20$",null,null,null,null,null,{"$f":"IFERROR(MROUND($G$37*Menus!$B$868,Menus!$B$869),0)","v":0},{"$f":"IFERROR(MROUND($H$37*Menus!$B$868,Menus!$B$869),0)","v":0},{"$f":"IFERROR(MROUND($I$37*Menus!$B$868,Menus!$B$869),0)","v":0}]
["Sous-total selon la destination ($/m³)",null,null,null,null,null,{"$f":"IFERROR($G$40/$G$30,0)","v":0},{"$f":"IFERROR($H$40/$H$30,0)","v":0},{"$f":"IFERROR($I$40/$I$30,0)","v":0}]
["Sous-total selon la destination ($/ha)",null,null,null,null,null,{"$f":"IFERROR(IF($G$37*$G$30>$G$38,$G$38,$G$37*$G$30),0)","v":0},{"$f":"IFERROR(IF($H$37*$H$30>$H$38,$H$38,$H$37*$H$30),0)","v":0},{"$f":"IFERROR(IF($I$37*$I$30>$I$38,$I$38,$I$37*$I$30),0)","v":0}]
["Résumé de l'aide supplémentaire"]
["Taux global - taux à inscrire à l'état d'avancement et au RATF",null,null,null,null,null,{"$f":"IFERROR(ROUND(SUM(($G$23*$G$26),($G$36*$G$40)),2),0)","v":0},{"$f":"IFERROR(IF(OR(EXACT($G$4,Menus!$A$880),EXACT($G$4,Menus!$A$881)),ROUND(SUM(($H$23*$H$26),($H$36*$H$40)),2),0),0)","v":0},{"$f":"IFERROR(IF(EXACT($G$4,Menus!$A$881),ROUND(SUM(($I$23*$I$26),($I$36*$I$40)),2),0),0)","v":0}]
["Grand total de l'aide au transport selon la zone de tarification ($)",null,null,null,null,null,{"$f":"IFERROR(IF($G$23=1,ROUND($G$20*$G$23*$G$42,2),ROUND($G$20*$G$23*$G$26,2)),0)","v":0},{"$f":"IFERROR(IF(OR(EXACT($G$4,Menus!$A$880),EXACT($G$4,Menus!$A$881)),IF($H$23=1,ROUND($H$20*$H$23*$H$42,2),ROUND($H$20*$H$23*$H$26,2)),0),0)","v":0},{"$f":"IFERROR(IF(EXACT($G$4,Menus!$A$881),IF($I$23=1,ROUND($I$20*$I$23*$I$42,2),ROUND($I$20*$I$23*$I$26,2)),0),0)","v":0}]
["Grand total de l'aide au transport selon la destination ($)",null,null,null,null,null,{"$f":"IFERROR(ROUND($G$31*$G$36*$G$40,2),0)","v":0},{"$f":"IFERROR(IF(OR(EXACT($G$4,Menus!$A$880),EXACT($G$4,Menus!$A$881)),ROUND($H$31*$H$36*$H$40,2),0),0)","v":0},{"$f":"IFERROR(IF(EXACT($G$4,Menus!$A$881),ROUND($I$31*$I$36*$I$40,2),0),0)","v":0}]
["Grand total admissible ($)",null,null,null,null,null,{"$f":"IFERROR(IF(SUM($G$23,$G$36)>1,\"Valider G23;G36\",IF(AND(ISNUMBER($G$19),ISNUMBER($G$30),$G$19<>$G$30),\"Valider G19;G30\",ROUND(SUM($G$43:$G$44),2))),0)","v":0},{"$f":"IFERROR(IF(OR(EXACT($G$4,Menus!$A$880),EXACT($G$4,Menus!$A$881)),IF(SUM($H$23,$H$36)>1,\"Valider H23;H36\",IF(AND(ISNUMBER($H$19),ISNUMBER($H$30),$H$19<>$H$30),\"Valider H19;H30\",ROUND(SUM($H$43:$H$44),2))),0),0)","v":0},{"$f":"IFERROR(IF(EXACT($G$4,Menus!$A$881),IF(SUM($I$23,$I$36)>1,\"Valider I23;I36\",IF(AND(ISNUMBER($I$19),ISNUMBER($I$30),$I$19<>$I$30),\"Valider I19;I30\",ROUND(SUM($I$43:$I$44),2))),0),0)","v":0}]
[]
["Section réservée à l'usage de la Planification"]
["Remarques"]
[]
["J'atteste que les renseignements fournis dans ce document afin de calculer l'aide supplémentaire sont complets et conformes à la vérité, au meilleur de mes connaissances."]
[]
[]
[]
["Nom et prénom de l'ingénieur forestier",null,null,null,null,null,"No de permis"]
[null,null,null,null,null,null,{"$f":"TODAY()","v":"2020-01-07"}]
[]
["Signature de l'ingénieur forestier",null,null,null,null,null,"Date (AAAA-MM-JJ)"]
["Section réservée à l'usage du BGAD"]
["Remarques"]
[]
["J'atteste que les renseignements fournis dans ce document afin de calculer l'aide supplémentaire sont complets et conformes à la vérité, au meilleur de mes connaissances."]
[]
[]
[]
["Nom et prénom de l'ingénieur forestier",null,null,null,null,null,"No de permis"]
[null,null,null,null,null,null,{"$f":"TODAY()","v":"2020-01-07"}]
[]
["Signature de l'ingénieur forestier",null,null,null,null,null,"Date (AAAA-MM-JJ)"]
["Section réservée à l'usage du Ministère"]
["Remarques"]
[]
["J'atteste que les renseignements fournis dans ce document afin de calculer l'aide supplémentaire sont complets et conformes à la vérité, au meilleur de mes connaissances."]
[]
[]
[]
["Nom et prénom de l'ingénieur forestier",null,null,null,null,null,"No de permis"]
[null,null,null,null,null,null,{"$f":"TODAY()","v":"2020-01-07"}]
[]
["Signature de l'ingénieur forestier",null,null,null,null,null,"Date (AAAA-MM-JJ)"]
[null,null,null,null,null,null,null,null,null,null,null,null,null,null,null,null,null,null,null,null,null,null,null,null,null,null,null,null,null,null,null,null,null,null,null,null,null,null,null,null,null,null,null,null,null,null,null,null,null,null,null,null,null,null,null,null,null,null,null,null,null,null,null,null,null,null,null,null,null,null,null,null,null,null,null,null,null,null,null,null,null,null,null,null,null,null,null,null,null,null,null,null,null,null,null,null,null,null,null,null,455,0]
[null,null,null,null,null,null,null,null,null,null,null,null,null,null,null,null,null,null,null,null,null,null,null,null,null,null,null,null,null,null,null,null,null,null,null,null,null,null,null,null,null,null,null,null,null,null,null,null,null,null,null,null,null,null,null,null,null,null,null,null,null,null,null,null,null,null,null,null,null,null,null,null,null,null,null,null,null,null,null,null,null,null,null,null,null,null,null,null,null,null,null,null,null,null,null,null,null,null,null,null,456,0]
[null,null,null,null,null,null,null,null,null,null,null,null,null,null,null,null,null,null,null,null,null,null,null,null,null,null,null,null,null,null,null,null,null,null,null,null,null,null,null,null,null,null,null,null,null,null,null,null,null,null,null,null,null,null,null,null,null,null,null,null,null,null,null,null,null,null,null,null,null,null,null,null,null,null,null,null,null,null,null,null,null,null,null,null,null,null,null,null,null,null,null,null,null,null,null,null,null,null,null,null,457,0]
[null,null,null,null,null,null,null,null,null,null,null,null,null,null,null,null,null,null,null,null,null,null,null,null,null,null,null,null,null,null,null,null,null,null,null,null,null,null,null,null,null,null,null,null,null,null,null,null,null,null,null,null,null,null,null,null,null,null,null,null,null,null,null,null,null,null,null,null,null,null,null,null,null,null,null,null,null,null,null,null,null,null,null,null,null,null,null,null,null,null,null,null,null,null,null,null,null,null,null,null,458,60]
[null,null,null,null,null,null,null,null,null,null,null,null,null,null,null,null,null,null,null,null,null,null,null,null,null,null,null,null,null,null,null,null,null,null,null,null,null,null,null,null,null,null,null,null,null,null,null,null,null,null,null,null,null,null,null,null,null,null,null,null,null,null,null,null,null,null,null,null,null,null,null,null,null,null,null,null,null,null,null,null,null,null,null,null,null,null,null,null,null,null,null,null,null,null,null,null,null,null,null,null,459,60]
[null,null,null,null,null,null,null,null,null,null,null,null,null,null,null,null,null,null,null,null,null,null,null,null,null,null,null,null,null,null,null,null,null,null,null,null,null,null,null,null,null,null,null,null,null,null,null,null,null,null,null,null,null,null,null,null,null,null,null,null,null,null,null,null,null,null,null,null,null,null,null,null,null,null,null,null,null,null,null,null,null,null,null,null,null,null,null,null,null,null,null,null,null,null,null,null,null,null,null,null,460,200]
[null,null,null,null,null,null,null,null,null,null,null,null,null,null,null,null,null,null,null,null,null,null,null,null,null,null,null,null,null,null,null,null,null,null,null,null,null,null,null,null,null,null,null,null,null,null,null,null,null,null,null,null,null,null,null,null,null,null,null,null,null,null,null,null,null,null,null,null,null,null,null,null,null,null,null,null,null,null,null,null,null,null,null,null,null,null,null,null,null,null,null,null,null,null,null,null,null,null,null,null,461,240]
[null,null,null,null,null,null,null,null,null,null,null,null,null,null,null,null,null,null,null,null,null,null,null,null,null,null,null,null,null,null,null,null,null,null,null,null,null,null,null,null,null,null,null,null,null,null,null,null,null,null,null,null,null,null,null,null,null,null,null,null,null,null,null,null,null,null,null,null,null,null,null,null,null,null,null,null,null,null,null,null,null,null,null,null,null,null,null,null,null,null,null,null,null,null,null,null,null,null,null,null,551,0]
[null,null,null,null,null,null,null,null,null,null,null,null,null,null,null,null,null,null,null,null,null,null,null,null,null,null,null,null,null,null,null,null,null,null,null,null,null,null,null,null,null,null,null,null,null,null,null,null,null,null,null,null,null,null,null,null,null,null,null,null,null,null,null,null,null,null,null,null,null,null,null,null,null,null,null,null,null,null,null,null,null,null,null,null,null,null,null,null,null,null,null,null,null,null,null,null,null,null,null,null,650,0]
[null,null,null,null,null,null,null,null,null,null,null,null,null,null,null,null,null,null,null,null,null,null,null,null,null,null,null,null,null,null,null,null,null,null,null,null,null,null,null,null,null,null,null,null,null,null,null,null,null,null,null,null,null,null,null,null,null,null,null,null,null,null,null,null,null,null,null,null,null,null,null,null,null,null,null,null,null,null,null,null,null,null,null,null,null,null,null,null,null,null,null,null,null,null,null,null,null,null,null,null,651,40]
[null,null,null,null,null,null,null,null,null,null,null,null,null,null,null,null,null,null,null,null,null,null,null,null,null,null,null,null,null,null,null,null,null,null,null,null,null,null,null,null,null,null,null,null,null,null,null,null,null,null,null,null,null,null,null,null,null,null,null,null,null,null,null,null,null,null,null,null,null,null,null,null,null,null,null,null,null,null,null,null,null,null,null,null,null,null,null,null,null,null,null,null,null,null,null,null,null,null,null,null,652,200]
[null,null,null,null,null,null,null,null,null,null,null,null,null,null,null,null,null,null,null,null,null,null,null,null,null,null,null,null,null,null,null,null,null,null,null,null,null,null,null,null,null,null,null,null,null,null,null,null,null,null,null,null,null,null,null,null,null,null,null,null,null,null,null,null,null,null,null,null,null,null,null,null,null,null,null,null,null,null,null,null,null,null,null,null,null,null,null,null,null,null,null,null,null,null,null,null,null,null,null,null,653,140]
[null,null,null,null,null,null,null,null,null,null,null,null,null,null,null,null,null,null,null,null,null,null,null,null,null,null,null,null,null,null,null,null,null,null,null,null,null,null,null,null,null,null,null,null,null,null,null,null,null,null,null,null,null,null,null,null,null,null,null,null,null,null,null,null,null,null,null,null,null,null,null,null,null,null,null,null,null,null,null,null,null,null,null,null,null,null,null,null,null,null,null,null,null,null,null,null,null,null,null,null,654,200]
[null,null,null,null,null,null,null,null,null,null,null,null,null,null,null,null,null,null,null,null,null,null,null,null,null,null,null,null,null,null,null,null,null,null,null,null,null,null,null,null,null,null,null,null,null,null,null,null,null,null,null,null,null,null,null,null,null,null,null,null,null,null,null,null,null,null,null,null,null,null,null,null,null,null,null,null,null,null,null,null,null,null,null,null,null,null,null,null,null,null,null,null,null,null,null,null,null,null,null,null,655,40]
[null,null,null,null,null,null,null,null,null,null,null,null,null,null,null,null,null,null,null,null,null,null,null,null,null,null,null,null,null,null,null,null,null,null,null,null,null,null,null,null,null,null,null,null,null,null,null,null,null,null,null,null,null,null,null,null,null,null,null,null,null,null,null,null,null,null,null,null,null,null,null,null,null,null,null,null,null,null,null,null,null,null,null,null,null,null,null,null,null,null,null,null,null,null,null,null,null,null,null,null,656,140]
[null,null,null,null,null,null,null,null,null,null,null,null,null,null,null,null,null,null,null,null,null,null,null,null,null,null,null,null,null,null,null,null,null,null,null,null,null,null,null,null,null,null,null,null,null,null,null,null,null,null,null,null,null,null,null,null,null,null,null,null,null,null,null,null,null,null,null,null,null,null,null,null,null,null,null,null,null,null,null,null,null,null,null,null,null,null,null,null,null,null,null,null,null,null,null,null,null,null,null,null,657,140]
[null,null,null,null,null,null,null,null,null,null,null,null,null,null,null,null,null,null,null,null,null,null,null,null,null,null,null,null,null,null,null,null,null,null,null,null,null,null,null,null,null,null,null,null,null,null,null,null,null,null,null,null,null,null,null,null,null,null,null,null,null,null,null,null,null,null,null,null,null,null,null,null,null,null,null,null,null,null,null,null,null,null,null,null,null,null,null,null,null,null,null,null,null,null,null,null,null,null,null,null,658,220]
[null,null,null,null,null,null,null,null,null,null,null,null,null,null,null,null,null,null,null,null,null,null,null,null,null,null,null,null,null,null,null,null,null,null,null,null,null,null,null,null,null,null,null,null,null,null,null,null,null,null,null,null,null,null,null,null,null,null,null,null,null,null,null,null,null,null,null,null,null,null,null,null,null,null,null,null,null,null,null,null,null,null,null,null,null,null,null,null,null,null,null,null,null,null,null,null,null,null,null,null,659,280]
[null,null,null,null,null,null,null,null,null,null,null,null,null,null,null,null,null,null,null,null,null,null,null,null,null,null,null,null,null,null,null,null,null,null,null,null,null,null,null,null,null,null,null,null,null,null,null,null,null,null,null,null,null,null,null,null,null,null,null,null,null,null,null,null,null,null,null,null,null,null,null,null,null,null,null,null,null,null,null,null,null,null,null,null,null,null,null,null,null,null,null,null,null,null,null,null,null,null,null,null,660,160]
[null,null,null,null,null,null,null,null,null,null,null,null,null,null,null,null,null,null,null,null,null,null,null,null,null,null,null,null,null,null,null,null,null,null,null,null,null,null,null,null,null,null,null,null,null,null,null,null,null,null,null,null,null,null,null,null,null,null,null,null,null,null,null,null,null,null,null,null,null,null,null,null,null,null,null,null,null,null,null,null,null,null,null,null,null,null,null,null,null,null,null,null,null,null,null,null,null,null,null,null,661,40]
[null,null,null,null,null,null,null,null,null,null,null,null,null,null,null,null,null,null,null,null,null,null,null,null,null,null,null,null,null,null,null,null,null,null,null,null,null,null,null,null,null,null,null,null,null,null,null,null,null,null,null,null,null,null,null,null,null,null,null,null,null,null,null,null,null,null,null,null,null,null,null,null,null,null,null,null,null,null,null,null,null,null,null,null,null,null,null,null,null,null,null,null,null,null,null,null,null,null,null,null,662,0]
[null,null,null,null,null,null,null,null,null,null,null,null,null,null,null,null,null,null,null,null,null,null,null,null,null,null,null,null,null,null,null,null,null,null,null,null,null,null,null,null,null,null,null,null,null,null,null,null,null,null,null,null,null,null,null,null,null,null,null,null,null,null,null,null,null,null,null,null,null,null,null,null,null,null,null,null,null,null,null,null,null,null,null,null,null,null,null,null,null,null,null,null,null,null,null,null,null,null,null,null,750,0]
[null,null,null,null,null,null,null,null,null,null,null,null,null,null,null,null,null,null,null,null,null,null,null,null,null,null,null,null,null,null,null,null,null,null,null,null,null,null,null,null,null,null,null,null,null,null,null,null,null,null,null,null,null,null,null,null,null,null,null,null,null,null,null,null,null,null,null,null,null,null,null,null,null,null,null,null,null,null,null,null,null,null,null,null,null,null,null,null,null,null,null,null,null,null,null,null,null,null,null,null,751,40]
[null,null,null,null,null,null,null,null,null,null,null,null,null,null,null,null,null,null,null,null,null,null,null,null,null,null,null,null,null,null,null,null,null,null,null,null,null,null,null,null,null,null,null,null,null,null,null,null,null,null,null,null,null,null,null,null,null,null,null,null,null,null,null,null,null,null,null,null,null,null,null,null,null,null,null,null,null,null,null,null,null,null,null,null,null,null,null,null,null,null,null,null,null,null,null,null,null,null,null,null,752,220]
[null,null,null,null,null,null,null,null,null,null,null,null,null,null,null,null,null,null,null,null,null,null,null,null,null,null,null,null,null,null,null,null,null,null,null,null,null,null,null,null,null,null,null,null,null,null,null,null,null,null,null,null,null,null,null,null,null,null,null,null,null,null,null,null,null,null,null,null,null,null,null,null,null,null,null,null,null,null,null,null,null,null,null,null,null,null,null,null,null,null,null,null,null,null,null,null,null,null,null,null,753,280]
[null,null,null,null,null,null,null,null,null,null,null,null,null,null,null,null,null,null,null,null,null,null,null,null,null,null,null,null,null,null,null,null,null,null,null,null,null,null,null,null,null,null,null,null,null,null,null,null,null,null,null,null,null,null,null,null,null,null,null,null,null,null,null,null,null,null,null,null,null,null,null,null,null,null,null,null,null,null,null,null,null,null,null,null,null,null,null,null,null,null,null,null,null,null,null,null,null,null,null,null,754,80]
[null,null,null,null,null,null,null,null,null,null,null,null,null,null,null,null,null,null,null,null,null,null,null,null,null,null,null,null,null,null,null,null,null,null,null,null,null,null,null,null,null,null,null,null,null,null,null,null,null,null,null,null,null,null,null,null,null,null,null,null,null,null,null,null,null,null,null,null,null,null,null,null,null,null,null,null,null,null,null,null,null,null,null,null,null,null,null,null,null,null,null,null,null,null,null,null,null,null,null,null,755,60]
[null,null,null,null,null,null,null,null,null,null,null,null,null,null,null,null,null,null,null,null,null,null,null,null,null,null,null,null,null,null,null,null,null,null,null,null,null,null,null,null,null,null,null,null,null,null,null,null,null,null,null,null,null,null,null,null,null,null,null,null,null,null,null,null,null,null,null,null,null,null,null,null,null,null,null,null,null,null,null,null,null,null,null,null,null,null,null,null,null,null,null,null,null,null,null,null,null,null,null,null,756,260]
[null,null,null,null,null,null,null,null,null,null,null,null,null,null,null,null,null,null,null,null,null,null,null,null,null,null,null,null,null,null,null,null,null,null,null,null,null,null,null,null,null,null,null,null,null,null,null,null,null,null,null,null,null,null,null,null,null,null,null,null,null,null,null,null,null,null,null,null,null,null,null,null,null,null,null,null,null,null,null,null,null,null,null,null,null,null,null,null,null,null,null,null,null,null,null,null,null,null,null,null,757,260]
[null,null,null,null,null,null,null,null,null,null,null,null,null,null,null,null,null,null,null,null,null,null,null,null,null,null,null,null,null,null,null,null,null,null,null,null,null,null,null,null,null,null,null,null,null,null,null,null,null,null,null,null,null,null,null,null,null,null,null,null,null,null,null,null,null,null,null,null,null,null,null,null,null,null,null,null,null,null,null,null,null,null,null,null,null,null,null,null,null,null,null,null,null,null,null,null,null,null,null,null,758,280]
[null,null,null,null,null,null,null,null,null,null,null,null,null,null,null,null,null,null,null,null,null,null,null,null,null,null,null,null,null,null,null,null,null,null,null,null,null,null,null,null,null,null,null,null,null,null,null,null,null,null,null,null,null,null,null,null,null,null,null,null,null,null,null,null,null,null,null,null,null,null,null,null,null,null,null,null,null,null,null,null,null,null,null,null,null,null,null,null,null,null,null,null,null,null,null,null,null,null,null,null,850,0]
[null,null,null,null,null,null,null,null,null,null,null,null,null,null,null,null,null,null,null,null,null,null,null,null,null,null,null,null,null,null,null,null,null,null,null,null,null,null,null,null,null,null,null,null,null,null,null,null,null,null,null,null,null,null,null,null,null,null,null,null,null,null,null,null,null,null,null,null,null,null,null,null,null,null,null,null,null,null,null,null,null,null,null,null,null,null,null,null,null,null,null,null,null,null,null,null,null,null,null,null,851,0]
[null,null,null,null,null,null,null,null,null,null,null,null,null,null,null,null,null,null,null,null,null,null,null,null,null,null,null,null,null,null,null,null,null,null,null,null,null,null,null,null,null,null,null,null,null,null,null,null,null,null,null,null,null,null,null,null,null,null,null,null,null,null,null,null,null,null,null,null,null,null,null,null,null,null,null,null,null,null,null,null,null,null,null,null,null,null,null,null,null,null,null,null,null,null,null,null,null,null,null,null,852,0]
[null,null,null,null,null,null,null,null,null,null,null,null,null,null,null,null,null,null,null,null,null,null,null,null,null,null,null,null,null,null,null,null,null,null,null,null,null,null,null,null,null,null,null,null,null,null,null,null,null,null,null,null,null,null,null,null,null,null,null,null,null,null,null,null,null,null,null,null,null,null,null,null,null,null,null,null,null,null,null,null,null,null,null,null,null,null,null,null,null,null,null,null,null,null,null,null,null,null,null,null,853,0]
[null,null,null,null,null,null,null,null,null,null,null,null,null,null,null,null,null,null,null,null,null,null,null,null,null,null,null,null,null,null,null,null,null,null,null,null,null,null,null,null,null,null,null,null,null,null,null,null,null,null,null,null,null,null,null,null,null,null,null,null,null,null,null,null,null,null,null,null,null,null,null,null,null,null,null,null,null,null,null,null,null,null,null,null,null,null,null,null,null,null,null,null,null,null,null,null,null,null,null,null,854,0]
[null,null,null,null,null,null,null,null,null,null,null,null,null,null,null,null,null,null,null,null,null,null,null,null,null,null,null,null,null,null,null,null,null,null,null,null,null,null,null,null,null,null,null,null,null,null,null,null,null,null,null,null,null,null,null,null,null,null,null,null,null,null,null,null,null,null,null,null,null,null,null,null,null,null,null,null,null,null,null,null,null,null,null,null,null,null,null,null,null,null,null,null,null,null,null,null,null,null,null,null,855,0]
[null,null,null,null,null,null,null,null,null,null,null,null,null,null,null,null,null,null,null,null,null,null,null,null,null,null,null,null,null,null,null,null,null,null,null,null,null,null,null,null,null,null,null,null,null,null,null,null,null,null,null,null,null,null,null,null,null,null,null,null,null,null,null,null,null,null,null,null,null,null,null,null,null,null,null,null,null,null,null,null,null,null,null,null,null,null,null,null,null,null,null,null,null,null,null,null,null,null,null,null,856,60]
[null,null,null,null,null,null,null,null,null,null,null,null,null,null,null,null,null,null,null,null,null,null,null,null,null,null,null,null,null,null,null,null,null,null,null,null,null,null,null,null,null,null,null,null,null,null,null,null,null,null,null,null,null,null,null,null,null,null,null,null,null,null,null,null,null,null,null,null,null,null,null,null,null,null,null,null,null,null,null,null,null,null,null,null,null,null,null,null,null,null,null,null,null,null,null,null,null,null,null,null,857,80]
[null,null,null,null,null,null,null,null,null,null,null,null,null,null,null,null,null,null,null,null,null,null,null,null,null,null,null,null,null,null,null,null,null,null,null,null,null,null,null,null,null,null,null,null,null,null,null,null,null,null,null,null,null,null,null,null,null,null,null,null,null,null,null,null,null,null,null,null,null,null,null,null,null,null,null,null,null,null,null,null,null,null,null,null,null,null,null,null,null,null,null,null,null,null,null,null,null,null,null,null,858,100]
[null,null,null,null,null,null,null,null,null,null,null,null,null,null,null,null,null,null,null,null,null,null,null,null,null,null,null,null,null,null,null,null,null,null,null,null,null,null,null,null,null,null,null,null,null,null,null,null,null,null,null,null,null,null,null,null,null,null,null,null,null,null,null,null,null,null,null,null,null,null,null,null,null,null,null,null,null,null,null,null,null,null,null,null,null,null,null,null,null,null,null,null,null,null,null,null,null,null,null,null,859,180]
[null,null,null,null,null,null,null,null,null,null,null,null,null,null,null,null,null,null,null,null,null,null,null,null,null,null,null,null,null,null,null,null,null,null,null,null,null,null,null,null,null,null,null,null,null,null,null,null,null,null,null,null,null,null,null,null,null,null,null,null,null,null,null,null,null,null,null,null,null,null,null,null,null,null,null,null,null,null,null,null,null,null,null,null,null,null,null,null,null,null,null,null,null,null,null,null,null,null,null,null,860,260]
[null,null,null,null,null,null,null,null,null,null,null,null,null,null,null,null,null,null,null,null,null,null,null,null,null,null,null,null,null,null,null,null,null,null,null,null,null,null,null,null,null,null,null,null,null,null,null,null,null,null,null,null,null,null,null,null,null,null,null,null,null,null,null,null,null,null,null,null,null,null,null,null,null,null,null,null,null,null,null,null,null,null,null,null,null,null,null,null,null,null,null,null,null,null,null,null,null,null,null,null,861,240]
[null,null,null,null,null,null,null,null,null,null,null,null,null,null,null,null,null,null,null,null,null,null,null,null,null,null,null,null,null,null,null,null,null,null,null,null,null,null,null,null,null,null,null,null,null,null,null,null,null,null,null,null,null,null,null,null,null,null,null,null,null,null,null,null,null,null,null,null,null,null,null,null,null,null,null,null,null,null,null,null,null,null,null,null,null,null,null,null,null,null,null,null,null,null,null,null,null,null,null,null,862,280]
[null,null,null,null,null,null,null,null,null,null,null,null,null,null,null,null,null,null,null,null,null,null,null,null,null,null,null,null,null,null,null,null,null,null,null,null,null,null,null,null,null,null,null,null,null,null,null,null,null,null,null,null,null,null,null,null,null,null,null,null,null,null,null,null,null,null,null,null,null,null,null,null,null,null,null,null,null,null,null,null,null,null,null,null,null,null,null,null,null,null,null,null,null,null,null,null,null,null,null,null,863,280]
[null,null,null,null,null,null,null,null,null,null,null,null,null,null,null,null,null,null,null,null,null,null,null,null,null,null,null,null,null,null,null,null,null,null,null,null,null,null,null,null,null,null,null,null,null,null,null,null,null,null,null,null,null,null,null,null,null,null,null,null,null,null,null,null,null,null,null,null,null,null,null,null,null,null,null,null,null,null,null,null,null,null,null,null,null,null,null,null,null,null,null,null,null,null,null,null,null,null,null,null,864,280]
[null,null,null,null,null,null,null,null,null,null,null,null,null,null,null,null,null,null,null,null,null,null,null,null,null,null,null,null,null,null,null,null,null,null,null,null,null,null,null,null,null,null,null,null,null,null,null,null,null,null,null,null,null,null,null,null,null,null,null,null,null,null,null,null,null,null,null,null,null,null,null,null,null,null,null,null,null,null,null,null,null,null,null,null,null,null,null,null,null,null,null,null,null,null,null,null,null,null,null,null,865,280]
[null,null,null,null,null,null,null,null,null,null,null,null,null,null,null,null,null,null,null,null,null,null,null,null,null,null,null,null,null,null,null,null,null,null,null,null,null,null,null,null,null,null,null,null,null,null,null,null,null,null,null,null,null,null,null,null,null,null,null,null,null,null,null,null,null,null,null,null,null,null,null,null,null,null,null,null,null,null,null,null,null,null,null,null,null,null,null,null,null,null,null,null,null,null,null,null,null,null,null,null,866,280]
[null,null,null,null,null,null,null,null,null,null,null,null,null,null,null,null,null,null,null,null,null,null,null,null,null,null,null,null,null,null,null,null,null,null,null,null,null,null,null,null,null,null,null,null,null,null,null,null,null,null,null,null,null,null,null,null,null,null,null,null,null,null,null,null,null,null,null,null,null,null,null,null,null,null,null,null,null,null,null,null,null,null,null,null,null,null,null,null,null,null,null,null,null,null,null,null,null,null,null,null,867,280]
[null,null,null,null,null,null,null,null,null,null,null,null,null,null,null,null,null,null,null,null,null,null,null,null,null,null,null,null,null,null,null,null,null,null,null,null,null,null,null,null,null,null,null,null,null,null,null,null,null,null,null,null,null,null,null,null,null,null,null,null,null,null,null,null,null,null,null,null,null,null,null,null,null,null,null,null,null,null,null,null,null,null,null,null,null,null,null,null,null,null,null,null,null,null,null,null,null,null,null,null,868,280]
[null,null,null,null,null,null,null,null,null,null,null,null,null,null,null,null,null,null,null,null,null,null,null,null,null,null,null,null,null,null,null,null,null,null,null,null,null,null,null,null,null,null,null,null,null,null,null,null,null,null,null,null,null,null,null,null,null,null,null,null,null,null,null,null,null,null,null,null,null,null,null,null,null,null,null,null,null,null,null,null,null,null,null,null,null,null,null,null,null,null,null,null,null,null,null,null,null,null,null,null,869,280]
[null,null,null,null,null,null,null,null,null,null,null,null,null,null,null,null,null,null,null,null,null,null,null,null,null,null,null,null,null,null,null,null,null,null,null,null,null,null,null,null,null,null,null,null,null,null,null,null,null,null,null,null,null,null,null,null,null,null,null,null,null,null,null,null,null,null,null,null,null,null,null,null,null,null,null,null,null,null,null,null,null,null,null,null,null,null,null,null,null,null,null,null,null,null,null,null,null,null,null,null,870,280]
[null,null,null,null,null,null,null,null,null,null,null,null,null,null,null,null,null,null,null,null,null,null,null,null,null,null,null,null,null,null,null,null,null,null,null,null,null,null,null,null,null,null,null,null,null,null,null,null,null,null,null,null,null,null,null,null,null,null,null,null,null,null,null,null,null,null,null,null,null,null,null,null,null,null,null,null,null,null,null,null,null,null,null,null,null,null,null,null,null,null,null,null,null,null,null,null,null,null,null,null,871,280]
[null,null,null,null,null,null,null,null,null,null,null,null,null,null,null,null,null,null,null,null,null,null,null,null,null,null,null,null,null,null,null,null,null,null,null,null,null,null,null,null,null,null,null,null,null,null,null,null,null,null,null,null,null,null,null,null,null,null,null,null,null,null,null,null,null,null,null,null,null,null,null,null,null,null,null,null,null,null,null,null,null,null,null,null,null,null,null,null,null,null,null,null,null,null,null,null,null,null,null,null,872,280]
[null,null,null,null,null,null,null,null,null,null,null,null,null,null,null,null,null,null,null,null,null,null,null,null,null,null,null,null,null,null,null,null,null,null,null,null,null,null,null,null,null,null,null,null,null,null,null,null,null,null,null,null,null,null,null,null,null,null,null,null,null,null,null,null,null,null,null,null,null,null,null,null,null,null,null,null,null,null,null,null,null,null,null,null,null,null,null,null,null,null,null,null,null,null,null,null,null,null,null,null,873,280]
[null,null,null,null,null,null,null,null,null,null,null,null,null,null,null,null,null,null,null,null,null,null,null,null,null,null,null,null,null,null,null,null,null,null,null,null,null,null,null,null,null,null,null,null,null,null,null,null,null,null,null,null,null,null,null,null,null,null,null,null,null,null,null,null,null,null,null,null,null,null,null,null,null,null,null,null,null,null,null,null,null,null,null,null,null,null,null,null,null,null,null,null,null,null,null,null,null,null,null,null,874,280]
[null,null,null,null,null,null,null,null,null,null,null,null,null,null,null,null,null,null,null,null,null,null,null,null,null,null,null,null,null,null,null,null,null,null,null,null,null,null,null,null,null,null,null,null,null,null,null,null,null,null,null,null,null,null,null,null,null,null,null,null,null,null,null,null,null,null,null,null,null,null,null,null,null,null,null,null,null,null,null,null,null,null,null,null,null,null,null,null,null,null,null,null,null,null,null,null,null,null,null,null,875,280]
[null,null,null,null,null,null,null,null,null,null,null,null,null,null,null,null,null,null,null,null,null,null,null,null,null,null,null,null,null,null,null,null,null,null,null,null,null,null,null,null,null,null,null,null,null,null,null,null,null,null,null,null,null,null,null,null,null,null,null,null,null,null,null,null,null,null,null,null,null,null,null,null,null,null,null,null,null,null,null,null,null,null,null,null,null,null,null,null,null,null,null,null,null,null,null,null,null,null,null,null,876,280]
[null,null,null,null,null,null,null,null,null,null,null,null,null,null,null,null,null,null,null,null,null,null,null,null,null,null,null,null,null,null,null,null,null,null,null,null,null,null,null,null,null,null,null,null,null,null,null,null,null,null,null,null,null,null,null,null,null,null,null,null,null,null,null,null,null,null,null,null,null,null,null,null,null,null,null,null,null,null,null,null,null,null,null,null,null,null,null,null,null,null,null,null,null,null,null,null,null,null,null,null,877,280]
[null,null,null,null,null,null,null,null,null,null,null,null,null,null,null,null,null,null,null,null,null,null,null,null,null,null,null,null,null,null,null,null,null,null,null,null,null,null,null,null,null,null,null,null,null,null,null,null,null,null,null,null,null,null,null,null,null,null,null,null,null,null,null,null,null,null,null,null,null,null,null,null,null,null,null,null,null,null,null,null,null,null,null,null,null,null,null,null,null,null,null,null,null,null,null,null,null,null,null,null,878,280]
[null,null,null,null,null,null,null,null,null,null,null,null,null,null,null,null,null,null,null,null,null,null,null,null,null,null,null,null,null,null,null,null,null,null,null,null,null,null,null,null,null,null,null,null,null,null,null,null,null,null,null,null,null,null,null,null,null,null,null,null,null,null,null,null,null,null,null,null,null,null,null,null,null,null,null,null,null,null,null,null,null,null,null,null,null,null,null,null,null,null,null,null,null,null,null,null,null,null,null,null,879,280]
[null,null,null,null,null,null,null,null,null,null,null,null,null,null,null,null,null,null,null,null,null,null,null,null,null,null,null,null,null,null,null,null,null,null,null,null,null,null,null,null,null,null,null,null,null,null,null,null,null,null,null,null,null,null,null,null,null,null,null,null,null,null,null,null,null,null,null,null,null,null,null,null,null,null,null,null,null,null,null,null,null,null,null,null,null,null,null,null,null,null,null,null,null,null,null,null,null,null,null,null,880,280]
[null,null,null,null,null,null,null,null,null,null,null,null,null,null,null,null,null,null,null,null,null,null,null,null,null,null,null,null,null,null,null,null,null,null,null,null,null,null,null,null,null,null,null,null,null,null,null,null,null,null,null,null,null,null,null,null,null,null,null,null,null,null,null,null,null,null,null,null,null,null,null,null,null,null,null,null,null,null,null,null,null,null,null,null,null,null,null,null,null,null,null,null,null,null,null,null,null,null,null,null,881,280]
[null,null,null,null,null,null,null,null,null,null,null,null,null,null,null,null,null,null,null,null,null,null,null,null,null,null,null,null,null,null,null,null,null,null,null,null,null,null,null,null,null,null,null,null,null,null,null,null,null,null,null,null,null,null,null,null,null,null,null,null,null,null,null,null,null,null,null,null,null,null,null,null,null,null,null,null,null,null,null,null,null,null,null,null,null,null,null,null,null,null,null,null,null,null,null,null,null,null,null,null,882,280]
[null,null,null,null,null,null,null,null,null,null,null,null,null,null,null,null,null,null,null,null,null,null,null,null,null,null,null,null,null,null,null,null,null,null,null,null,null,null,null,null,null,null,null,null,null,null,null,null,null,null,null,null,null,null,null,null,null,null,null,null,null,null,null,null,null,null,null,null,null,null,null,null,null,null,null,null,null,null,null,null,null,null,null,null,null,null,null,null,null,null,null,null,null,null,null,null,null,null,null,null,883,280]
[null,null,null,null,null,null,null,null,null,null,null,null,null,null,null,null,null,null,null,null,null,null,null,null,null,null,null,null,null,null,null,null,null,null,null,null,null,null,null,null,null,null,null,null,null,null,null,null,null,null,null,null,null,null,null,null,null,null,null,null,null,null,null,null,null,null,null,null,null,null,null,null,null,null,null,null,null,null,null,null,null,null,null,null,null,null,null,null,null,null,null,null,null,null,null,null,null,null,null,null,884,280]
[null,null,null,null,null,null,null,null,null,null,null,null,null,null,null,null,null,null,null,null,null,null,null,null,null,null,null,null,null,null,null,null,null,null,null,null,null,null,null,null,null,null,null,null,null,null,null,null,null,null,null,null,null,null,null,null,null,null,null,null,null,null,null,null,null,null,null,null,null,null,null,null,null,null,null,null,null,null,null,null,null,null,null,null,null,null,null,null,null,null,null,null,null,null,null,null,null,null,null,null,885,280]
[null,null,null,null,null,null,null,null,null,null,null,null,null,null,null,null,null,null,null,null,null,null,null,null,null,null,null,null,null,null,null,null,null,null,null,null,null,null,null,null,null,null,null,null,null,null,null,null,null,null,null,null,null,null,null,null,null,null,null,null,null,null,null,null,null,null,null,null,null,null,null,null,null,null,null,null,null,null,null,null,null,null,null,null,null,null,null,null,null,null,null,null,null,null,null,null,null,null,null,null,886,280]
[null,null,null,null,null,null,null,null,null,null,null,null,null,null,null,null,null,null,null,null,null,null,null,null,null,null,null,null,null,null,null,null,null,null,null,null,null,null,null,null,null,null,null,null,null,null,null,null,null,null,null,null,null,null,null,null,null,null,null,null,null,null,null,null,null,null,null,null,null,null,null,null,null,null,null,null,null,null,null,null,null,null,null,null,null,null,null,null,null,null,null,null,null,null,null,null,null,null,null,null,887,280]
[null,null,null,null,null,null,null,null,null,null,null,null,null,null,null,null,null,null,null,null,null,null,null,null,null,null,null,null,null,null,null,null,null,null,null,null,null,null,null,null,null,null,null,null,null,null,null,null,null,null,null,null,null,null,null,null,null,null,null,null,null,null,null,null,null,null,null,null,null,null,null,null,null,null,null,null,null,null,null,null,null,null,null,null,null,null,null,null,null,null,null,null,null,null,null,null,null,null,null,null,888,280]
[null,null,null,null,null,null,null,null,null,null,null,null,null,null,null,null,null,null,null,null,null,null,null,null,null,null,null,null,null,null,null,null,null,null,null,null,null,null,null,null,null,null,null,null,null,null,null,null,null,null,null,null,null,null,null,null,null,null,null,null,null,null,null,null,null,null,null,null,null,null,null,null,null,null,null,null,null,null,null,null,null,null,null,null,null,null,null,null,null,null,null,null,null,null,null,null,null,null,null,null,889,240]
[null,null,null,null,null,null,null,null,null,null,null,null,null,null,null,null,null,null,null,null,null,null,null,null,null,null,null,null,null,null,null,null,null,null,null,null,null,null,null,null,null,null,null,null,null,null,null,null,null,null,null,null,null,null,null,null,null,null,null,null,null,null,null,null,null,null,null,null,null,null,null,null,null,null,null,null,null,null,null,null,null,null,null,null,null,null,null,null,null,null,null,null,null,null,null,null,null,null,null,null,890,280]
[null,null,null,null,null,null,null,null,null,null,null,null,null,null,null,null,null,null,null,null,null,null,null,null,null,null,null,null,null,null,null,null,null,null,null,null,null,null,null,null,null,null,null,null,null,null,null,null,null,null,null,null,null,null,null,null,null,null,null,null,null,null,null,null,null,null,null,null,null,null,null,null,null,null,null,null,null,null,null,null,null,null,null,null,null,null,null,null,null,null,null,null,null,null,null,null,null,null,null,null,891,280]
[null,null,null,null,null,null,null,null,null,null,null,null,null,null,null,null,null,null,null,null,null,null,null,null,null,null,null,null,null,null,null,null,null,null,null,null,null,null,null,null,null,null,null,null,null,null,null,null,null,null,null,null,null,null,null,null,null,null,null,null,null,null,null,null,null,null,null,null,null,null,null,null,null,null,null,null,null,null,null,null,null,null,null,null,null,null,null,null,null,null,null,null,null,null,null,null,null,null,null,null,892,280]
[null,null,null,null,null,null,null,null,null,null,null,null,null,null,null,null,null,null,null,null,null,null,null,null,null,null,null,null,null,null,null,null,null,null,null,null,null,null,null,null,null,null,null,null,null,null,null,null,null,null,null,null,null,null,null,null,null,null,null,null,null,null,null,null,null,null,null,null,null,null,null,null,null,null,null,null,null,null,null,null,null,null,null,null,null,null,null,null,null,null,null,null,null,null,null,null,null,null,null,null,950,280]
[null,null,null,null,null,null,null,null,null,null,null,null,null,null,null,null,null,null,null,null,null,null,null,null,null,null,null,null,null,null,null,null,null,null,null,null,null,null,null,null,null,null,null,null,null,null,null,null,null,null,null,null,null,null,null,null,null,null,null,null,null,null,null,null,null,null,null,null,null,null,null,null,null,null,null,null,null,null,null,null,null,null,null,null,null,null,null,null,null,null,null,null,null,null,null,null,null,null,null,null,951,280]
[null,null,null,null,null,null,null,null,null,null,null,null,null,null,null,null,null,null,null,null,null,null,null,null,null,null,null,null,null,null,null,null,null,null,null,null,null,null,null,null,null,null,null,null,null,null,null,null,null,null,null,null,null,null,null,null,null,null,null,null,null,null,null,null,null,null,null,null,null,null,null,null,null,null,null,null,null,null,null,null,null,null,null,null,null,null,null,null,null,null,null,null,null,null,null,null,null,null,null,null,952,280]
[null,null,null,null,null,null,null,null,null,null,null,null,null,null,null,null,null,null,null,null,null,null,null,null,null,null,null,null,null,null,null,null,null,null,null,null,null,null,null,null,null,null,null,null,null,null,null,null,null,null,null,null,null,null,null,null,null,null,null,null,null,null,null,null,null,null,null,null,null,null,null,null,null,null,null,null,null,null,null,null,null,null,null,null,null,null,null,null,null,null,null,null,null,null,null,null,null,null,null,null,953,280]
[null,null,null,null,null,null,null,null,null,null,null,null,null,null,null,null,null,null,null,null,null,null,null,null,null,null,null,null,null,null,null,null,null,null,null,null,null,null,null,null,null,null,null,null,null,null,null,null,null,null,null,null,null,null,null,null,null,null,null,null,null,null,null,null,null,null,null,null,null,null,null,null,null,null,null,null,null,null,null,null,null,null,null,null,null,null,null,null,null,null,null,null,null,null,null,null,null,null,null,null,954,280]
[null,null,null,null,null,null,null,null,null,null,null,null,null,null,null,null,null,null,null,null,null,null,null,null,null,null,null,null,null,null,null,null,null,null,null,null,null,null,null,null,null,null,null,null,null,null,null,null,null,null,null,null,null,null,null,null,null,null,null,null,null,null,null,null,null,null,null,null,null,null,null,null,null,null,null,null,null,null,null,null,null,null,null,null,null,null,null,null,null,null,null,null,null,null,null,null,null,null,null,null,955,280]
[null,null,null,null,null,null,null,null,null,null,null,null,null,null,null,null,null,null,null,null,null,null,null,null,null,null,null,null,null,null,null,null,null,null,null,null,null,null,null,null,null,null,null,null,null,null,null,null,null,null,null,null,null,null,null,null,null,null,null,null,null,null,null,null,null,null,null,null,null,null,null,null,null,null,null,null,null,null,null,null,null,null,null,null,null,null,null,null,null,null,null,null,null,null,null,null,null,null,null,null,956,280]
[null,null,null,null,null,null,null,null,null,null,null,null,null,null,null,null,null,null,null,null,null,null,null,null,null,null,null,null,null,null,null,null,null,null,null,null,null,null,null,null,null,null,null,null,null,null,null,null,null,null,null,null,null,null,null,null,null,null,null,null,null,null,null,null,null,null,null,null,null,null,null,null,null,null,null,null,null,null,null,null,null,null,null,null,null,null,null,null,null,null,null,null,null,null,null,null,null,null,null,null,957,280]
[null,null,null,null,null,null,null,null,null,null,null,null,null,null,null,null,null,null,null,null,null,null,null,null,null,null,null,null,null,null,null,null,null,null,null,null,null,null,null,null,null,null,null,null,null,null,null,null,null,null,null,null,null,null,null,null,null,null,null,null,null,null,null,null,null,null,null,null,null,null,null,null,null,null,null,null,null,null,null,null,null,null,null,null,null,null,null,null,null,null,null,null,null,null,null,null,null,null,null,null,960,280]
[null,null,null,null,null,null,null,null,null,null,null,null,null,null,null,null,null,null,null,null,null,null,null,null,null,null,null,null,null,null,null,null,null,null,null,null,null,null,null,null,null,null,null,null,null,null,null,null,null,null,null,null,null,null,null,null,null,null,null,null,null,null,null,null,null,null,null,null,null,null,null,null,null,null,null,null,null,null,null,null,null,null,null,null,null,null,null,null,null,null,null,null,null,null,null,null,null,null,null,null,961,280]
[null,null,null,null,null,null,null,null,null,null,null,null,null,null,null,null,null,null,null,null,null,null,null,null,null,null,null,null,null,null,null,null,null,null,null,null,null,null,null,null,null,null,null,null,null,null,null,null,null,null,null,null,null,null,null,null,null,null,null,null,null,null,null,null,null,null,null,null,null,null,null,null,null,null,null,null,null,null,null,null,null,null,null,null,null,null,null,null,null,null,null,null,null,null,null,null,null,null,null,null,962,280]
[null,null,null,null,null,null,null,null,null,null,null,null,null,null,null,null,null,null,null,null,null,null,null,null,null,null,null,null,null,null,null,null,null,null,null,null,null,null,null,null,null,null,null,null,null,null,null,null,null,null,null,null,null,null,null,null,null,null,null,null,null,null,null,null,null,null,null,null,null,null,null,null,null,null,null,null,null,null,null,null,null,null,null,null,null,null,null,null,null,null,null,null,null,null,null,null,null,null,null,null,963,280]
[null,null,null,null,null,null,null,null,null,null,null,null,null,null,null,null,null,null,null,null,null,null,null,null,null,null,null,null,null,null,null,null,null,null,null,null,null,null,null,null,null,null,null,null,null,null,null,null,null,null,null,null,null,null,null,null,null,null,null,null,null,null,null,null,null,null,null,null,null,null,null,null,null,null,null,null,null,null,null,null,null,null,null,null,null,null,null,null,null,null,null,null,null,null,null,null,null,null,null,null,964,280]
[null,null,null,null,null,null,null,null,null,null,null,null,null,null,null,null,null,null,null,null,null,null,null,null,null,null,null,null,null,null,null,null,null,null,null,null,null,null,null,null,null,null,null,null,null,null,null,null,null,null,null,null,null,null,null,null,null,null,null,null,null,null,null,null,null,null,null,null,null,null,null,null,null,null,null,null,null,null,null,null,null,null,null,null,null,null,null,null,null,null,null,null,null,null,null,null,null,null,null,null,965,280]
[null,null,null,null,null,null,null,null,null,null,null,null,null,null,null,null,null,null,null,null,null,null,null,null,null,null,null,null,null,null,null,null,null,null,null,null,null,null,null,null,null,null,null,null,null,null,null,null,null,null,null,null,null,null,null,null,null,null,null,null,null,null,null,null,null,null,null,null,null,null,null,null,null,null,null,null,null,null,null,null,null,null,null,null,null,null,null,null,null,null,null,null,null,null,null,null,null,null,null,null,966,280]
[null,null,null,null,null,null,null,null,null,null,null,null,null,null,null,null,null,null,null,null,null,null,null,null,null,null,null,null,null,null,null,null,null,null,null,null,null,null,null,null,null,null,null,null,null,null,null,null,null,null,null,null,null,null,null,null,null,null,null,null,null,null,null,null,null,null,null,null,null,null,null,null,null,null,null,null,null,null,null,null,null,null,null,null,null,null,null,null,null,null,null,null,null,null,null,null,null,null,null,null,967,280]
[null,null,null,null,null,null,null,null,null,null,null,null,null,null,null,null,null,null,null,null,null,null,null,null,null,null,null,null,null,null,null,null,null,null,null,null,null,null,null,null,null,null,null,null,null,null,null,null,null,null,null,null,null,null,null,null,null,null,null,null,null,null,null,null,null,null,null,null,null,null,null,null,null,null,null,null,null,null,null,null,null,null,null,null,null,null,null,null,null,null,null,null,null,null,null,null,null,null,null,null,970,280]
[null,null,null,null,null,null,null,null,null,null,null,null,null,null,null,null,null,null,null,null,null,null,null,null,null,null,null,null,null,null,null,null,null,null,null,null,null,null,null,null,null,null,null,null,null,null,null,null,null,null,null,null,null,null,null,null,null,null,null,null,null,null,null,null,null,null,null,null,null,null,null,null,null,null,null,null,null,null,null,null,null,null,null,null,null,null,null,null,null,null,null,null,null,null,null,null,null,null,null,null,980,280]
[null,null,null,null,null,null,null,null,null,null,null,null,null,null,null,null,null,null,null,null,null,null,null,null,null,null,null,null,null,null,null,null,null,null,null,null,null,null,null,null,null,null,null,null,null,null,null,null,null,null,null,null,null,null,null,null,null,null,null,null,null,null,null,null,null,null,null,null,null,null,null,null,null,null,null,null,null,null,null,null,null,null,null,null,null,null,null,null,null,null,null,null,null,null,null,null,null,null,null,null,981,280]
[null,null,null,null,null,null,null,null,null,null,null,null,null,null,null,null,null,null,null,null,null,null,null,null,null,null,null,null,null,null,null,null,null,null,null,null,null,null,null,null,null,null,null,null,null,null,null,null,null,null,null,null,null,null,null,null,null,null,null,null,null,null,null,null,null,null,null,null,null,null,null,null,null,null,null,null,null,null,null,null,null,null,null,null,null,null,null,null,null,null,null,null,null,null,null,null,null,null,null,null,982,280]
[null,null,null,null,null,null,null,null,null,null,null,null,null,null,null,null,null,null,null,null,null,null,null,null,null,null,null,null,null,null,null,null,null,null,null,null,null,null,null,null,null,null,null,null,null,null,null,null,null,null,null,null,null,null,null,null,null,null,null,null,null,null,null,null,null,null,null,null,null,null,null,null,null,null,null,null,null,null,null,null,null,null,null,null,null,null,null,null,null,null,null,null,null,null,null,null,null,null,null,null,983,280]
[null,null,null,null,null,null,null,null,null,null,null,null,null,null,null,null,null,null,null,null,null,null,null,null,null,null,null,null,null,null,null,null,null,null,null,null,null,null,null,null,null,null,null,null,null,null,null,null,null,null,null,null,null,null,null,null,null,null,null,null,null,null,null,null,null,null,null,null,null,null,null,null,null,null,null,null,null,null,null,null,null,null,null,null,null,null,null,null,null,null,null,null,null,null,null,null,null,null,null,null,984,280]
[null,null,null,null,null,null,null,null,null,null,null,null,null,null,null,null,null,null,null,null,null,null,null,null,null,null,null,null,null,null,null,null,null,null,null,null,null,null,null,null,null,null,null,null,null,null,null,null,null,null,null,null,null,null,null,null,null,null,null,null,null,null,null,null,null,null,null,null,null,null,null,null,null,null,null,null,null,null,null,null,null,null,null,null,null,null,null,null,null,null,null,null,null,null,null,null,null,null,null,null,985,280]
[null,null,null,null,null,null,null,null,null,null,null,null,null,null,null,null,null,null,null,null,null,null,null,null,null,null,null,null,null,null,null,null,null,null,null,null,null,null,null,null,null,null,null,null,null,null,null,null,null,null,null,null,null,null,null,null,null,null,null,null,null,null,null,null,null,null,null,null,null,null,null,null,null,null,null,null,null,null,null,null,null,null,null,null,null,null,null,null,null,null,null,null,null,null,null,null,null,null,null,null,986,280]
[null,null,null,null,null,null,null,null,null,null,null,null,null,null,null,null,null,null,null,null,null,null,null,null,null,null,null,null,null,null,null,null,null,null,null,null,null,null,null,null,null,null,null,null,null,null,null,null,null,null,null,null,null,null,null,null,null,null,null,null,null,null,null,null,null,null,null,null,null,null,null,null,null,null,null,null,null,null,null,null,null,null,null,null,null,null,null,null,null,null,null,null,null,null,null,null,null,null,null,null,987,280]
[null,null,null,null,null,null,null,null,null,null,null,null,null,null,null,null,null,null,null,null,null,null,null,null,null,null,null,null,null,null,null,null,null,null,null,null,null,null,null,null,null,null,null,null,null,null,null,null,null,null,null,null,null,null,null,null,null,null,null,null,null,null,null,null,null,null,null,null,null,null,null,null,null,null,null,null,null,null,null,null,null,null,null,null,null,null,null,null,null,null,null,null,null,null,null,null,null,null,null,null,990,280]
[null,null,null,null,null,null,null,null,null,null,null,null,null,null,null,null,null,null,null,null,null,null,null,null,null,null,null,null,null,null,null,null,null,null,null,null,null,null,null,null,null,null,null,null,null,null,null,null,null,null,null,null,null,null,null,null,null,null,null,null,null,null,null,null,null,null,null,null,null,null,null,null,null,null,null,null,null,null,null,null,null,null,null,null,null,null,null,null,null,null,null,null,null,null,null,null,null,null,null,null,995,0]

{"sheet":"Martelage","index":3,"n_rows":96,"n_cols":7,"rows_kept":96,"cut":false,"hidden":true,"merged":[[1,0,1,6],[87,3,87,4],[5,0,5,5],[0,0,0,6],[3,0,3,6],[4,0,4,5],[2,0,2,5],[17,0,17,5],[6,0,6,5],[7,0,7,5],[8,0,8,5],[9,0,9,5],[10,0,10,6],[11,0,11,5],[12,0,12,5],[13,0,13,5],[14,0,14,6],[15,0,15,6],[16,0,16,6],[29,0,29,6],[18,0,18,6],[19,0,19,6],[20,1,20,5],[21,1,21,5],[22,1,22,3],[23,0,23,5],[24,0,24,6],[25,0,25,6],[26,0,26,6],[27,0,27,4],[28,0,28,4],[41,0,41,5],[30,0,30,6],[31,0,31,5],[32,0,32,5],[33,0,33,5],[34,0,34,5],[35,0,35,6],[36,0,36,4],[37,0,37,4],[38,0,38,6],[39,0,39,6],[40,0,40,5],[53,0,53,5],[42,0,42,5],[43,0,43,5],[44,0,44,5],[45,0,45,5],[46,0,46,5],[47,0,47,5],[48,0,48,5],[49,0,49,5],[50,0,50,5],[51,0,51,6],[52,0,52,5],[65,0,65,6],[54,0,54,5],[55,0,55,5],[56,0,56,5],[57,0,57,5],[58,0,58,5],[59,0,59,5],[60,0,60,5],[61,0,61,5],[62,0,62,5],[63,0,63,6],[64,0,64,6],[73,0,73,5],[76,0,76,4],[78,2,79,4],[66,0,66,6],[67,0,69,5],[67,6,69,6],[70,0,70,5],[71,0,72,5],[71,6,72,6]]}
[]
["Annexe au calcul des taux des traitements non commerciaux 2019-2020          \nMartelage\nForêt publique"]
[" *** Veuillez saisir les informations dans les cellules blanches seulement ***",null,null,null,null,null,"Version 2 : 2020-01-07"]
["Identification"]
["Unité d'aménagement (UA)"]
["Secteur d'intervention"]
["Unité de compilation"]
["Numéro de la prescription"]
["Traitement (code DICA)"]
["Traitement (code RATF)"]
["Traitement de martelage à taux fixe ou variable"]
["Traitement",null,null,null,null,null,"Inscrire une valeur"]
["Taux de base",null,null,null,null,null,{"$f":"IFERROR((VLOOKUP($G$12,Menus!$A$892:$C$896,2,FALSE)),0)","v":0}]
["Unité de mesure",null,null,null,null,null,{"$f":"IFERROR((VLOOKUP($G$12,Menus!$A$892:$C$896,3,FALSE)),0)","v":"-"}]
["Taux d'exécution à déterminer selon la formule suivante"]
[{"$f":"IFERROR((VLOOKUP($G$12,'Majorations applicables'!$A$47:$B$48,2,FALSE)),\"\")","v":""}]
["Superficie"]
["Superficie du traitement (hectares)"]
[{"$f":"\"Valeurs spécifiques à remplir selon le traitement - \"&G12","v":"Valeurs spécifiques à remplir selon le traitement - Inscrire une valeur"}]
["Valeurs spécifiques à remplir selon le traitement - Martelage"]
["PF","Proportion de feuillus (Surface terrière des feuillus commerciaux par rapport à la surface terrière totale du peuplement)"]
["NbMSCROP","Nombre de priorité de récolte combinant MSCR et OP                                                       Valeur de 0 à 8 : MO-MP-SO-SP-CO-CP-RO-RP"]
["TC","Type de coupe",null,null,"Valeur",{"$f":"IFERROR((VLOOKUP($G$23,Menus!$A$898:$B$903,2,FALSE)),\"\")","v":""}]
["Taux par hectare calculé à partir de l'équation et des variables reliées à l'activité",null,null,null,null,null,{"$f":"IFERROR((('Calculs grille'!$K$6-('Calculs grille'!$K$7)*SUM($G$21)+('Calculs grille'!K8*SUM($G$22)))*SUM($F$23)),0)","v":0}]
[{"$f":"\"Majorations applicables à l'exécution - \"&$G$12","v":"Majorations applicables à l'exécution - Inscrire une valeur"}]
["H3 - D200"]
["Majoration pour l'hébergement et la distance du secteur d'intervention (H3 et D200)"]
["Hébergement (H3)",null,null,null,null,{"$f":"IF($G$28=\"\",\"\",IF($G$28=Menus!$A$906,Menus!$B$906,IF($G$28=Menus!$A$907,Menus!$B$907,IF($G$28=Menus!$A$908,Menus!$B$908,IF($G$28<=Menus!$B$907,$G$28,\"Max \"&TEXT(Menus!$B$907,\"0,0%\"))))))","v":""}]
["Distance du secteur d'intervention (D200)",null,null,null,null,{"$f":"IF($G$29=Menus!$A$911,Menus!$B$911,IF($G$29=Menus!$A$912,Menus!$B$912,\"\"))","v":""}]
["Vérification"]
["Vérification - Tous"]
["Délimitation des secteurs (taux par kilomètre délimité)"]
["Nombre de kilomètres délimités"]
["Inventaire après traitement (taux par placette inventoriée)"]
["Nombre de placettes inventoriées"]
["Vérification - Majoration pour l'hébergement et la distance du secteur d'intervention (H3 et D200)"]
["Hébergement (H3)",null,null,null,null,{"$f":"IF(G37=\"\",\"\",IF(G37=Menus!A906,Menus!B906,IF(G37=Menus!A907,Menus!B907,IF(G37=Menus!A908,Menus!B908,IF(G37<=0.091,G37,\"Max 9,1%\")))))","v":""}]
["Distance du secteur d'intervention (D200)",null,null,null,null,{"$f":"IF(G38=Menus!A911,Menus!B911,IF(G38=Menus!A912,Menus!B912,\"\"))","v":""}]
["Total"]
["Calculs -  Martelage"]
["Taux d'exécution de base",null,null,null,null,null,{"$f":"IFERROR($G$24,0)","v":0}]
["Taux H3",null,null,null,null,null,{"$f":"IFERROR(($G$41*$F$28),0)","v":0}]
["Taux D200",null,null,null,null,null,{"$f":"IFERROR(($G$41*$F$29),0)","v":0}]
["Taux exécution total et majoration(s) admissible(s)",null,null,null,null,null,{"$f":"IFERROR((ROUND(SUM($G$41:$G$43),2)),0)","v":0}]
["Taux vérification",null,null,null,null,null,{"$f":"IFERROR(((($G$32*$G$33)+($G$34*$G$35))/$G$18),0)","v":0}]
["Taux H3 et/ou D200",null,null,null,null,null,{"$f":"IFERROR(($G$45*SUM($F$37:$F$38)),0)","v":0}]
["Taux exécution et vérification total",null,null,null,null,null,{"$f":"IFERROR((ROUND(SUM($G$44:$G$46),2)),0)","v":0}]
["Superficie (hectares)",null,null,null,null,null,{"$f":"IFERROR($G$18,0)","v":0}]
["Total exécution",null,null,null,null,null,{"$f":"IFERROR(ROUND($G$44*$G$48,2),0)","v":0}]
["Total vérification",null,null,null,null,null,{"$f":"IFERROR(ROUND(SUM($G$45:$G$46)*$G$48,2),0)","v":0}]
["Grand total admissible",null,null,null,null,null,{"$f":"IFERROR(SUM($G$49:$G$50),0)","v":0}]
["Calculs - Martelage positif et négatif  - EC (résineux ou mixte résineux)"]
["Taux d'exécution de base",null,null,null,null,null,{"$f":"IFERROR($G$13,0)","v":0}]
["Taux H3",null,null,null,null,null,{"$f":"IFERROR(($G$53*$F$28),0)","v":0}]
["Taux D200",null,null,null,null,null,{"$f":"IFERROR(($G$53*$F$29),0)","v":0}]
["Taux exécution total et majoration(s) admissible(s)",null,null,null,null,null,{"$f":"IFERROR((ROUND(SUM($G$53:$G$55),2)),0)","v":0}]
["Taux vérification",null,null,null,null,null,{"$f":"IFERROR(((($G$32*$G$33)+($G$34*$G$35))/$G$18),0)","v":0}]
["Taux H3 et/ou D200",null,null,null,null,null,{"$f":"IFERROR(($G$57*SUM($F$37:$F$38)),0)","v":0}]
["Taux exécution et vérification total",null,null,null,null,null,{"$f":"IFERROR((ROUND(SUM($G$56:$G$58),2)),0)","v":0}]
["Superficie",null,null,null,null,null,{"$f":"IFERROR($G$18,0)","v":0}]
["Total exécution",null,null,null,null,null,{"$f":"IFERROR(ROUND($G$56*$G$60,2),0)","v":0}]
["Total vérification",null,null,null,null,null,{"$f":"IFERROR(ROUND(SUM($G$57:$G$58)*$G$60,2),0)","v":0}]
["Grand total admissible",null,null,null,null,null,{"$f":"IFERROR(SUM($G$61:$G$62),0)","v":0}]
[]
["Remarques"]
[]
["J'atteste que les renseignements fournis dans ce document afin de calculer le taux du traitement sont complets et conformes à la vérité, au meilleur de mes connaissances."]
[]
[]
[]
["Nom et prénom de l'ingénieur forestier",null,null,null,null,null,"No de permis"]
[null,null,null,null,null,null,{"$f":"TODAY()","v":"2020-01-07"}]
[]
["Signature de l'ingénieur forestier",null,null,null,null,null,"Date (AAAA-MM-JJ)"]
[]
[]
["Section réservée au suivi du contrat"]
[]
[null,"Numéro de la prescription :",{"$f":"IF($G$8<>\"\",$G$8,\"\")","v":""}]
[]
[null,"Numéro du contrat :"]
[null,"Numéro du projet :"]
[null,"U.G. :"]
[null,"MRC :"]
[null,"Code de traitement DICA :",{"$f":"IF($G$9<>\"\",$G$9,\"\")","v":""}]
[null,"Code de traitement RATF :",{"$f":"IF($G$10<>\"\",$G$10,\"\")","v":""}]
[null,"Type d'attribution : "]
[null,{"$f":"IFERROR(IF($D$88=Menus!$A$932,\"Taux AOP (avec vérif.) :\",IF($D$88=Menus!$A$933,\"Taux AOP (sans vérif.) :\",\"Taux AOP :\")),\"Taux AOP :\")","v":"Taux AOP :"},null,"Inscrire une valeur"]
[null,{"$f":"IFERROR(IF($D$88=Menus!$A$933,\"Taux Grille (sans vérif.) :\",\"Taux Grille (avec vérif.) :\"),\"Taux Grille (avec vérif.) :\")","v":"Taux Grille (avec vérif.) :"},{"$f":"IFERROR(IF(OR($D$88=\"\",$D$88=Menus!$A$934),VLOOKUP($G$12,RXF!$A$1:$G$33,3,FALSE),IF($D$88=Menus!$A$932,VLOOKUP($G$12,RXF!$A$1:$G$4,3,FALSE),IF($D$88=Menus!$A$933,VLOOKUP($G$12,RXF!$A$1:$G$4,4,FALSE)))),0)","v":0}]
[null,"Ratio AOP/Grille :",{"$f":"IF(AND($C$88<>\"\",$C$89>0),ROUND($C$88/$C$89,4),\"S/O\")","v":"S/O"}]
[null,"Grand total AOP :",{"$f":"IF(OR($C$88=\"\",$C$89=0),\"S/O\",IF(AND($C$88>0,OR($D$88=Menus!$A$932,$D$88=Menus!$A$934)),ROUND(VLOOKUP($G$12,RXF!$A$1:$G$4,5,FALSE)*$C$90,2),IF(AND($C$88>0,$D$88=Menus!$A$933),ROUND(VLOOKUP($G$12,RXF!$A$1:$G$4,7,FALSE)*$C$90,2))))","v":"S/O"}]
[null,"Nom de l'entrepreneur : "]
[null,"Numéro de fournisseur : "]
[null,"Date de début :"]
[null,"Date de fin :"]
[null,"Commentaires :"]

{"sheet":"→ Réductions zones-bandes ←","index":4,"n_rows":35,"n_cols":40,"rows_kept":35,"cut":false,"hidden":true,"merged":[[38,30,38,33],[18,11,18,12],[18,31,18,32],[29,23,29,24],[29,25,29,26],[29,27,29,28],[29,29,29,32],[29,33,29,35],[33,1,33,15],[33,26,33,30],[34,26,35,30],[36,18,36,20],[12,44,13,48],[14,13,14,16],[14,39,14,42],[15,11,15,12],[16,11,16,12],[17,11,17,12],[0,0,0,26],[3,0,3,1],[4,0,5,1],[7,0,7,1],[11,1,11,9],[11,22,11,36]]}
["Coupes partielles : exemples de calculs de réductions pour bandes ou zones non traitées"]
[]
["Définition des termes utilisés dans la feuille de calcul :"]
["Bandes* :",null,"Forme étroite et allongée donnée par une coupe qui traverse toute la largeur ou la longueur d'un peuplement ou d'un secteur d'intervention"]
[null,null,"Note 1 : Une bande peut être coupée totalement, coupée partiellement ou résiduelle (non coupée)"]
[null,null,"Note 2 : La largeur d'une bande équivaut minimalement à la demi-hauteur d'un arbre mature (généralement, 10 mètres et plus)"]
[null,null,"*Inspiré du glossaire du Guide sylvicole du Québec"]
["Zones :",null,"Même définition que le terme bande à l'exception du non-respect de la largeur minimale (moins de 10 mètres)"]
[]
["1er cas : Coupe progressive uniforme (avec zones non traitées de moins de 10 mètres de largeur)",null,null,null,null,null,null,null,null,null,null,null,null,null,null,null,null,null,null,null,null,"2e cas : Coupe progressive par bandes (plus de 10 mètres de largeur)"]
[]
[]
[]
[]
[]
[null,null,null,null,null,null,null,null,null,null,null,"LP",null,"Largeur de la coupe partielle, un côté seulement (5 m)",null,null,null,null,null,null,null,null,null,null,null,null,null,null,null,null,null,null,null,null,null,null,null,null,"LP","Largeur de la coupe partielle, un côté seulement (5 m)"]
[null,null,null,null,null,null,null,null,null,null,null,"SE",null,"Sentier de débardage (5 m)",null,null,null,null,null,null,null,null,null,null,null,null,null,null,null,null,null,null,null,null,null,null,null,null,"SE","Sentier de débardage (5 m)"]
[null,null,null,null,null,null,null,null,null,null,null,"ZNT",null,"Zone non traitée (5 m)",null,null,null,null,null,null,null,null,null,null,null,null,null,null,null,null,null,null,null,null,null,null,null,null,"ZNT","Bande non traitée (15 m)"]
[null,null,null,"5m       5m",null,"5m       5m",null,"5m       5m",null,null,null,null,null,"Zone ou bande entièrement récoltée (0 m, si > 0 m, ajouter à la largeur du sentier)",null,null,null,null,null,null,null,null,null,null,null,"5m","5m",null,null,"5m",null,"5m",null,null,null,null,null,null,null,"Zone ou bande entièrement récoltée (0 m, si > 0 m, ajouter à la largeur du sentier)"]
[]
[]
[null,null,null,null,null,null,null,null,null,null,null,"LP : Largeur de la coupe partielle, un côté seulement (m) : 5 m",null,null,null,null,null,null,null,null,null,null,null,null,null,null,null,null,null,null,null,null,null,null,null,null,null,null,"LP : Largeur de la coupe partielle, un côté seulement (m) : 5 m"]
[null,null,null,null,null,null,null,null,null,null,null,"SE : Largeur du sentier de débardage (m) : 5 m",null,null,null,null,null,null,null,null,null,null,null,null,null,null,null,null,null,null,null,null,null,null,null,null,null,null,"SE : Largeur du sentier de débardage (m) : 5 m"]
[null,null,null,null,null,null,null,null,null,null,null,"ZNT : Largeur de la zone ou bande non traitée (m) : 5 m",null,null,null,null,null,null,null,null,null,null,null,null,null,null,null,null,null,null,null,null,null,null,null,null,null,null,"ZNT : Largeur de la zone ou bande non traitée (m) : 15 m"]
[null,null,null,null,null,null,null,null,null,null,null,"Résultat : réduction du taux de 10%",null,null,null,null,null,null,null,null,null,null,null,null,null,null,null,null,null,null,null,null,null,null,null,null,null,null,"Résultat : réduction du taux de 30%"]
[]
[]
[]
[]
[null,null,"5m","I--15 m--I","5m","I--15 m--I","5m","I--15 m--I","5m",null,null,null,null,null,null,null,null,null,null,null,null,null,null,"15 m",null,"I-----15 m-----I",null,"15 m",null,"I-----15 m-----I",null,null,null,"15 m"]
[]
[]
[]
[null,null,null,null,null,null,null,null,null,null,null,null,null,null,null,null,null,null,null,null,null,null,null,null,null,null,"Calcul de la réduction"]
[null,null,null,null,null,null,null,null,null,null,null,null,null,null,null,null,null,null,null,null,null,null,null,null,null,null,"À inscrire dans la feuille de calcul : cellules G50, G51 et G52"]

{"sheet":"→ Coupes sans investissement ←","index":5,"n_rows":51,"n_cols":40,"rows_kept":51,"cut":false,"hidden":true,"merged":[[50,23,50,35],[29,33,29,35],[32,22,32,36],[35,39,35,42],[36,4,39,16],[39,31,39,32],[41,31,41,32],[15,4,18,16],[18,31,18,32],[20,31,20,32],[29,23,29,24],[29,25,29,26],[29,27,29,28],[29,29,29,32],[14,39,14,42],[0,0,0,26],[3,0,3,1],[4,0,5,1],[7,0,7,1],[11,22,11,36]]}
["Coupes partielles : exemples de calculs de réductions pour bandes ou zones non traitées"]
[]
["Définition des termes utilisés dans la feuille de calcul :"]
["Bandes* :",null,"Forme étroite et allongée donnée par une coupe qui traverse toute la largeur ou la longueur d'un peuplement ou d'un secteur d'intervention"]
[null,null,"Note 1 : Une bande peut être coupée totalement, coupée partiellement ou résiduelle (non coupée)"]
[null,null,"Note 2 : La largeur d'une bande équivaut minimalement à la demi-hauteur d'un arbre mature (généralement, 10 mètres et plus)"]
[null,null,"*Inspiré du glossaire du Guide sylvicole du Québec"]
["Zones :",null,"Même définition que le terme bande à l'exception du non-respect de la largeur minimale (moins de 10 mètres)"]
[]
[]
[null,null,null,null,null,null,null,null,null,null,null,null,null,null,null,null,null,null,null,null,null,"Coupe totale par bandes alternes (plus de 10 mètres de largeur)"]
[]
[]
[]
[]
[null,null,null,null,"Aucun investissement, aucune coupe partielle",null,null,null,null,null,null,null,null,null,null,null,null,null,null,null,null,null,null,null,null,null,null,null,null,null,null,null,null,null,null,null,null,null,null,"Bande entièrement récoltée (15m)"]
[null,null,null,null,null,null,null,null,null,null,null,null,null,null,null,null,null,null,null,null,null,null,null,null,null,null,null,null,null,null,null,null,null,null,null,null,null,null,null,"Bande non traitée (15m)"]
[null,null,null,null,null,null,null,null,null,null,null,null,null,null,null,null,null,null,null,null,null,null,null,null,null,null,null,null,null,null,null,null,null,null,null,null,null,null,null,"Sentier de débardage"]
[]
[]
[null,null,null,null,null,null,null,null,null,null,null,null,null,null,null,null,null,null,null,null,null,null,null,null,null,"5m","5m",null,null,"5m",null,"5m",null,null,null,null,null,null,"LP : Largeur de la coupe partielle, un côté seulement (m) : 0 m"]
[null,null,null,null,null,null,null,null,null,null,null,null,null,null,null,null,null,null,null,null,null,null,null,null,null,null,null,null,null,null,null,null,null,null,null,null,null,null,"SE : Largeur du sentier de débardage (m) : 5 m"]
[null,null,null,null,null,null,null,null,null,null,null,null,null,null,null,null,null,null,null,null,null,null,null,null,null,null,null,null,null,null,null,null,null,null,null,null,null,null,"ZNT : Largeur de la zone ou bande non traitée (m) : 15 m"]
[null,null,null,null,null,null,null,null,null,null,null,null,null,null,null,null,null,null,null,null,null,null,null,null,null,null,null,null,null,null,null,null,null,null,null,null,null,null,"Résultat : non financé"]
[]
[]
[]
[]
[]
[null,null,null,null,null,null,null,null,null,null,null,null,null,null,null,null,null,null,null,null,null,null,null,"15 m",null,"I-----15 m-----I",null,"15 m",null,"I-----15 m-----I",null,null,null,"15 m"]
[]
[null,null,null,null,null,null,null,null,null,null,null,null,null,null,null,null,null,null,null,null,null,"Coupe totale par trouées"]
[]
[]
[]
[]
[null,null,null,null,"Non financé, aucune coupe partielle",null,null,null,null,null,null,null,null,null,null,null,null,null,null,null,null,null,null,null,null,null,null,null,null,null,null,null,null,null,null,null,null,null,null,"Trouée entièrement récoltée"]
[null,null,null,null,null,null,null,null,null,null,null,null,null,null,null,null,null,null,null,null,null,null,null,null,null,null,null,null,null,null,null,null,null,null,null,null,null,null,null,"Non traité"]
[null,null,null,null,null,null,null,null,null,null,null,null,null,null,null,null,null,null,null,null,null,null,null,null,null,null,null,null,null,null,null,null,null,null,null,null,null,null,null,"Sentier de débardage"]
[null,null,null,null,null,null,null,null,null,null,null,null,null,null,null,null,null,null,null,null,null,null,null,null,null,null,null,null,null,null,null,null,null,null,null,null,null,null,"Résultat : non financé"]
[]
[]
[]
[]
[]
[]
[]
[]
[]
[]
[null,null,null,null,null,null,null,null,null,null,null,null,null,null,null,null,null,null,null,null,null,null,null,"I-------------------------------------------------75 m-----------------------------------------------I"]

{"sheet":"Traitements admissibles","index":6,"n_rows":104,"n_cols":11,"rows_kept":104,"cut":false,"hidden":true,"merged":[[0,0,0,9]]}
["Traitements admissibles 2019-2020"]
["Catégorie","Composition","Sélection des\ntiges à récolter","Patron d'intervention","Structure cible","Traitement","Code DICA","Code RATF","Description code RATF","Formule à utiliser","Remarque (masqué)"]
["Éclaircies commerciales","SEPM, feuillus intolérants, mixteF (intolérants) et mixteR (SEPM)","-","Uniforme","Régulière","Éclaircie commerciale","EC_MIXTE-BAS","ECMIXBASSF","Éclaircie commerciale mixte par le bas, peuplement SEPM, feuillus intolérants et mixte à tendance résineuse, taux variable",1]
["Éclaircies commerciales","SEPM, feuillus intolérants, mixteF (intolérants) et mixteR (SEPM)","-","Uniforme","Régulière","Éclaircie commerciale","EC_MIXTE-HAUT","ECMIXHAUSF","Éclaircie commerciale mixte par le haut, peuplement SEPM, feuillus intolérants et mixte à tendance résineuse, taux variable",1]
["Éclaircies commerciales","SEPM, feuillus intolérants, mixteF (intolérants) et mixteR (SEPM)","-","Uniforme","Régulière","Éclaircie commerciale","EC_MIXTE-NEUTRE","ECMIXNEUSF","Éclaircie commerciale mixte neutre, peuplement SEPM, feuillus intolérants et mixte à tendance résineuse, taux variable",1]
["Éclaircies commerciales","SEPM, feuillus intolérants, mixteF (intolérants) et mixteR (SEPM)","-","Uniforme","Régulière","Éclaircie commerciale","EC_SEL-BAS","ECSELBASSF","Éclaircie commerciale sélective par le bas, peuplement SEPM et mixte à tendance résineuse et feuillus intolérants, taux variable",1]
["Éclaircies commerciales","SEPM, feuillus intolérants, mixteF (intolérants) et mixteR (SEPM)","-","Uniforme","Régulière","Éclaircie commerciale","EC_SEL-HAUT","ECSELHAUSF","Éclaircie commerciale sélective par le haut, peuplement SEPM et mixte à tendance résineuse et feuillus intolérants, taux variable",1]
["Éclaircies commerciales","SEPM, feuillus intolérants, mixteF (intolérants) et mixteR (SEPM)","-","Uniforme","Régulière","Éclaircie commerciale","EC_SEL-NEUTRE","ECSELNEUSF","Éclaircie commerciale sélective neutre, peuplement SEPM et mixte à tendance résineuse et feuillus intolérants, taux variable",1]
["Éclaircies commerciales","Feuillus tolérants, autres résineux et mixteF (tolérants)","-","Uniforme","Régulière","Éclaircie commerciale","EC_MIXTE-BAS","ECMIXBASFM","Éclaircie commerciale mixte par le bas, peuplement feuillus tolérants, autres résineux et mixte feuillus, taux variable",2]
["Éclaircies commerciales","Feuillus tolérants, autres résineux et mixteF (tolérants)","-","Uniforme","Régulière","Éclaircie commerciale","EC_MIXTE-HAUT","ECMIXHAUFM","Éclaircie commerciale mixte par le haut, peuplement feuillus tolérants, autres résineux et mixte feuillus, taux variable",2]
["Éclaircies commerciales","Feuillus tolérants, autres résineux et mixteF (tolérants)","-","Uniforme","Régulière","Éclaircie commerciale","EC_MIXTE-NEUTRE","ECMIXNEUFM","Éclaircie commerciale patron d'intervention mixte neutre, peuplement feuillus tolérants, autres résineux et mixte feuillus, taux variable",2]
["Éclaircies commerciales","Feuillus tolérants, autres résineux et mixteF (tolérants)","-","Uniforme","Régulière","Éclaircie commerciale","EC_SEL-BAS","ECSELBASFM","Éclaircie commerciale sélective par le bas, peuplement feuillus tolérants, autres résineux et mixte feuillus, taux variable",2]
["Éclaircies commerciales","Feuillus tolérants, autres résineux et mixteF (tolérants)","-","Uniforme","Régulière","Éclaircie commerciale","EC_SEL-HAUT","ECSELHAUFM","Éclaircie commerciale sélective par le haut, peuplement feuillus tolérants, autres résineux et mixte feuillus, taux variable",2]
["Éclaircies commerciales","Feuillus tolérants, autres résineux et mixteF (tolérants)","-","Uniforme","Régulière","Éclaircie commerciale","EC_SEL-NEUTRE","ECSELNEUFM","Éclaircie commerciale sélective neutre, peuplement feuillus tolérants, autres résineux et mixte feuillus, taux variable",2]
["Autres coupes partielles","Feuillus tolérants, mixteF (tolérants), autres résineux et mixte autres résineux","Martelage","Par bandes ou par trouées","Jardinée / gestion avec cohortes juxtaposées","Coupe de jardinage par bande avec éclaircie dans la matrice résiduelle","CJB-EMR","CJBM","Coupe de jardinage par bandes avec éclaircie dans la matrice résiduelle, Martelage",4]
["Autres coupes partielles","Feuillus tolérants, mixteF (tolérants), autres résineux et mixte autres résineux","Opérateur","Par bandes ou par trouées","Jardinée / gestion avec cohortes juxtaposées","Coupe de jardinage par bande avec éclaircie dans la matrice résiduelle","CJB-EMR","CJBMO","Coupe de jardinage par bandes avec éclaircie dans la matrice résiduelle, Opérateur",4]
["Autres coupes partielles","Feuillus tolérants, mixteF (tolérants), autres résineux et mixte autres résineux","Martelage","Uniforme","Jardinée / gestion par arbres","Coupe de jardinage par pieds d'arbres ou pieds d'arbres et groupes d'arbres","CJP-AM","CJPAM","Coupe de jardinage par pieds d'arbre, amélioration de la qualité, Martelage",4,"Code RATF 2018-2019 manquant, Opérateur"]
["Autres coupes partielles","Feuillus tolérants, mixteF (tolérants), autres résineux et mixte autres résineux","Martelage","Uniforme","Jardinée / gestion par arbres","Coupe de jardinage par pieds d'arbres ou pieds d'arbres et groupes d'arbres","CJPG-AM","CJPGAM","Coupe de jardinage par pieds d'arbre et groupes d'arbres, amélioration de la qualité, Martelage",4,"Code RATF 2018-2019 manquant, Opérateur"]
["Autres coupes partielles","Feuillus tolérants, mixteF (tolérants), autres résineux et mixte autres résineux","Martelage","Uniforme","Jardinée / gestion par arbres","Coupe de jardinage par pieds d'arbres ou pieds d'arbres et groupes d'arbres","CJPG-HQ","CJPGHQ","Coupe de jardinage par pieds d'arbre et groupes d'arbres, maintien d'une haute qualité, Martelage",4,"Code RATF 2018-2019 manquant, Opérateur"]
["Autres coupes partielles","Feuillus tolérants, mixteF (tolérants), autres résineux et mixte autres résineux","Martelage","Uniforme","Jardinée / gestion par arbres","Coupe de jardinage par pieds d'arbres ou pieds d'arbres et groupes d'arbres","CJPG-QM","CJPGQM","Coupe de jardinage par pieds d'arbre et groupes d'arbres, maintien d'une qualité modérée, Martelage",4,"Code RATF 2018-2019 manquant, Opérateur"]
["Autres coupes partielles","Feuillus tolérants, mixteF (tolérants), autres résineux et mixte autres résineux","Martelage","Uniforme","Jardinée / gestion par arbres","Coupe de jardinage par pieds d'arbres ou pieds d'arbres et groupes d'arbres","CJP-HQ","CJPHQ","Coupe de jardinage par pieds d'arbre, maintien d'une haute qualité, Martelage",4,"Code RATF 2018-2019 manquant, Opérateur"]
["Autres coupes partielles","Feuillus tolérants, mixteF (tolérants), autres résineux et mixte autres résineux","Martelage","Uniforme","Jardinée / gestion par arbres","Coupe de jardinage par pieds d'arbres ou pieds d'arbres et groupes d'arbres","CJP-QM","CJPQM","Coupe de jardinage par pieds d'arbre, maintien d'une qualité modérée, Martelage",4,"Code RATF 2018-2019 manquant, Opérateur"]
["Autres coupes partielles","Feuillus tolérants, mixteF (tolérants), autres résineux et mixte autres résineux","Opérateur","Par bandes ou par trouées","Jardinée / gestion avec cohortes juxtaposées","Coupe de jardinage par troués avec éclaircie dans la matrice résiduelle","CJT-EMR","CJTMO","Coupe de jardinage par trouées avec éclaircie dans la matrice résiduelle, Opérateur",4]
["Autres coupes partielles","Feuillus tolérants, mixteF (tolérants), autres résineux et mixte autres résineux","Martelage","Par bandes ou par trouées","Jardinée / gestion avec cohortes juxtaposées","Coupe de jardinage par troués avec éclaircie dans la matrice résiduelle","CJT-EMR","CJTM","Coupe de jardinage par trouées avec éclaircie dans la matrice résiduelle, Martelage",4]
["Autres coupes partielles","Feuillus tolérants, mixteF (tolérants), autres résineux et mixte autres résineux","Opérateur","Uniforme","Irrégulière","Coupe progressive irrégulière à couvert permanent","CPI_CP-ENS_U","CPIUENSOFM","Coupe progressive irrégulière à couvert permanent, coupe d'ensemencement, patron d'intervention uniforme, Opérateur,  type de peuplement feuillus tolérants, autres résineux et mixte feuillus",4]
["Autres coupes partielles","Feuillus tolérants, mixteF (tolérants), autres résineux et mixte autres résineux","Martelage","Uniforme","Irrégulière","Coupe progressive irrégulière à couvert permanent","CPI_CP-ENS_U","CPIUENSFM","Coupe progressive irrégulière à couvert permanent, coupe d'ensemencement, patron d'intervention uniforme, Martelage,  type de peuplement feuillus tolérants, autres résineux et mixte feuillus",4]
["Autres coupes partielles","Feuillus tolérants, mixteF (tolérants), autres résineux et mixte autres résineux","Opérateur","Uniforme","Irrégulière","Coupe progressive irrégulière à couvert permanent","CPI_CP-SEC_U","CPIUSECOFM","Coupe progressive irrégulière à couvert permanent, coupe secondaire, patron d'intervention uniforme, Opérateur,  type de peuplement feuillus tolérants, autres résineux et mixte feuillus",4]
["Autres coupes partielles","Feuillus tolérants, mixteF (tolérants), autres résineux et mixte autres résineux","Martelage","Uniforme","Irrégulière","Coupe progressive irrégulière à couvert permanent","CPI_CP-SEC_U","CPIUSECFM","Coupe progressive irrégulière à couvert permanent, coupe secondaire, patron d'intervention uniforme, Martelage,  type de peuplement feuillus tolérants, autres résineux et mixte feuillus",4]
["Autres coupes partielles","Feuillus tolérants, mixteF (tolérants), autres résineux et mixte autres résineux","Opérateur","Uniforme","Irrégulière","Coupe progressive irrégulière à régénération lente en 1 intervention et abandon du volume résiduel phase d'ensemencement","CPI_RL-1INR_ENS","1INRENSOFM","Coupe progressive irrégulière à régénération lente en 1 intervention et abandon du volume résiduel, phase d'ensemencement, Opérateur, type de peuplement feuillus tolérants, autres résineux et mixte feuillus",4]
["Autres coupes partielles","Feuillus tolérants, mixteF (tolérants), autres résineux et mixte autres résineux","Martelage","Uniforme","Irrégulière","Coupe progressive irrégulière à régénération lente en 1 intervention et abandon du volume résiduel phase d'ensemencement","CPI_RL-1INR_ENS","1INRENSMFM","Coupe progressive irrégulière à régénération lente en 1 intervention et abandon du volume résiduel, phase d'ensemencement, Martelage, type de peuplement feuillus tolérants, autres résineux et mixte feuillus",4]
["Autres coupes partielles","Feuillus tolérants, mixteF (tolérants), autres résineux et mixte autres résineux","Opérateur","Uniforme","Irrégulière","Coupe progressive irrégulière à régénération lente en 1 intervention et abandon du volume résiduel multiples phases","CPI_RL-1INR_MUL","1INRMULOFM","Coupe progressive irrégulière à régénération lente en 1 intervention et abandon du volume résiduel, Multiples phases, Opérateur, type de peuplement feuillus tolérants, autres résineux et mixte feuillus",4]
["Autres coupes partielles","Feuillus tolérants, mixteF (tolérants), autres résineux et mixte autres résineux","Martelage","Uniforme","Irrégulière","Coupe progressive irrégulière à régénération lente en 1 intervention et abandon du volume résiduel multiples phases","CPI_RL-1INR_MUL","1INRMULMFM","Coupe progressive irrégulière à régénération lente en 1 intervention et abandon du volume résiduel, Multiples phases, Martelage, type de peuplement feuillus tolérants, autres résineux et mixte feuillus",4]
["Autres coupes partielles","Feuillus tolérants, mixteF (tolérants), autres résineux et mixte autres résineux","Opérateur","Uniforme","Irrégulière","Coupe progressive irrégulière à régénération lente en 1 intervention et abandon du volume résiduel phase secondaire ou d'abri","CPI_RL-1INR_SEC","1INRSECOFM","Coupe progressive irrégulière à régénération lente en 1 intervention et abandon du volume résiduel, phase secondaire, Opérateur, type de peuplement feuillus tolérants, autres résineux et mixte feuillus",4]
["Autres coupes partielles","Feuillus tolérants, mixteF (tolérants), autres résineux et mixte autres résineux","Martelage","Uniforme","Irrégulière","Coupe progressive irrégulière à régénération lente en 1 intervention et abandon du volume résiduel phase secondaire ou d'abri","CPI_RL-1INR_SEC","1INRSECMFM","Coupe progressive irrégulière à régénération lente en 1 intervention et abandon du volume résiduel, phase secondaire, Martelage, type de peuplement feuillus tolérants, autres résineux et mixte feuillus",4]
["Autres coupes partielles","Feuillus tolérants, mixteF (tolérants), autres résineux et mixte autres résineux","Opérateur","Uniforme, par bandes ou par trouées","Irrégulière","Coupe progressive irrégulière à régénération lente","CPI_RL-2I_ENS","CPIL2ENOFM","Coupe progressive irrégulière à régénération lente, 2 interventions, coupe d'ensemencement, Opérateur, type de peuplement feuillus tolérants, autres résineux et mixte feuillus",4]
["Autres coupes partielles","Feuillus tolérants, mixteF (tolérants), autres résineux et mixte autres résineux","Martelage","Uniforme, par bandes ou par trouées","Irrégulière","Coupe progressive irrégulière à régénération lente","CPI_RL-2I_ENS","CPIRL2ENFM","Coupe progressive irrégulière à régénération lente, 2 interventions, coupe d'ensemencement, Martelage, type de peuplement feuillus tolérants, autres résineux et mixte feuillus",4]
["Autres coupes partielles","Feuillus tolérants, mixteF (tolérants), autres résineux et mixte autres résineux","Opérateur","Uniforme","Irrégulière","Coupe progressive irrégulière à régénération lente en 2 interventions multiples phases","CPI_RL-2I_MUL","2IMULOFM","Coupe progressive irrégulière à régénération lente en 2 interventions et abandon du volume résiduel, Multiples phases, Opérateur, type de peuplement feuillus tolérants, autres résineux et mixte feuillus",4]
["Autres coupes partielles","Feuillus tolérants, mixteF (tolérants), autres résineux et mixte autres résineux","Martelage","Uniforme","Irrégulière","Coupe progressive irrégulière à régénération lente en 2 interventions multiples phases","CPI_RL-2I_MUL","2IMULMFM","Coupe progressive irrégulière à régénération lente en 2 interventions et abandon du volume résiduel, Multiples phases, Martelage, type de peuplement feuillus tolérants, autres résineux et mixte feuillus",4]
["Autres coupes partielles","Feuillus tolérants, mixteF (tolérants), autres résineux et mixte autres résineux","Opérateur","Uniforme, par bandes ou par trouées","Irrégulière","Coupe progressive irrégulière à régénération lente","CPI_RL-2I_SEC","CPIL2SEOFM","Coupe progressive irrégulière à régénération lente, 2 interventions, coupe secondaire, Opérateur, type de peuplement feuillus tolérants, autres résineux, mixte feuillus",4]
["Autres coupes partielles","Feuillus tolérants, mixteF (tolérants), autres résineux et mixte autres résineux","Martelage","Uniforme, par bandes ou par trouées","Irrégulière","Coupe progressive irrégulière à régénération lente","CPI_RL-2I_SEC","CPIRL2SEFM","Coupe progressive irrégulière à régénération lente, 2 interventions, coupe secondaire, Martelage, type de peuplement feuillus tolérants, autres résineux, mixte feuillus",4]
["Autres coupes partielles","Feuillus tolérants, mixteF (tolérants), autres résineux et mixte autres résineux","Opérateur","Uniforme, par bandes ou par trouées","Irrégulière","Coupe progressive irrégulière à régénération lente","CPI_RL-3I_ENS","CPIL3ENOFM","Coupe progressive irrégulière à régénération lente, 3 interventions, coupe d'ensemencement, Opérateur, type de peuplement feuillus tolérants, autres résineux et mixte feuillus",4]
["Autres coupes partielles","Feuillus tolérants, mixteF (tolérants), autres résineux et mixte autres résineux","Martelage","Uniforme, par bandes ou par trouées","Irrégulière","Coupe progressive irrégulière à régénération lente","CPI_RL-3I_ENS","CPIRL3ENFM","Coupe progressive irrégulière à régénération lente, 3 interventions, coupe d'ensemencement, Martelage, type de peuplement feuillus tolérants, autres résineux et mixte feuillus",4]
["Autres coupes partielles","Feuillus tolérants, mixteF (tolérants), autres résineux et mixte autres résineux","Opérateur","Uniforme","Irrégulière","Coupe progressive irrégulière à régénération lente en 3 interventions multiples phases","CPI_RL-3I_MUL","3IMULOFM","Coupe progressive irrégulière à régénération lente en 3 interventions et abandon du volume résiduel, Multiples phases, Opérateur, type de peuplement feuillus tolérants, autres résineux et mixte feuillus",4]
["Autres coupes partielles","Feuillus tolérants, mixteF (tolérants), autres résineux et mixte autres résineux","Martelage","Uniforme","Irrégulière","Coupe progressive irrégulière à régénération lente en 3 interventions multiples phases","CPI_RL-3I_MUL","3IMULMFM","Coupe progressive irrégulière à régénération lente en 3 interventions et abandon du volume résiduel, Multiples phases, Martelage, type de peuplement feuillus tolérants, autres résineux et mixte feuillus",4]
["Autres coupes partielles","Feuillus tolérants, mixteF (tolérants), autres résineux et mixte autres résineux","Opérateur","Uniforme, par bandes ou par trouées","Irrégulière","Coupe progressive irrégulière à régénération lente","CPI_RL-3I_SEC","CPIL3SEOFM","Coupe progressive irrégulière à régénération lente, 3 interventions, coupe secondaire, Opérateur, type de peuplement feuillus tolérants, autres résineux, mixte feuillus",4]
["Autres coupes partielles","Feuillus tolérants, mixteF (tolérants), autres résineux et mixte autres résineux","Martelage","Uniforme, par bandes ou par trouées","Irrégulière","Coupe progressive irrégulière à régénération lente","CPI_RL-3I_SEC","CPIRL3SEFM","Coupe progressive irrégulière à régénération lente, 3 interventions, coupe secondaire, Martelage, type de peuplement feuillus tolérants, autres résineux, mixte feuillus",4]
["Autres coupes partielles","Feuillus tolérants, mixteF (tolérants), autres résineux et mixte autres résineux","Opérateur","Uniforme, par bandes ou par trouées","Irrégulière","Coupe progressive irrégulière à régénération lente","CPI_RL-MUL","CPILMULOFM","Coupe progressive irrégulière à régénération lente, coupe multiples phases, Opérateur, type de peuplement feuillus tolérants, autres résineux et mixte feuillus",4]
["Autres coupes partielles","Feuillus tolérants, mixteF (tolérants), autres résineux et mixte autres résineux","Martelage","Uniforme, par bandes ou par trouées","Irrégulière","Coupe progressive irrégulière à régénération lente","CPI_RL-MUL","CPIRLMULFM","Coupe progressive irrégulière à régénération lente, coupe multiples phases, Martelage, type de peuplement feuillus tolérants, autres résineux et mixte feuillus",4]
["Autres coupes partielles","Feuillus tolérants, mixteF (tolérants), autres résineux et mixte autres résineux","Opérateur","Uniforme, par bandes ou par trouées","Irrégulière","Coupe progressive irrégulière à régénération lente","CPI_RL-PR","CPIRLPROFM","Coupe progressive irrégulière à régénération lente, coupe préparatoire, Opérateur, type de peuplement feuillus tolérants, autres résineux et mixte feuillus",4]
["Autres coupes partielles","Feuillus tolérants, mixteF (tolérants), autres résineux et mixte autres résineux","Martelage","Uniforme, par bandes ou par trouées","Irrégulière","Coupe progressive irrégulière à régénération lente","CPI_RL-PR","CPIRLPRFM","Coupe progressive irrégulière à régénération lente, coupe préparatoire, Martelage, type de peuplement feuillus tolérants, autres résineux et mixte feuillus",4]
["Autres coupes partielles","Feuillus tolérants, mixteF (tolérants), autres résineux et mixte autres résineux","Opérateur","Par bandes ou par trouées","Régulière","Coupe progressive régulière par bandes ou trouées\n1 Pour être admissible, il doit y avoir une coupe partielle à l'extérieur des bandes récoltées totalement.","CPR_BA 1","CPRBAOFM","Coupe progressive régulière par bande, Opérateur, type de peuplement feuillus tolérants, autres résineux et mixte feuillus",4]
["Autres coupes partielles","Feuillus tolérants, mixteF (tolérants), autres résineux et mixte autres résineux","Martelage","Par bandes ou par trouées","Régulière","Coupe progressive régulière par bandes ou trouées\n1 Pour être admissible, il doit y avoir une coupe partielle à l'extérieur des bandes récoltées totalement.","CPR_BA 1","CPRBAMFM","Coupe progressive régulière par bande, Martelage, type de peuplement feuillus tolérants, autres résineux et mixte feuillus",4]
["Autres coupes partielles","Feuillus tolérants, mixteF (tolérants), autres résineux et mixte autres résineux","Opérateur","Par bandes ou par trouées","Régulière","Coupe progressive régulière par bandes ou trouées\n2 Pour être admissible, il doit y avoir une coupe partielle à l'extérieur des trouées récoltées totalement.","CPR_T 2","CPRTOFM","Coupe progressive régulière par trouées, Opérateur, type de peuplement feuillus tolérants, autres résineux et mixte feuillus",4]
["Autres coupes partielles","Feuillus tolérants, mixteF (tolérants), autres résineux et mixte autres résineux","Martelage","Par bandes ou par trouées","Régulière","Coupe progressive régulière par bandes ou trouées\n2 Pour être admissible, il doit y avoir une coupe partielle à l'extérieur des trouées récoltées totalement.","CPR_T 2","CPRTMFM","Coupe progressive régulière par troués, Martelage, type de peuplement feuillus tolérants, autres résineux et mixte feuillus",4]
["Autres coupes partielles","Feuillus tolérants, mixteF (tolérants), autres résineux et mixte autres résineux","Martelage","Uniforme","Régulière","Coupe progressive régulière","CPR_U-ENS","CPRUENSFM","Coupe progressive régulière uniforme, coupe d'ensemencement, Martelage, type de peuplement feuillus tolérants, autres résineux et mixte feuillus",4]
["Autres coupes partielles","Feuillus tolérants, mixteF (tolérants), autres résineux et mixte autres résineux","Opérateur","Uniforme","Régulière","Coupe progressive régulière","CPR_U-ENS","CPRUENSOFM","Coupe progressive régulière uniforme, coupe d'ensemencement, Opérateur, type de peuplement feuillus tolérants, autres résineux et mixte feuillus",4]
["Autres coupes partielles","Feuillus tolérants, mixteF (tolérants), autres résineux et mixte autres résineux","Opérateur","Uniforme","Régulière","Coupe progressive régulière","CPR_U-PR","CPRUPROFM","Coupe progressive régulière uniforme, coupe préparatoire, Opérateur, peuplement feuillus tolérants, autres résineux et mixte feuillus",4]
["Autres coupes partielles","Feuillus tolérants, mixteF (tolérants), autres résineux et mixte autres résineux","Martelage","Uniforme","Régulière","Coupe progressive régulière","CPR_U-PR","CPRUPRFM","Coupe progressive régulière uniforme, coupe préparatoire, Martelage, type de peuplement feuillus tolérants, autres résineux et mixte feuillus",4]
["Autres coupes partielles","Feuillus tolérants, mixteF (tolérants), autres résineux et mixte autres résineux","Opérateur","Uniforme","Régulière","Coupe progressive régulière","CPR_U-SEC","CPRUSECOFM","Coupe progressive régulière uniforme, coupe secondaire, Opérateur, type de peuplement feuillus tolérants, autres résineux et mixte feuillus",4]
["Autres coupes partielles","Feuillus tolérants, mixteF (tolérants), autres résineux et mixte autres résineux","Martelage","Uniforme","Régulière","Coupe progressive régulière","CPR_U-SEC","CPRUSECFM","Coupe progressive régulière uniforme, coupe secondaire, Martelage, type de peuplement feuillus tolérants, autres résineux et mixte feuillus",4]
["Autres coupes partielles","Feuillus tolérants, mixteF (tolérants), autres résineux et mixte autres résineux","Martelage","Uniforme","Jardinée / gestion par arbres","Éclaircie jardinatoire par pieds d'arbres ou pieds d'arbres et groupes d'arbres","EJ_P-CLAS","EJPCLAS","Éclaircie jardinatoire par pied d'arbre classique ou finale, Martelage",4,"Code RATF 2018-2019 manquant, Opérateur"]
["Autres coupes partielles","Feuillus tolérants, mixteF (tolérants), autres résineux et mixte autres résineux","Martelage","Uniforme","Jardinée / gestion par arbres","Éclaircie jardinatoire par pieds d'arbres ou pieds d'arbres et groupes d'arbres","EJ_PG-CLAS","EJPGCLAS","Éclaircie jardinatoire par pied d'arbre et groupes d'arbres, classique ou finale, Martelage",4,"Code RATF 2018-2019 manquant, Opérateur"]
["Autres coupes partielles","Feuillus tolérants, mixteF (tolérants), autres résineux et mixte autres résineux","Martelage","Uniforme","Jardinée / gestion par arbres","Éclaircie jardinatoire par pieds d'arbres ou pieds d'arbres et groupes d'arbres","EJ_PG-INI","EJPGINI","Éclaircie jardinatoire par pied d'arbre et groupes d'arbres initiale, Martelage",4,"Code RATF 2018-2019 manquant, Opérateur"]
["Autres coupes partielles","Feuillus tolérants, mixteF (tolérants), autres résineux et mixte autres résineux","Martelage","Uniforme","Jardinée / gestion par arbres","Éclaircie jardinatoire par pieds d'arbres ou pieds d'arbres et groupes d'arbres","EJ_P-INI","EJPINI","Éclaircie jardinatoire par pied d'arbre initiale, Martelage",4,"Code RATF 2018-2019 manquant, Opérateur"]
["Autres coupes partielles","SEPM, feuillus intolérants, mixteF (intolérants) et mixteR (SEPM)","Opérateur","Par bandes ou par trouées","Irrégulière","Coupe progressive irrégulière à couvert permanent par bandes","CPI_CP-ENS_B","CPIENSBOSF","Coupe progressive irrégulière à couvert permanent par bandes, coupe d'ensemencement, Opérateur, type de peuplement SEPM, feuillus intolérants et mixte résineux",6]
["Autres coupes partielles","SEPM, feuillus intolérants, mixteF (intolérants) et mixteR (SEPM)","Opérateur","Uniforme","Irrégulière","Coupe progressive irrégulière à couvert permanent","CPI_CP-ENS_U","CPIUENSOSF","Coupe progressive irrégulière à couvert permanent, coupe d'ensemencement, patron d'intervention uniforme, Opérateur,  type de peuplement SEPM, feuillus intolérants et mixte résineux",6]
["Autres coupes partielles","SEPM, feuillus intolérants, mixteF (intolérants) et mixteR (SEPM)","Opérateur","Par bandes ou par trouées","Irrégulière","Coupe progressive irrégulière à couvert permanent par bandes","CPI_CP-SEC_B","CPISECBOSF","Coupe progressive irrégulière à couvert permanent par bandes, coupe secondaire, Opérateur, type de peuplement SEPM, feuillus intolérants et mixte résineux",6]
["Autres coupes partielles","SEPM, feuillus intolérants, mixteF (intolérants) et mixteR (SEPM)","Opérateur","Uniforme","Irrégulière","Coupe progressive irrégulière à couvert permanent","CPI_CP-SEC_U","CPIUSECOSF","Coupe progressive irrégulière à couvert permanent, coupe secondaire, patron d'intervention uniforme, Opérateur,  type de peuplement SEPM, feuillus intolérants et mixte résineux",6]
["Autres coupes partielles","SEPM, feuillus intolérants, mixteF (intolérants) et mixteR (SEPM)","Opérateur","Par bandes ou par trouées","Irrégulière","Coupe progressive irrégulière à régénération lente en 1 intervention et abandon du volume résiduel phase d'ensemencement","CPI_RL-1INR_ENS","1INRENSOSF","Coupe progressive irrégulière à régénération lente en 1 intervention et abandon du volume résiduel, phase d'ensemencement, Opérateur, type de peuplement SEPM, feuillus intolérants et mixte résineux",6]
["Autres coupes partielles","SEPM, feuillus intolérants, mixteF (intolérants) et mixteR (SEPM)","Opérateur","Par bandes ou par trouées","Irrégulière","Coupe progressive irrégulière à régénération lente en 1 intervention et abandon du volume résiduel multiples phases","CPI_RL-1INR_MUL","1INRMULOSF","Coupe progressive irrégulière à régénération lente en 1 intervention et abandon du volume résiduel, Multiples phases, Opérateur, type de peuplement SEPM, feuillus intolérants et mixte résineux",6]
["Autres coupes partielles","SEPM, feuillus intolérants, mixteF (intolérants) et mixteR (SEPM)","Opérateur","Par bandes ou par trouées","Irrégulière","Coupe progressive irrégulière à régénération lente en 1 intervention et abandon du volume résiduel phase secondaire ou d'abri","CPI_RL-1INR_SEC","1INRSECOSF","Coupe progressive irrégulière à régénération lente en 1 intervention et abandon du volume résiduel, phase secondaire, Opérateur, type de peuplement SEPM, feuillus intolérants et mixte résineux",6]
["Autres coupes partielles","SEPM, feuillus intolérants, mixteF (intolérants) et mixteR (SEPM)","Opérateur","Uniforme, par bandes ou par trouées","Irrégulière","Coupe progressive irrégulière à régénération lente","CPI_RL-2I_ENS","CPIL2ENOSF","Coupe progressive irrégulière à régénération lente, 2 interventions, coupe d'ensemencement, Opérateur, type de peuplement SEPM, feuillus intolérants et mixte résineux",6]
["Autres coupes partielles","SEPM, feuillus intolérants, mixteF (intolérants) et mixteR (SEPM)","Opérateur","Par bandes ou par trouées","Irrégulière","Coupe progressive irrégulière à régénération lente en 2 interventions multiples phases","CPI_RL-2I_MUL","2IMULOSF","Coupe progressive irrégulière à régénération lente en 2 interventions et abandon du volume résiduel, Multiples phases, Opérateur, type de peuplement SEPM, feuillus intolérants et mixte résineux",6]
["Autres coupes partielles","SEPM, feuillus intolérants, mixteF (intolérants) et mixteR (SEPM)","Opérateur","Uniforme, par bandes ou par trouées","Irrégulière","Coupe progressive irrégulière à régénération lente","CPI_RL-2I_SEC","CPIL2SEOSF","Coupe progressive irrégulière à régénération lente, 2 interventions, coupe secondaire, Opérateur, type de peuplement SEPM, feuillus intolérants, mixte résineux",6]
["Autres coupes partielles","SEPM, feuillus intolérants, mixteF (intolérants) et mixteR (SEPM)","Opérateur","Uniforme, par bandes ou par trouées","Irrégulière","Coupe progressive irrégulière à régénération lente","CPI_RL-3I_ENS","CPIL3ENOSF","Coupe progressive irrégulière à régénération lente, 3 interventions, coupe d'ensemencement, Opérateur, type de peuplement SEPM, feuillus intolérants et mixte résineux",6]
["Autres coupes partielles","SEPM, feuillus intolérants, mixteF (intolérants) et mixteR (SEPM)","Opérateur","Par bandes ou par trouées","Irrégulière","Coupe progressive irrégulière à régénération lente en 3 interventions multiples phases","CPI_RL-3I_MUL","3IMULOSF","Coupe progressive irrégulière à régénération lente en 3 interventions et abandon du volume résiduel, Multiples phases, Opérateur, type de peuplement SEPM, feuillus intolérants et mixte résineux",6]
["Autres coupes partielles","SEPM, feuillus intolérants, mixteF (intolérants) et mixteR (SEPM)","Opérateur","Uniforme, par bandes ou par trouées","Irrégulière","Coupe progressive irrégulière à régénération lente","CPI_RL-3I_SEC","CPIL3SEOSF","Coupe progressive irrégulière à régénération lente, 3 interventions, coupe secondaire, Opérateur, type de peuplement SEPM, feuillus intolérants, mixte résineux",6]
["Autres coupes partielles","SEPM, feuillus intolérants, mixteF (intolérants) et mixteR (SEPM)","Opérateur","Uniforme, par bandes ou par trouées","Irrégulière","Coupe progressive irrégulière à régénération lente","CPI_RL-MUL","CPILMULOSF","Coupe progressive irrégulière à régénération lente, coupe multiples phases, Opérateur, type de peuplement SEPM, feuillus intolérants, mixte feuillus",6]
["Autres coupes partielles","SEPM, feuillus intolérants, mixteF (intolérants) et mixteR (SEPM)","Opérateur","Uniforme, par bandes ou par trouées","Irrégulière","Coupe progressive irrégulière à régénération lente","CPI_RL-PR","CPIRLPROSF","Coupe progressive irrégulière à régénération lente, coupe préparatoire, Opérateur, type de peuplement SEPM, feuillus intolérants et mixte résineux",6]
["Autres coupes partielles","SEPM, feuillus intolérants, mixteF (intolérants) et mixteR (SEPM)","Opérateur","Par bandes ou par trouées","Régulière","Coupe progressive régulière par bandes ou trouées\n1 Pour être admissible, il doit y avoir une coupe partielle à l'extérieur des bandes récoltées totalement.","CPR_BA 1","CPRBAOSF","Coupe progressive régulière par bande, Opérateur, type de peuplement  SEPM, feuillus intolérants et mixte résineux",6]
["Autres coupes partielles","SEPM, feuillus intolérants, mixteF (intolérants) et mixteR (SEPM)","Opérateur","Par bandes ou par trouées","Régulière","Coupe progressive régulière par bandes ou trouées\n2 Pour être admissible, il doit y avoir une coupe partielle à l'extérieur des trouées récoltées totalement.","CPR_T 2","CPRTOSF","Coupe progressive régulière par trouées, Opérateur, type de peuplement  SEPM, feuillus intolérants et mixte résineux",6]
["Autres coupes partielles","SEPM, feuillus intolérants, mixteF (intolérants) et mixteR (SEPM)","Opérateur","Uniforme","Régulière","Coupe progressive régulière","CPR_U-ENS","CPRUENSOSF","Coupe progressive régulière uniforme, coupe d'ensemencement, Opérateur, type de peuplement SEPM, feuillus intolérants et mixte résineux",6]
["Autres coupes partielles","SEPM, feuillus intolérants, mixteF (intolérants) et mixteR (SEPM)","Opérateur","Uniforme","Régulière","Coupe progressive régulière","CPR_U-PR","CPRUPROSF","Coupe progressive régulière uniforme, Coupe préparatoire, Opérateur, peuplement SEPM, feuillus intolérants et mixte résineux",6]
["Autres coupes partielles","SEPM, feuillus intolérants, mixteF (intolérants) et mixteR (SEPM)","Opérateur","Uniforme","Régulière","Coupe progressive régulière","CPR_U-SEC","CPRUSECOSF","Coupe progressive régulière uniforme, coupe secondaire, Opérateur, type de peuplement SEPM, feuillus intolérants et mixte résineux",6]
["Autres coupes partielles","SEPM, feuillus intolérants, mixteF (intolérants) et mixteR (SEPM)","Martelage","Par bandes ou par trouées","Irrégulière","Coupe progressive irrégulière à couvert permanent par bandes","CPI_CP-ENS_B","CPIENSBMSF","Coupe progressive irrégulière à couvert permanent par bandes, coupe d'ensemencement, Martelage, type de peuplement SEPM, feuillus intolérants et mixte résineux",7]
["Autres coupes partielles","SEPM, feuillus intolérants, mixteF (intolérants) et mixteR (SEPM)","Martelage","Uniforme","Irrégulière","Coupe progressive irrégulière à couvert permanent","CPI_CP-ENS_U","CPIUENSSF","Coupe progressive irrégulière à couvert permanent, coupe d'ensemencement, patron d'intervention uniforme, Martelage,  type de peuplement SEPM, feuillus intolérants et mixte résineux",7]
["Autres coupes partielles","SEPM, feuillus intolérants, mixteF (intolérants) et mixteR (SEPM)","Martelage","Par bandes ou par trouées","Irrégulière","Coupe progressive irrégulière à couvert permanent par bandes","CPI_CP-SEC_B","CPISECBMSF","Coupe progressive irrégulière à couvert permanent par bandes, coupe secondaire, Martelage, type de peuplement SEPM, feuillus intolérants et mixte résineux",7]
["Autres coupes partielles","SEPM, feuillus intolérants, mixteF (intolérants) et mixteR (SEPM)","Martelage","Uniforme","Irrégulière","Coupe progressive irrégulière à couvert permanent","CPI_CP-SEC_U","CPIUSECSF","Coupe progressive irrégulière à couvert permanent, coupe secondaire, patron d'intervention uniforme, Martelage,  type de peuplement SEPM, feuillus intolérants et mixte résineux",7]
["Autres coupes partielles","SEPM, feuillus intolérants, mixteF (intolérants) et mixteR (SEPM)","Martelage","Par bandes ou par trouées","Irrégulière","Coupe progressive irrégulière à régénération lente en 1 intervention et abandon du volume résiduel phase d'ensemencement","CPI_RL-1INR_ENS","1INRENSMSF","Coupe progressive irrégulière à régénération lente en 1 intervention et abandon du volume résiduel, phase d'ensemencement, Martelage, type de peuplement SEPM, feuillus intolérants et mixte résineux",7]
["Autres coupes partielles","SEPM, feuillus intolérants, mixteF (intolérants) et mixteR (SEPM)","Martelage","Par bandes ou par trouées","Irrégulière","Coupe progressive irrégulière à régénération lente en 1 intervention et abandon du volume résiduel multiples phases","CPI_RL-1INR_MUL","1INRMULMSF","Coupe progressive irrégulière à régénération lente en 1 intervention et abandon du volume résiduel, Multiples phases, Martelage, type de peuplement SEPM, feuillus intolérants et mixte résineux",7]
["Autres coupes partielles","SEPM, feuillus intolérants, mixteF (intolérants) et mixteR (SEPM)","Martelage","Par bandes ou par trouées","Irrégulière","Coupe progressive irrégulière à régénération lente en 1 intervention et abandon du volume résiduel phase secondaire ou d'abri","CPI_RL-1INR_SEC","1INRSECMSF","Coupe progressive irrégulière à régénération lente en 1 intervention et abandon du volume résiduel, phase secondaire, Martelage, type de peuplement SEPM, feuillus intolérants et mixte résineux",7]
["Autres coupes partielles","SEPM, feuillus intolérants, mixteF (intolérants) et mixteR (SEPM)","Martelage","Uniforme, par bandes ou par trouées","Irrégulière","Coupe progressive irrégulière à régénération lente","CPI_RL-2I_ENS","CPIRL2ENSF","Coupe progressive irrégulière à régénération lente, 2 interventions, coupe d'ensemencement, Martelage, type de peuplement SEPM, feuillus intolérants et mixte résineux",7]
["Autres coupes partielles","SEPM, feuillus intolérants, mixteF (intolérants) et mixteR (SEPM)","Martelage","Par bandes ou par trouées","Irrégulière","Coupe progressive irrégulière à régénération lente en 2 interventions multiples phases","CPI_RL-2I_MUL","2IMULMSF","Coupe progressive irrégulière à régénération lente en 2 interventions et abandon du volume résiduel, Multiples phases, Martelage, type de peuplement SEPM, feuillus intolérants et mixte résineux",7]
["Autres coupes partielles","SEPM, feuillus intolérants, mixteF (intolérants) et mixteR (SEPM)","Martelage","Uniforme, par bandes ou par trouées","Irrégulière","Coupe progressive irrégulière à régénération lente","CPI_RL-2I_SEC","CPIRL2SESF","Coupe progressive irrégulière à régénération lente, 2 interventions, coupe secondaire, Martelage, type de peuplement SEPM, feuillus intolérants, mixte résineux",7]
["Autres coupes partielles","SEPM, feuillus intolérants, mixteF (intolérants) et mixteR (SEPM)","Martelage","Uniforme, par bandes ou par trouées","Irrégulière","Coupe progressive irrégulière à régénération lente","CPI_RL-3I_ENS","CPIRL3ENSF","Coupe progressive irrégulière à régénération lente, 3 interventions, coupe d'ensemencement, Martelage, type de peuplement SEPM, feuillus intolérants et mixte résineux",7]
["Autres coupes partielles","SEPM, feuillus intolérants, mixteF (intolérants) et mixteR (SEPM)","Martelage","Par bandes ou par trouées","Irrégulière","Coupe progressive irrégulière à régénération lente en 3 interventions multiples phases","CPI_RL-3I_MUL","3IMULMSF","Coupe progressive irrégulière à régénération lente en 3 interventions et abandon du volume résiduel, Multiples phases, Martelage, type de peuplement SEPM, feuillus intolérants et mixte résineux",7]
["Autres coupes partielles","SEPM, feuillus intolérants, mixteF (intolérants) et mixteR (SEPM)","Martelage","Uniforme, par bandes ou par trouées","Irrégulière","Coupe progressive irrégulière à régénération lente","CPI_RL-3I_SEC","CPIRL3SESF","Coupe progressive irrégulière à régénération lente, 3 interventions, coupe secondaire, Martelage, type de peuplement SEPM, feuillus intolérants, mixte résineux",7]
["Autres coupes partielles","SEPM, feuillus intolérants, mixteF (intolérants) et mixteR (SEPM)","Martelage","Uniforme, par bandes ou par trouées","Irrégulière","Coupe progressive irrégulière à régénération lente","CPI_RL-MUL","CPIRLMULSF","Coupe progressive irrégulière à régénération lente, coupe multiples phases, Martelage, type de peuplement SEPM, feuillus intolérants, mixte feuillus",7]
["Autres coupes partielles","SEPM, feuillus intolérants, mixteF (intolérants) et mixteR (SEPM)","Martelage","Uniforme, par bandes ou par trouées","Irrégulière","Coupe progressive irrégulière à régénération lente","CPI_RL-PR","CPIRLPRSF","Coupe progressive irrégulière à régénération lente, coupe préparatoire, Martelage, type de peuplement SEPM, feuillus intolérants et mixte résineux",7]
["Autres coupes partielles","SEPM, feuillus intolérants, mixteF (intolérants) et mixteR (SEPM)","Martelage","Par bandes ou par trouées","Régulière","Coupe progressive régulière par bandes ou trouées\n1 Pour être admissible, il doit y avoir une coupe partielle à l'extérieur des bandes récoltées totalement.","CPR_BA 1","CPRBAMSF","Coupe progressive régulière par bande, Martelage, type de peuplement  SEPM, feuillus intolérants et mixte résineux",7]
["Autres coupes partielles","SEPM, feuillus intolérants, mixteF (intolérants) et mixteR (SEPM)","Martelage","Par bandes ou par trouées","Régulière","Coupe progressive régulière par bandes ou trouées\n2 Pour être admissible, il doit y avoir une coupe partielle à l'extérieur des trouées récoltées totalement.","CPR_T 2","CPRTMSF","Coupe progressive régulière par trouées, Martelage, type de peuplement  SEPM, feuillus intolérants et mixte résineux",7]
["Autres coupes partielles","SEPM, feuillus intolérants, mixteF (intolérants) et mixteR (SEPM)","Martelage","Uniforme","Régulière","Coupe progressive régulière","CPR_U-ENS","CPRUENSSF","Coupe progressive régulière uniforme, coupe d'ensemencement, Martelage, type de peuplement SEPM, feuillus intolérants et mixte résineux",7]
["Autres coupes partielles","SEPM, feuillus intolérants, mixteF (intolérants) et mixteR (SEPM)","Martelage","Uniforme","Régulière","Coupe progressive régulière","CPR_U-PR","CPRUPRSF","Coupe progressive régulière uniforme, coupe préparatoire, Martelage, type de peuplement SEPM, feuillus intolérants et mixte résineux",7]
["Autres coupes partielles","SEPM, feuillus intolérants, mixteF (intolérants) et mixteR (SEPM)","Martelage","Uniforme","Régulière","Coupe progressive régulière","CPR_U-SEC","CPRUSECSF","Coupe progressive régulière uniforme, coupe secondaire, Martelage, type de peuplement SEPM, feuillus intolérants et mixte résineux",7]

{"sheet":"Étapes calcul majorations","index":7,"n_rows":10,"n_cols":3,"rows_kept":10,"cut":false,"hidden":true,"merged":[]}
["Formule ou activité","Étapes pour appliquer les majorations/réductions à l'exécution","Étapes pour appliquer les majorations à la vérification"]
["Formule 1 - EC1","Taux = (EXE * (1 + PE2) * (1 + MAN) + RUB1 * (1 + PE2)) * (1 + H1)","N/A"]
["Formule 1 - EC2","Taux = (EXE * (1 + PE2) + (1 + PE2) * RUB1) * (1 + H1)","N/A"]
["Formule 2","Taux = (EXE + RUB1) * (1 + PE2)  * (1 + H1)","N/A"]
["Formule 4","Taux = ((EXE + RUB1) * (1 + PE2) - EMR1 - BNT1) * (1 + H1)","N/A"]
["Formule 6","Taux = (EXE * (1 + PE2) - EMR1 - BNT1) * (1 + H1)","N/A"]
["Formule 7","Taux = ((EXE + RUB1) * (1 + PE2) - EMR1 - BNT1) * (1 + H1)","N/A"]
["Martelage","Taux = EXE * (1 + H3 + D200)","Taux = VERIF * (1 + H3 + D200)"]
["Martelage négatif - EC (résineux ou mixte résineux)","Taux = EXE * (1 + H3 + D200)","Taux = VERIF * (1 + H3 + D200)"]
["Martelage positif - EC (résineux ou mixte résineux)","Taux = EXE * (1 + H3 + D200)","Taux = VERIF * (1 + H3 + D200)"]

{"sheet":"Carte - Admissibilité ATFDT","index":8,"n_rows":0,"n_cols":0,"rows_kept":0,"cut":false,"hidden":true,"merged":[]}

{"sheet":"Versions du fichier","index":9,"n_rows":10,"n_cols":20,"rows_kept":10,"cut":false,"hidden":true,"merged":[[0,0,0,16],[0,19,0,24],[8,2,8,16]]}
["Suivi des versions du fichier de l'annexe au rapport et au calcul de l'aide au transport des bois de feuillus durs de trituration provenant d'une coupe de régénération 2019-2020                                                                                                                                                                                                                                                                                                                    Forêt publique",null,null,null,null,null,null,null,null,null,null,null,null,null,null,null,null,null,null,"Version 2 : 2020-01-07"]
[]
["Version 1","Nom du fichier :","Calcul_aide_ATFDT_2019-2020_2019-10-09.xlsm"]
[{"$f":"A3","v":"Version 1"},"Date de mise en ligne :","2019-10-09"]
[{"$f":"A4","v":"Version 1"},"Remarques :","• Version officielle"]
[{"$f":"A5","v":"Version 1"}]
["Version 1","Nom du fichier :","Calcul_aide_ATFDT_2019-2020_2020-01-07.xlsm"]
[{"$f":"A7","v":"Version 1"},"Date de mise en ligne :","2020-01-07"]
[{"$f":"A8","v":"Version 1"},"Remarques :","• Onglet « Aide ATFDT » : coquilles dans les formules à G43, H43 et I43.\n  Un correctif en lien avec la valeur du taux à l'hectare arrondi au cent entier (G42, H42 et I42) et le « Grand total de l'aide au transport selon la zone de tarification ($) » a été appliqué."]
[{"$f":"A9","v":"Version 1"}]

{"sheet":"Calculs grille","index":10,"n_rows":12,"n_cols":12,"rows_kept":12,"cut":false,"hidden":true,"merged":[[0,0,1,0],[0,1,1,1],[0,2,1,2],[0,3,1,3],[0,4,1,4],[0,5,1,5],[0,6,1,6],[0,8,1,8],[0,10,1,10],[0,11,1,11]]}
["Famille","Traitement","Type","Équipement / Modalité","Taux","Paiement","Information","2018-2019","2018-2019","2019-2020","2019-2020","Source 2019-2020"]
[null,null,null,null,null,null,null,"Non arrondis",null,"Non \narrondis"]
["Travaux techniques","Activités liées au martelage pour les traitements commerciaux","Délimitation de secteurs",null,"Taux fixe","Kilomètre délimité",null,75.85640034239141,76,84.097861572141653,{"$f":"ROUND(J3,0)","v":84},"[Grilles TSNC  2019-2020.xlsx]Feuille de calcul'!$AD$131"]
["Travaux techniques","Activités liées au martelage pour les traitements commerciaux","Martelage feuillus",null,"Taux fixe","Hectare","Ce taux n'est pas utilisé, remplacé par l'équation à taux variable",143.05705106073921,143,158.59956473971499,{"$f":"ROUND(J4,0)","v":159},"[Grilles TSNC  2019-2020.xlsx]Feuille de calcul'!$AD$132"]
["Travaux techniques","Activités liées au martelage pour les traitements commerciaux","Martelage résineux",null,"Taux fixe","Hectare","Ce taux n'est pas utilisé, remplacé par l'équation à taux variable",162.87624304634389,163,180.57202397260636,{"$f":"ROUND(J5,0)","v":181},"[Grilles TSNC  2019-2020.xlsx]Feuille de calcul'!$AD$133"]
["Travaux techniques","Activités liées au martelage pour les traitements commerciaux","Martelage à taux variable",null,"Taux variable","Hectare","(Constante 1 - (Variable 1 * PF) + (Variable 2 * NbMSCROP)) * TC",144.2301160715844,144.22999999999999,159.90007805766703,{"$f":"ROUND(J6,2)","v":159.9},"[Grilles TSNC  2019-2020.xlsx]Feuille de calcul'!$AD$134"]
["Travaux techniques","Activités liées au martelage pour les traitements commerciaux","Martelage à taux variable",null,"Taux variable","Hectare","(Constante 1 - (Variable 1 * PF) + (Variable 2 * NbMSCROP)) * TC",35.682471036101894,35.68,39.559213147490738,{"$f":"ROUND(J7,2)","v":39.56},"[Grilles TSNC  2019-2020.xlsx]Feuille de calcul'!$AD$135"]
["Travaux techniques","Activités liées au martelage pour les traitements commerciaux","Martelage à taux variable",null,"Taux variable","Hectare","(Constante 1 - (Variable 1 * PF) + (Variable 2 * NbMSCROP)) * TC",4.0921964158999149,4.09,4.5367953944163641,{"$f":"ROUND(J8,2)","v":4.54},"[Grilles TSNC  2019-2020.xlsx]Feuille de calcul'!$AD$136"]
["Travaux techniques","Activités liées au martelage pour les traitements commerciaux","Martelage en éclaircie commerciale en peuplement résineux (ou mixte à tendance résineuse)","Martelage négatif","Taux fixe","Hectare",null,183.44823091251104,183,203.379067017409,{"$f":"ROUND(J9,0)","v":203},"[Grilles TSNC  2019-2020.xlsx]Feuille de calcul'!$AD$137"]
["Travaux techniques","Activités liées au martelage pour les traitements commerciaux","Martelage en éclaircie commerciale en peuplement résineux (ou mixte à tendance résineuse)","Martelage positif","Taux fixe","Hectare",null,95.61940559305981,96,106.00802963071503,{"$f":"ROUND(J10,0)","v":106},"[Grilles TSNC  2019-2020.xlsx]Feuille de calcul'!$AD$138"]
["Travaux techniques","Activités liées au martelage pour les traitements commerciaux","Inventaire après martelage",null,"Taux fixe","Hectare",null,23.229439282451846,23,25.753214763110631,{"$f":"ROUND(J11,0)","v":26},"[Grilles TSNC  2019-2020.xlsx]Feuille de calcul'!$AD$139"]
["Travaux technique","Valeur des activités liées au martelage pour les traitements commerciaux","Martelage",null,"Taux variable","Taux moyen","Constante",8.9160000000000004,8.9160000000000004,8.9160000000000004,8.9160000000000004,8.9160000000000004]

{"sheet":"Menus","index":11,"n_rows":934,"n_cols":10,"rows_kept":934,"cut":false,"hidden":true,"merged":[[889,0,889,2]]}
["Question"]
["Oui"]
["Non"]
[]
["UA"]
["01171"]
["01272"]
["02371"]
["02471"]
["02571"]
["02651"]
["02661"]
["02662"]
["02663"]
["02664"]
["02665"]
["02666"]
["02751"]
["03153"]
["03171"]
["03351"]
["03451"]
["03571"]
["04151"]
["04251"]
["04351"]
["04352"]
["05151"]
["06151"]
["06271"]
["06452"]
["06471"]
["07151"]
["07152"]
["07251"]
["07351"]
["07352"]
["07451"]
["08151"]
["08152"]
["08251"]
["08351"]
["08451"]
["08462"]
["08551"]
["08562"]
["08651"]
["08652"]
["08663"]
["08664"]
["08665"]
["08666"]
["08751"]
["08762"]
["08763"]
["08764"]
["09351"]
["09352"]
["09471"]
["09551"]
["09751"]
["11161"]
["11262"]
["11263"]
[]
["Codes_Dica"]
["CJB-EMR"]
["CJP-AM"]
["CJPG-AM"]
["CJPG-HQ"]
["CJPG-QM"]
["CJP-HQ"]
["CJP-QM"]
["CJT-EMR"]
["CPI_CP-ENS_B"]
["CPI_CP-ENS_U"]
["CPI_CP-SEC_B"]
["CPI_CP-SEC_U"]
["CPI_RL-1INR_ENS"]
["CPI_RL-1INR_MUL"]
["CPI_RL-1INR_SEC"]
["CPI_RL-2I_ENS"]
["CPI_RL-2I_MUL"]
["CPI_RL-2I_SEC"]
["CPI_RL-3I_ENS"]
["CPI_RL-3I_MUL"]
["CPI_RL-3I_SEC"]
["CPI_RL-MUL"]
["CPI_RL-PR"]
["CPR_BA"]
["CPR_T"]
["CPR_U-ENS"]
["CPR_U-PR"]
["CPR_U-SEC"]
["EC_MIXTE-BAS"]
["EC_MIXTE-HAUT"]
["EC_MIXTE-NEUTRE"]
["EC_SEL-BAS"]
["EC_SEL-HAUT"]
["EC_SEL-NEUTRE"]
["EJ_P-CLAS"]
["EJ_PG-CLAS"]
["EJ_PG-INI"]
["EJ_P-INI"]
["Inscrire une valeur"]
[]
["Codes_RATF"]
["CJBM"]
["CJBMO"]
["CJPAM"]
["CJPGAM"]
["CJPGHQ"]
["CJPGQM"]
["CJPHQ"]
["CJPQM"]
["CJTM"]
["CJTMO"]
["CPIENSBMSF"]
["CPIENSBOSF"]
["CPIUENSFM"]
["CPIUENSOFM"]
["CPIUENSOSF"]
["CPIUENSSF"]
["CPISECBMSF"]
["CPISECBOSF"]
["CPIUSECFM"]
["CPIUSECOFM"]
["CPIUSECOSF"]
["CPIUSECSF"]
["1INRENSMFM"]
["1INRENSMSF"]
["1INRENSOFM"]
["1INRENSOSF"]
["1INRMULMFM"]
["1INRMULMSF"]
["1INRMULOFM"]
["1INRMULOSF"]
["1INRSECMFM"]
["1INRSECMSF"]
["1INRSECOFM"]
["1INRSECOSF"]
["CPIL2ENOFM"]
["CPIL2ENOSF"]
["CPIRL2ENFM"]
["CPIRL2ENSF"]
["2IMULMFM"]
["2IMULMSF"]
["2IMULOFM"]
["2IMULOSF"]
["CPIL2SEOFM"]
["CPIL2SEOSF"]
["CPIRL2SEFM"]
["CPIRL2SESF"]
["CPIL3ENOFM"]
["CPIL3ENOSF"]
["CPIRL3ENFM"]
["CPIRL3ENSF"]
["3IMULMFM"]
["3IMULMSF"]
["3IMULOFM"]
["3IMULOSF"]
["CPIL3SEOFM"]
["CPIL3SEOSF"]
["CPIRL3SEFM"]
["CPIRL3SESF"]
["CPILMULOFM"]
["CPILMULOSF"]
["CPIRLMULFM"]
["CPIRLMULSF"]
["CPIRLPRFM"]
["CPIRLPROFM"]
["CPIRLPROSF"]
["CPIRLPRSF"]
["CPRBAMFM"]
["CPRBAMSF"]
["CPRBAOFM"]
["CPRBAOSF"]
["CPRTMFM"]
["CPRTMSF"]
["CPRTOFM"]
["CPRTOSF"]
["CPRUENSFM"]
["CPRUENSOFM"]
["CPRUENSOSF"]
["CPRUENSSF"]
["CPRUPRFM"]
["CPRUPROFM"]
["CPRUPROSF"]
["CPRUPRSF"]
["CPRUSECFM"]
["CPRUSECOFM"]
["CPRUSECOSF"]
["CPRUSECSF"]
["ECMIXBASFM"]
["ECMIXBASSF"]
["ECMIXHAUFM"]
["ECMIXHAUSF"]
["ECMIXNEUFM"]
["ECMIXNEUSF"]
["ECSELBASFM"]
["ECSELBASSF"]
["ECSELHAUFM"]
["ECSELHAUSF"]
["ECSELNEUFM"]
["ECSELNEUSF"]
["EJPCLAS"]
["EJPGCLAS"]
["EJPGINI"]
["EJPINI"]
["Inscrire une valeur"]
[]
["Codes_DICA vs Codes_RATF","Codes_RATF","Indirect","Description"]
["CJB-EMR","CJBM","RATF_CJB_EMR","Coupe de jardinage par bandes avec éclaircie dans la matrice résiduelle, Martelage"]
["CJB-EMR","CJBMO","RATF_CJB_EMR","Coupe de jardinage par bandes avec éclaircie dans la matrice résiduelle, Opérateur"]
["CJP-AM","CJPAM","RATF_CJP_AM","Coupe de jardinage par pieds d'arbre, amélioration de la qualité, Martelage"]
["CJPG-AM","CJPGAM","RATF_CJPG_AM","Coupe de jardinage par pieds d'arbre et groupes d'arbres, amélioration de la qualité, Martelage"]
["CJPG-HQ","CJPGHQ","RATF_CJPG_HQ","Coupe de jardinage par pieds d'arbre et groupes d'arbres, maintien d'une haute qualité, Martelage"]
["CJPG-QM","CJPGQM","RATF_CJPG_QM","Coupe de jardinage par pieds d'arbre et groupes d'arbres, maintien d'une qualité modérée, Martelage"]
["CJP-HQ","CJPHQ","RATF_CJP_HQ","Coupe de jardinage par pieds d'arbre, maintien d'une haute qualité, Martelage"]
["CJP-QM","CJPQM","RATF_CJP_QM","Coupe de jardinage par pieds d'arbre, maintien d'une qualité modérée, Martelage"]
["CJT-EMR","CJTM","RATF_CJT_EMR","Coupe de jardinage par trouées avec éclaircie dans la matrice résiduelle, Martelage"]
["CJT-EMR","CJTMO","RATF_CJT_EMR","Coupe de jardinage par trouées avec éclaircie dans la matrice résiduelle, Opérateur"]
["CPI_CP-ENS_B","CPIENSBMSF","RATF_CPI_CP_ENS_B","Coupe progressive irrégulière à couvert permanent par bandes, coupe d'ensemencement, Martelage, type de peuplement SEPM, feuillus intolérants et mixte résineux"]
["CPI_CP-ENS_B","CPIENSBOSF","RATF_CPI_CP_ENS_B","Coupe progressive irrégulière à couvert permanent par bandes, coupe d'ensemencement, Opérateur, type de peuplement SEPM, feuillus intolérants et mixte résineux"]
["CPI_CP-ENS_U","CPIUENSFM","RATF_CPI_CP_ENS_U","Coupe progressive irrégulière à couvert permanent, coupe d'ensemencement, patron d'intervention uniforme, Martelage,  type de peuplement feuillus tolérants, autres résineux et mixte feuillus"]
["CPI_CP-ENS_U","CPIUENSOFM","RATF_CPI_CP_ENS_U","Coupe progressive irrégulière à couvert permanent, coupe d'ensemencement, patron d'intervention uniforme, Opérateur,  type de peuplement feuillus tolérants, autres résineux et mixte feuillus"]
["CPI_CP-ENS_U","CPIUENSOSF","RATF_CPI_CP_ENS_U","Coupe progressive irrégulière à couvert permanent, coupe d'ensemencement, patron d'intervention uniforme, Opérateur,  type de peuplement SEPM, feuillus intolérants et mixte résineux"]
["CPI_CP-ENS_U","CPIUENSSF","RATF_CPI_CP_ENS_U","Coupe progressive irrégulière à couvert permanent, coupe d'ensemencement, patron d'intervention uniforme, Martelage,  type de peuplement SEPM, feuillus intolérants et mixte résineux"]
["CPI_CP-SEC_B","CPISECBMSF","RATF_CPI_CP_SEC_B","Coupe progressive irrégulière à couvert permanent par bandes, coupe secondaire, Martelage, type de peuplement SEPM, feuillus intolérants et mixte résineux"]
["CPI_CP-SEC_B","CPISECBOSF","RATF_CPI_CP_SEC_B","Coupe progressive irrégulière à couvert permanent par bandes, coupe secondaire, Opérateur, type de peuplement SEPM, feuillus intolérants et mixte résineux"]
["CPI_CP-SEC_U","CPIUSECFM","RATF_CPI_CP_SEC_U","Coupe progressive irrégulière à couvert permanent, coupe secondaire, patron d'intervention uniforme, Martelage,  type de peuplement feuillus tolérants, autres résineux et mixte feuillus"]
["CPI_CP-SEC_U","CPIUSECOFM","RATF_CPI_CP_SEC_U","Coupe progressive irrégulière à couvert permanent, coupe secondaire, patron d'intervention uniforme, Opérateur,  type de peuplement feuillus tolérants, autres résineux et mixte feuillus"]
["CPI_CP-SEC_U","CPIUSECOSF","RATF_CPI_CP_SEC_U","Coupe progressive irrégulière à couvert permanent, coupe secondaire, patron d'intervention uniforme, Opérateur,  type de peuplement SEPM, feuillus intolérants et mixte résineux"]
["CPI_CP-SEC_U","CPIUSECSF","RATF_CPI_CP_SEC_U","Coupe progressive irrégulière à couvert permanent, coupe secondaire, patron d'intervention uniforme, Martelage,  type de peuplement SEPM, feuillus intolérants et mixte résineux"]
["CPI_RL-1INR_ENS","1INRENSMFM","RATF_CPI_RL_1INR_ENS","Coupe progressive irrégulière à régénération lente en 1 intervention et abandon du volume résiduel, phase d'ensemencement, Martelage, type de peuplement feuillus tolérants, autres résineux et mixte feuillus"]
["CPI_RL-1INR_ENS","1INRENSMSF","RATF_CPI_RL_1INR_ENS","Coupe progressive irrégulière à régénération lente en 1 intervention et abandon du volume résiduel, phase d'ensemencement, Martelage, type de peuplement SEPM, feuillus intolérants et mixte résineux"]
["CPI_RL-1INR_ENS","1INRENSOFM","RATF_CPI_RL_1INR_ENS","Coupe progressive irrégulière à régénération lente en 1 intervention et abandon du volume résiduel, phase d'ensemencement, Opérateur, type de peuplement feuillus tolérants, autres résineux et mixte feuillus"]
["CPI_RL-1INR_ENS","1INRENSOSF","RATF_CPI_RL_1INR_ENS","Coupe progressive irrégulière à régénération lente en 1 intervention et abandon du volume résiduel, phase d'ensemencement, Opérateur, type de peuplement SEPM, feuillus intolérants et mixte résineux"]
["CPI_RL-1INR_MUL","1INRMULMFM","RATF_CPI_RL_1INR_MUL","Coupe progressive irrégulière à régénération lente en 1 intervention et abandon du volume résiduel, Multiples phases, Martelage, type de peuplement feuillus tolérants, autres résineux et mixte feuillus"]
["CPI_RL-1INR_MUL","1INRMULMSF","RATF_CPI_RL_1INR_MUL","Coupe progressive irrégulière à régénération lente en 1 intervention et abandon du volume résiduel, Multiples phases, Martelage, type de peuplement SEPM, feuillus intolérants et mixte résineux"]
["CPI_RL-1INR_MUL","1INRMULOFM","RATF_CPI_RL_1INR_MUL","Coupe progressive irrégulière à régénération lente en 1 intervention et abandon du volume résiduel, Multiples phases, Opérateur, type de peuplement feuillus tolérants, autres résineux et mixte feuillus"]
["CPI_RL-1INR_MUL","1INRMULOSF","RATF_CPI_RL_1INR_MUL","Coupe progressive irrégulière à régénération lente en 1 intervention et abandon du volume résiduel, Multiples phases, Opérateur, type de peuplement SEPM, feuillus intolérants et mixte résineux"]
["CPI_RL-1INR_SEC","1INRSECMFM","RATF_CPI_RL_1INR_SEC","Coupe progressive irrégulière à régénération lente en 1 intervention et abandon du volume résiduel, phase secondaire, Martelage, type de peuplement feuillus tolérants, autres résineux et mixte feuillus"]
["CPI_RL-1INR_SEC","1INRSECMSF","RATF_CPI_RL_1INR_SEC","Coupe progressive irrégulière à régénération lente en 1 intervention et abandon du volume résiduel, phase secondaire, Martelage, type de peuplement SEPM, feuillus intolérants et mixte résineux"]
["CPI_RL-1INR_SEC","1INRSECOFM","RATF_CPI_RL_1INR_SEC","Coupe progressive irrégulière à régénération lente en 1 intervention et abandon du volume résiduel, phase secondaire, Opérateur, type de peuplement feuillus tolérants, autres résineux et mixte feuillus"]
["CPI_RL-1INR_SEC","1INRSECOSF","RATF_CPI_RL_1INR_SEC","Coupe progressive irrégulière à régénération lente en 1 intervention et abandon du volume résiduel, phase secondaire, Opérateur, type de peuplement SEPM, feuillus intolérants et mixte résineux"]
["CPI_RL-2I_ENS","CPIL2ENOFM","RATF_CPI_RL_2I_ENS","Coupe progressive irrégulière à régénération lente, 2 interventions, coupe d'ensemencement, Opérateur, type de peuplement feuillus tolérants, autres résineux et mixte feuillus"]
["CPI_RL-2I_ENS","CPIL2ENOSF","RATF_CPI_RL_2I_ENS","Coupe progressive irrégulière à régénération lente, 2 interventions, coupe d'ensemencement, Opérateur, type de peuplement SEPM, feuillus intolérants et mixte résineux"]
["CPI_RL-2I_ENS","CPIRL2ENFM","RATF_CPI_RL_2I_ENS","Coupe progressive irrégulière à régénération lente, 2 interventions, coupe d'ensemencement, Martelage, type de peuplement feuillus tolérants, autres résineux et mixte feuillus"]
["CPI_RL-2I_ENS","CPIRL2ENSF","RATF_CPI_RL_2I_ENS","Coupe progressive irrégulière à régénération lente, 2 interventions, coupe d'ensemencement, Martelage, type de peuplement SEPM, feuillus intolérants et mixte résineux"]
["CPI_RL-2I_MUL","2IMULMFM","RATF_CPI_RL_2I_MUL","Coupe progressive irrégulière à régénération lente en 2 interventions et abandon du volume résiduel, Multiples phases, Martelage, type de peuplement feuillus tolérants, autres résineux et mixte feuillus"]
["CPI_RL-2I_MUL","2IMULMSF","RATF_CPI_RL_2I_MUL","Coupe progressive irrégulière à régénération lente en 2 interventions et abandon du volume résiduel, Multiples phases, Martelage, type de peuplement SEPM, feuillus intolérants et mixte résineux"]
["CPI_RL-2I_MUL","2IMULOFM","RATF_CPI_RL_2I_MUL","Coupe progressive irrégulière à régénération lente en 2 interventions et abandon du volume résiduel, Multiples phases, Opérateur, type de peuplement feuillus tolérants, autres résineux et mixte feuillus"]
["CPI_RL-2I_MUL","2IMULOSF","RATF_CPI_RL_2I_MUL","Coupe progressive irrégulière à régénération lente en 2 interventions et abandon du volume résiduel, Multiples phases, Opérateur, type de peuplement SEPM, feuillus intolérants et mixte résineux"]
["CPI_RL-2I_SEC","CPIL2SEOFM","RATF_CPI_RL_2I_SEC","Coupe progressive irrégulière à régénération lente, 2 interventions, coupe secondaire, Opérateur, type de peuplement feuillus tolérants, autres résineux, mixte feuillus"]
["CPI_RL-2I_SEC","CPIL2SEOSF","RATF_CPI_RL_2I_SEC","Coupe progressive irrégulière à régénération lente, 2 interventions, coupe secondaire, Opérateur, type de peuplement SEPM, feuillus intolérants, mixte résineux"]
["CPI_RL-2I_SEC","CPIRL2SEFM","RATF_CPI_RL_2I_SEC","Coupe progressive irrégulière à régénération lente, 2 interventions, coupe secondaire, Martelage, type de peuplement feuillus tolérants, autres résineux, mixte feuillus"]
["CPI_RL-2I_SEC","CPIRL2SESF","RATF_CPI_RL_2I_SEC","Coupe progressive irrégulière à régénération lente, 2 interventions, coupe secondaire, Martelage, type de peuplement SEPM, feuillus intolérants, mixte résineux"]
["CPI_RL-3I_ENS","CPIL3ENOFM","RATF_CPI_RL_3I_ENS","Coupe progressive irrégulière à régénération lente, 3 interventions, coupe d'ensemencement, Opérateur, type de peuplement feuillus tolérants, autres résineux et mixte feuillus"]
["CPI_RL-3I_ENS","CPIL3ENOSF","RATF_CPI_RL_3I_ENS","Coupe progressive irrégulière à régénération lente, 3 interventions, coupe d'ensemencement, Opérateur, type de peuplement SEPM, feuillus intolérants et mixte résineux"]
["CPI_RL-3I_ENS","CPIRL3ENFM","RATF_CPI_RL_3I_ENS","Coupe progressive irrégulière à régénération lente, 3 interventions, coupe d'ensemencement, Martelage, type de peuplement feuillus tolérants, autres résineux et mixte feuillus"]
["CPI_RL-3I_ENS","CPIRL3ENSF","RATF_CPI_RL_3I_ENS","Coupe progressive irrégulière à régénération lente, 3 interventions, coupe d'ensemencement, Martelage, type de peuplement SEPM, feuillus intolérants et mixte résineux"]
["CPI_RL-3I_MUL","3IMULMFM","RATF_CPI_RL_3I_MUL","Coupe progressive irrégulière à régénération lente en 3 interventions et abandon du volume résiduel, Multiples phases, Martelage, type de peuplement feuillus tolérants, autres résineux et mixte feuillus"]
["CPI_RL-3I_MUL","3IMULMSF","RATF_CPI_RL_3I_MUL","Coupe progressive irrégulière à régénération lente en 3 interventions et abandon du volume résiduel, Multiples phases, Martelage, type de peuplement SEPM, feuillus intolérants et mixte résineux"]
["CPI_RL-3I_MUL","3IMULOFM","RATF_CPI_RL_3I_MUL","Coupe progressive irrégulière à régénération lente en 3 interventions et abandon du volume résiduel, Multiples phases, Opérateur, type de peuplement feuillus tolérants, autres résineux et mixte feuillus"]
["CPI_RL-3I_MUL","3IMULOSF","RATF_CPI_RL_3I_MUL","Coupe progressive irrégulière à régénération lente en 3 interventions et abandon du volume résiduel, Multiples phases, Opérateur, type de peuplement SEPM, feuillus intolérants et mixte résineux"]
["CPI_RL-3I_SEC","CPIL3SEOFM","RATF_CPI_RL_3I_SEC","Coupe progressive irrégulière à régénération lente, 3 interventions, coupe secondaire, Opérateur, type de peuplement feuillus tolérants, autres résineux, mixte feuillus"]
["CPI_RL-3I_SEC","CPIL3SEOSF","RATF_CPI_RL_3I_SEC","Coupe progressive irrégulière à régénération lente, 3 interventions, coupe secondaire, Opérateur, type de peuplement SEPM, feuillus intolérants, mixte résineux"]
["CPI_RL-3I_SEC","CPIRL3SEFM","RATF_CPI_RL_3I_SEC","Coupe progressive irrégulière à régénération lente, 3 interventions, coupe secondaire, Martelage, type de peuplement feuillus tolérants, autres résineux, mixte feuillus"]
["CPI_RL-3I_SEC","CPIRL3SESF","RATF_CPI_RL_3I_SEC","Coupe progressive irrégulière à régénération lente, 3 interventions, coupe secondaire, Martelage, type de peuplement SEPM, feuillus intolérants, mixte résineux"]
["CPI_RL-MUL","CPILMULOFM","RATF_CPI_RL_MUL","Coupe progressive irrégulière à régénération lente, coupe multiples phases, Opérateur, type de peuplement feuillus tolérants, autres résineux et mixte feuillus"]
["CPI_RL-MUL","CPILMULOSF","RATF_CPI_RL_MUL","Coupe progressive irrégulière à régénération lente, coupe multiples phases, Opérateur, type de peuplement SEPM, feuillus intolérants, mixte feuillus"]
["CPI_RL-MUL","CPIRLMULFM","RATF_CPI_RL_MUL","Coupe progressive irrégulière à régénération lente, coupe multiples phases, Martelage, type de peuplement feuillus tolérants, autres résineux et mixte feuillus"]
["CPI_RL-MUL","CPIRLMULSF","RATF_CPI_RL_MUL","Coupe progressive irrégulière à régénération lente, coupe multiples phases, Martelage, type de peuplement SEPM, feuillus intolérants, mixte feuillus"]
["CPI_RL-PR","CPIRLPRFM","RATF_CPI_RL_PR","Coupe progressive irrégulière à régénération lente, coupe préparatoire, Martelage, type de peuplement feuillus tolérants, autres résineux et mixte feuillus"]
["CPI_RL-PR","CPIRLPROFM","RATF_CPI_RL_PR","Coupe progressive irrégulière à régénération lente, coupe préparatoire, Opérateur, type de peuplement feuillus tolérants, autres résineux et mixte feuillus"]
["CPI_RL-PR","CPIRLPROSF","RATF_CPI_RL_PR","Coupe progressive irrégulière à régénération lente, coupe préparatoire, Opérateur, type de peuplement SEPM, feuillus intolérants et mixte résineux"]
["CPI_RL-PR","CPIRLPRSF","RATF_CPI_RL_PR","Coupe progressive irrégulière à régénération lente, coupe préparatoire, Martelage, type de peuplement SEPM, feuillus intolérants et mixte résineux"]
["CPR_BA","CPRBAMFM","RATF_CPR_BA","Coupe progressive régulière par bande, Martelage, type de peuplement feuillus tolérants, autres résineux et mixte feuillus"]
["CPR_BA","CPRBAMSF","RATF_CPR_BA","Coupe progressive régulière par bande, Martelage, type de peuplement  SEPM, feuillus intolérants et mixte résineux"]
["CPR_BA","CPRBAOFM","RATF_CPR_BA","Coupe progressive régulière par bande, Opérateur, type de peuplement feuillus tolérants, autres résineux et mixte feuillus"]
["CPR_BA","CPRBAOSF","RATF_CPR_BA","Coupe progressive régulière par bande, Opérateur, type de peuplement  SEPM, feuillus intolérants et mixte résineux"]
["CPR_T","CPRTMFM","RATF_CPR_T","Coupe progressive régulière par troués, Martelage, type de peuplement feuillus tolérants, autres résineux et mixte feuillus"]
["CPR_T","CPRTMSF","RATF_CPR_T","Coupe progressive régulière par trouées, Martelage, type de peuplement  SEPM, feuillus intolérants et mixte résineux"]
["CPR_T","CPRTOFM","RATF_CPR_T","Coupe progressive régulière par trouées, Opérateur, type de peuplement feuillus tolérants, autres résineux et mixte feuillus"]
["CPR_T","CPRTOSF","RATF_CPR_T","Coupe progressive régulière par trouées, Opérateur, type de peuplement  SEPM, feuillus intolérants et mixte résineux"]
["CPR_U-ENS","CPRUENSFM","RATF_CPR_U_ENS","Coupe progressive régulière uniforme, coupe d'ensemencement, Martelage, type de peuplement feuillus tolérants, autres résineux et mixte feuillus"]
["CPR_U-ENS","CPRUENSOFM","RATF_CPR_U_ENS","Coupe progressive régulière uniforme, coupe d'ensemencement, Opérateur, type de peuplement feuillus tolérants, autres résineux et mixte feuillus"]
["CPR_U-ENS","CPRUENSOSF","RATF_CPR_U_ENS","Coupe progressive régulière uniforme, coupe d'ensemencement, Opérateur, type de peuplement SEPM, feuillus intolérants et mixte résineux"]
["CPR_U-ENS","CPRUENSSF","RATF_CPR_U_ENS","Coupe progressive régulière uniforme, coupe d'ensemencement, Martelage, type de peuplement SEPM, feuillus intolérants et mixte résineux"]
["CPR_U-PR","CPRUPRFM","RATF_CPR_U_PR","Coupe progressive régulière uniforme, coupe préparatoire, Martelage, type de peuplement feuillus tolérants, autres résineux et mixte feuillus"]
["CPR_U-PR","CPRUPROFM","RATF_CPR_U_PR","Coupe progressive régulière uniforme, coupe préparatoire, Opérateur, peuplement feuillus tolérants, autres résineux et mixte feuillus"]
["CPR_U-PR","CPRUPROSF","RATF_CPR_U_PR","Coupe progressive régulière uniforme, Coupe préparatoire, Opérateur, peuplement SEPM, feuillus intolérants et mixte résineux"]
["CPR_U-PR","CPRUPRSF","RATF_CPR_U_PR","Coupe progressive régulière uniforme, coupe préparatoire, Martelage, type de peuplement SEPM, feuillus intolérants et mixte résineux"]
["CPR_U-SEC","CPRUSECFM","RATF_CPR_U_SEC","Coupe progressive régulière uniforme, coupe secondaire, Martelage, type de peuplement feuillus tolérants, autres résineux et mixte feuillus"]
["CPR_U-SEC","CPRUSECOFM","RATF_CPR_U_SEC","Coupe progressive régulière uniforme, coupe secondaire, Opérateur, type de peuplement feuillus tolérants, autres résineux et mixte feuillus"]
["CPR_U-SEC","CPRUSECOSF","RATF_CPR_U_SEC","Coupe progressive régulière uniforme, coupe secondaire, Opérateur, type de peuplement SEPM, feuillus intolérants et mixte résineux"]
["CPR_U-SEC","CPRUSECSF","RATF_CPR_U_SEC","Coupe progressive régulière uniforme, coupe secondaire, Martelage, type de peuplement SEPM, feuillus intolérants et mixte résineux"]
["EC_MIXTE-BAS","ECMIXBASFM","RATF_EC_MIXTE_BAS","Éclaircie commerciale mixte par le bas, peuplement feuillus tolérants, autres résineux et mixte feuillus, taux variable"]
["EC_MIXTE-BAS","ECMIXBASSF","RATF_EC_MIXTE_BAS","Éclaircie commerciale mixte par le bas, peuplement SEPM, feuillus intolérants et mixte à tendance résineuse, taux variable"]
["EC_MIXTE-HAUT","ECMIXHAUFM","RATF_EC_MIXTE_HAUT","Éclaircie commerciale mixte par le haut, peuplement feuillus tolérants, autres résineux et mixte feuillus, taux variable"]
["EC_MIXTE-HAUT","ECMIXHAUSF","RATF_EC_MIXTE_HAUT","Éclaircie commerciale mixte par le haut, peuplement SEPM, feuillus intolérants et mixte à tendance résineuse, taux variable"]
["EC_MIXTE-NEUTRE","ECMIXNEUFM","RATF_EC_MIXTE_NEUTRE","Éclaircie commerciale patron d'intervention mixte neutre, peuplement feuillus tolérants, autres résineux et mixte feuillus, taux variable"]
["EC_MIXTE-NEUTRE","ECMIXNEUSF","RATF_EC_MIXTE_NEUTRE","Éclaircie commerciale mixte neutre, peuplement SEPM, feuillus intolérants et mixte à tendance résineuse, taux variable"]
["EC_SEL-BAS","ECSELBASFM","RATF_EC_SEL_BAS","Éclaircie commerciale sélective par le bas, peuplement feuillus tolérants, autres résineux et mixte feuillus, taux variable"]
["EC_SEL-BAS","ECSELBASSF","RATF_EC_SEL_BAS","Éclaircie commerciale sélective par le bas, peuplement SEPM et mixte à tendance résineuse et feuillus intolérants, taux variable"]
["EC_SEL-HAUT","ECSELHAUFM","RATF_EC_SEL_HAUT","Éclaircie commerciale sélective par le haut, peuplement feuillus tolérants, autres résineux et mixte feuillus, taux variable"]
["EC_SEL-HAUT","ECSELHAUSF","RATF_EC_SEL_HAUT","Éclaircie commerciale sélective par le haut, peuplement SEPM et mixte à tendance résineuse et feuillus intolérants, taux variable"]
["EC_SEL-NEUTRE","ECSELNEUFM","RATF_EC_SEL_NEUTRE","Éclaircie commerciale sélective neutre, peuplement feuillus tolérants, autres résineux et mixte feuillus, taux variable"]
["EC_SEL-NEUTRE","ECSELNEUSF","RATF_EC_SEL_NEUTRE","Éclaircie commerciale sélective neutre, peuplement SEPM et mixte à tendance résineuse et feuillus intolérants, taux variable"]
["EJ_P-CLAS","EJPCLAS","RATF_EJ_P_CLAS","Éclaircie jardinatoire par pied d'arbre classique ou finale, Martelage"]
["EJ_PG-CLAS","EJPGCLAS","RATF_EJ_PG_CLAS","Éclaircie jardinatoire par pied d'arbre et groupes d'arbres, classique ou finale, Martelage"]
["EJ_PG-INI","EJPGINI","RATF_EJ_PG_INI","Éclaircie jardinatoire par pied d'arbre et groupes d'arbres initiale, Martelage"]
["EJ_P-INI","EJPINI","RATF_EJ_P_INI","Éclaircie jardinatoire par pied d'arbre initiale, Martelage"]
["Inscrire une valeur",null,"RATF_Utilisateur"]
[]
[]
["Identification des tiges à récolter","Indirect","Valeur_menu_déroulant"]
["Formule 1 - EC1","Selection_Formule_1-EC1","Sans objet"]
["Formule 1 - EC2","Selection_Formule_1-EC2","Sans objet"]
["Formule 2","Selection_Formule_2","Sans objet"]
["Formule 4","Selection_Formule_4","Martelage"]
["Formule 4","Selection_Formule_4","Opérateur"]
["Formule 6","Selection_Formule_6","Opérateur"]
["Formule 7","Selection_Formule_7","Martelage"]
[]
[]
["H1"]
["AVEC hébergement",3.2000000000000001E-2]
["SANS hébergement",0]
[]
[]
["MAN"]
["Opérations MANUELLES",0.36,"Majoration_MAN_F1"]
["Opérations MÉCANISÉES",0,"Majoration_MAN_F1"]
["Sans objet",0,"Majoration_MAN_DIFF_F1"]
[]
[]
["RUB"]
["Pas de rubannage des sentiers"]
["Inscrire une valeur"]
[20]
[21]
[22]
[23]
[24]
[25]
[26]
[27]
[28]
[29]
[30]
[]
[]
["Formules"]
["Formule 1 - EC1"]
["Formule 1 - EC2"]
["Formule 2"]
["Formule 4"]
["Formule 6"]
["Formule 7"]
["Inscrire une valeur"]
[]
[]
["Code_DICA_vs_Formules","Formule_fin",null,"Valeur_pour_Indirect","DICA_sans_caractères_spéciaux","Indirect"]
["CJB-EMR",4,"Formule_4_CJB-EMR","Formule 4","CJB_EMR","F_CJB_EMR"]
["CJB-EMR",5,"Formule_5_CJB-EMR","Formule 5","CJB_EMR","F_CJB_EMR"]
["CJP-AM",4,"Formule_4_CJP-AM","Formule 4","CJP_AM","F_CJP_AM"]
["CJPG-AM",4,"Formule_4_CJPG-AM","Formule 4","CJPG_AM","F_CJPG_AM"]
["CJPG-HQ",4,"Formule_4_CJPG-HQ","Formule 4","CJPG_HQ","F_CJPG_HQ"]
["CJPG-QM",4,"Formule_4_CJPG-QM","Formule 4","CJPG_QM","F_CJPG_QM"]
["CJP-HQ",4,"Formule_4_CJP-HQ","Formule 4","CJP_HQ","F_CJP_HQ"]
["CJP-QM",4,"Formule_4_CJP-QM","Formule 4","CJP_QM","F_CJP_QM"]
["CJT-EMR",4,"Formule_4_CJT-EMR","Formule 4","CJT_EMR","F_CJT_EMR"]
["CJT-EMR",5,"Formule_5_CJT-EMR","Formule 5","CJT_EMR","F_CJT_EMR"]
["CPI_CP-ENS_B",6,"Formule_6_CPI_CP-ENS_B","Formule 6","CPI_CP_ENS_B","F_CPI_CP_ENS_B"]
["CPI_CP-ENS_B",7,"Formule_7_CPI_CP-ENS_B","Formule 7","CPI_CP_ENS_B","F_CPI_CP_ENS_B"]
["CPI_CP-ENS_U",4,"Formule_4_CPI_CP-ENS_U","Formule 4","CPI_CP_ENS_U","F_CPI_CP_ENS_U"]
["CPI_CP-ENS_U",5,"Formule_6_CPI_CP-ENS_U","Formule 6","CPI_CP_ENS_U","F_CPI_CP_ENS_U"]
["CPI_CP-ENS_U",6,"Formule_7_CPI_CP-ENS_U","Formule 7","CPI_CP_ENS_U","F_CPI_CP_ENS_U"]
["CPI_CP-ENS_U",5,"Formule_5_CPI_CP-ENS_U","Formule 5","CPI_CP_ENS_U","F_CPI_CP_ENS_U"]
["CPI_CP-SEC_B",6,"Formule_6_CPI_CP-SEC_B","Formule 6","CPI_CP_SEC_B","F_CPI_CP_SEC_B"]
["CPI_CP-SEC_B",7,"Formule_7_CPI_CP-SEC_B","Formule 7","CPI_CP_SEC_B","F_CPI_CP_SEC_B"]
["CPI_CP-SEC_U",4,"Formule_4_CPI_CP-SEC_U","Formule 4","CPI_CP_SEC_U","F_CPI_CP_SEC_U"]
["CPI_CP-SEC_U",6,"Formule_6_CPI_CP-SEC_U","Formule 6","CPI_CP_SEC_U","F_CPI_CP_SEC_U"]
["CPI_CP-SEC_U",7,"Formule_7_CPI_CP-SEC_U","Formule 7","CPI_CP_SEC_U","F_CPI_CP_SEC_U"]
["CPI_CP-SEC_U",5,"Formule_5_CPI_CP-SEC_U","Formule 5","CPI_CP_SEC_U","F_CPI_CP_SEC_U"]
["CPI_RL-1INR_ENS",4,"Formule_4_CPI_RL-1INR_ENS","Formule 4","CPI_RL-1INR_ENS","F_CPI_RL_1INR_ENS"]
["CPI_RL-1INR_ENS",6,"Formule_6_CPI_RL-1INR_ENS","Formule 6","CPI_RL-1INR_ENS","F_CPI_RL_1INR_ENS"]
["CPI_RL-1INR_ENS",7,"Formule_7_CPI_RL-1INR_ENS","Formule 7","CPI_RL-1INR_ENS","F_CPI_RL_1INR_ENS"]
["CPI_RL-1INR_ENS",5,"Formule_5_CPI_RL-1INR_ENS","Formule 5","CPI_RL-1INR_ENS","F_CPI_RL_1INR_ENS"]
["CPI_RL-1INR_MUL",4,"Formule_4_CPI_RL-1INR_MUL","Formule 4","CPI_RL-1INR_MUL","F_CPI_RL_1INR_MUL"]
["CPI_RL-1INR_MUL",6,"Formule_6_CPI_RL-1INR_MUL","Formule 6","CPI_RL-1INR_MUL","F_CPI_RL_1INR_MUL"]
["CPI_RL-1INR_MUL",7,"Formule_7_CPI_RL-1INR_MUL","Formule 7","CPI_RL-1INR_MUL","F_CPI_RL_1INR_MUL"]
["CPI_RL-1INR_MUL",5,"Formule_5_CPI_RL-1INR_MUL","Formule 5","CPI_RL-1INR_MUL","F_CPI_RL_1INR_MUL"]
["CPI_RL-1INR_SEC",4,"Formule_4_CPI_RL-1INR_SEC","Formule 4","CPI_RL-1INR_SEC","F_CPI_RL_1INR_SEC"]
["CPI_RL-1INR_SEC",6,"Formule_6_CPI_RL-1INR_SEC","Formule 6","CPI_RL-1INR_SEC","F_CPI_RL_1INR_SEC"]
["CPI_RL-1INR_SEC",7,"Formule_7_CPI_RL-1INR_SEC","Formule 7","CPI_RL-1INR_SEC","F_CPI_RL_1INR_SEC"]
["CPI_RL-1INR_SEC",5,"Formule_5_CPI_RL-1INR_SEC","Formule 5","CPI_RL-1INR_SEC","F_CPI_RL_1INR_SEC"]
["CPI_RL-2I_ENS",4,"Formule_4_CPI_RL-2I_ENS","Formule 4","CPI_RL_2I_ENS","F_CPI_RL_2I_ENS"]
["CPI_RL-2I_ENS",6,"Formule_6_CPI_RL-2I_ENS","Formule 6","CPI_RL_2I_ENS","F_CPI_RL_2I_ENS"]
["CPI_RL-2I_ENS",7,"Formule_7_CPI_RL-2I_ENS","Formule 7","CPI_RL_2I_ENS","F_CPI_RL_2I_ENS"]
["CPI_RL-2I_ENS",5,"Formule_5_CPI_RL-2I_ENS","Formule 5","CPI_RL_2I_ENS","F_CPI_RL_2I_ENS"]
["CPI_RL-2I_MUL",4,"Formule_4_CPI_RL-2I_MUL","Formule 4","CPI_RL-2I_MUL","F_CPI_RL_2I_MUL"]
["CPI_RL-2I_MUL",6,"Formule_6_CPI_RL-2I_MUL","Formule 6","CPI_RL-2I_MUL","F_CPI_RL_2I_MUL"]
["CPI_RL-2I_MUL",7,"Formule_7_CPI_RL-2I_MUL","Formule 7","CPI_RL-2I_MUL","F_CPI_RL_2I_MUL"]
["CPI_RL-2I_MUL",5,"Formule_5_CPI_RL-2I_MUL","Formule 5","CPI_RL-2I_MUL","F_CPI_RL_2I_MUL"]
["CPI_RL-2I_SEC",4,"Formule_4_CPI_RL-2I_SEC","Formule 4","CPI_RL_2I_SEC","F_CPI_RL_2I_SEC"]
["CPI_RL-2I_SEC",6,"Formule_6_CPI_RL-2I_SEC","Formule 6","CPI_RL_2I_SEC","F_CPI_RL_2I_SEC"]
["CPI_RL-2I_SEC",7,"Formule_7_CPI_RL-2I_SEC","Formule 7","CPI_RL_2I_SEC","F_CPI_RL_2I_SEC"]
["CPI_RL-2I_SEC",5,"Formule_5_CPI_RL-2I_SEC","Formule 5","CPI_RL_2I_SEC","F_CPI_RL_2I_SEC"]
["CPI_RL-3I_ENS",4,"Formule_4_CPI_RL-3I_ENS","Formule 4","CPI_RL_3I_ENS","F_CPI_RL_3I_ENS"]
["CPI_RL-3I_ENS",6,"Formule_6_CPI_RL-3I_ENS","Formule 6","CPI_RL_3I_ENS","F_CPI_RL_3I_ENS"]
["CPI_RL-3I_ENS",7,"Formule_7_CPI_RL-3I_ENS","Formule 7","CPI_RL_3I_ENS","F_CPI_RL_3I_ENS"]
["CPI_RL-3I_ENS",5,"Formule_5_CPI_RL-3I_ENS","Formule 5","CPI_RL_3I_ENS","F_CPI_RL_3I_ENS"]
["CPI_RL-3I_MUL",4,"Formule_4_CPI_RL-3I_MUL","Formule 4","CPI_RL-3I_MUL","F_CPI_RL_3I_MUL"]
["CPI_RL-3I_MUL",6,"Formule_6_CPI_RL-3I_MUL","Formule 6","CPI_RL-3I_MUL","F_CPI_RL_3I_MUL"]
["CPI_RL-3I_MUL",7,"Formule_7_CPI_RL-3I_MUL","Formule 7","CPI_RL-3I_MUL","F_CPI_RL_3I_MUL"]
["CPI_RL-3I_MUL",5,"Formule_5_CPI_RL-3I_MUL","Formule 5","CPI_RL-3I_MUL","F_CPI_RL_3I_MUL"]
["CPI_RL-3I_SEC",4,"Formule_4_CPI_RL-3I_SEC","Formule 4","CPI_RL_3I_SEC","F_CPI_RL_3I_SEC"]
["CPI_RL-3I_SEC",6,"Formule_6_CPI_RL-3I_SEC","Formule 6","CPI_RL_3I_SEC","F_CPI_RL_3I_SEC"]
["CPI_RL-3I_SEC",7,"Formule_7_CPI_RL-3I_SEC","Formule 7","CPI_RL_3I_SEC","F_CPI_RL_3I_SEC"]
["CPI_RL-3I_SEC",5,"Formule_5_CPI_RL-3I_SEC","Formule 5","CPI_RL_3I_SEC","F_CPI_RL_3I_SEC"]
["CPI_RL-MUL",4,"Formule_4_CPI_RL-MUL","Formule 4","CPI_RL_MUL","F_CPI_RL_MUL"]
["CPI_RL-MUL",6,"Formule_6_CPI_RL-MUL","Formule 6","CPI_RL_MUL","F_CPI_RL_MUL"]
["CPI_RL-MUL",7,"Formule_7_CPI_RL-MUL","Formule 7","CPI_RL_MUL","F_CPI_RL_MUL"]
["CPI_RL-MUL",5,"Formule_5_CPI_RL-MUL","Formule 5","CPI_RL_MUL","F_CPI_RL_MUL"]
["CPI_RL-PR",4,"Formule_4_CPI_RL-PR","Formule 4","CPI_RL_PR","F_CPI_RL_PR"]
["CPI_RL-PR",6,"Formule_6_CPI_RL-PR","Formule 6","CPI_RL_PR","F_CPI_RL_PR"]
["CPI_RL-PR",7,"Formule_7_CPI_RL-PR","Formule 7","CPI_RL_PR","F_CPI_RL_PR"]
["CPI_RL-PR",5,"Formule_5_CPI_RL-PR","Formule 5","CPI_RL_PR","F_CPI_RL_PR"]
["CPR_BA",4,"Formule_4_CPR_BA","Formule 4","CPR_BA","F_CPR_BA"]
["CPR_BA",6,"Formule_6_CPR_BA","Formule 6","CPR_BA","F_CPR_BA"]
["CPR_BA",7,"Formule_7_CPR_BA","Formule 7","CPR_BA","F_CPR_BA"]
["CPR_BA",5,"Formule_5_CPR_BA","Formule 5","CPR_BA","F_CPR_BA"]
["CPR_T",4,"Formule_4_CPR_T","Formule 4","CPR_T","F_CPR_T"]
["CPR_T",6,"Formule_6_CPR_T","Formule 6","CPR_T","F_CPR_T"]
["CPR_T",7,"Formule_7_CPR_T","Formule 7","CPR_T","F_CPR_T"]
["CPR_T",5,"Formule_5_CPR_T","Formule 5","CPR_T","F_CPR_T"]
["CPR_U-ENS",4,"Formule_4_CPR_U-ENS","Formule 4","CPR_U_ENS","F_CPR_U_ENS"]
["CPR_U-ENS",6,"Formule_6_CPR_U-ENS","Formule 6","CPR_U_ENS","F_CPR_U_ENS"]
["CPR_U-ENS",7,"Formule_7_CPR_U-ENS","Formule 7","CPR_U_ENS","F_CPR_U_ENS"]
["CPR_U-ENS",5,"Formule_5_CPR_U-ENS","Formule 5","CPR_U_ENS","F_CPR_U_ENS"]
["CPR_U-PR",4,"Formule_4_CPR_U-PR","Formule 4","CPR_U_PR","F_CPR_U_PR"]
["CPR_U-PR",6,"Formule_6_CPR_U-PR","Formule 6","CPR_U_PR","F_CPR_U_PR"]
["CPR_U-PR",7,"Formule_7_CPR_U-PR","Formule 7","CPR_U_PR","F_CPR_U_PR"]
["CPR_U-PR",5,"Formule_5_CPR_U-PR","Formule 5","CPR_U_PR","F_CPR_U_PR"]
["CPR_U-SEC",4,"Formule_4_CPR_U-SEC","Formule 4","CPR_U-SEC","F_CPR_U_SEC"]
["CPR_U-SEC",6,"Formule_6_CPR_U-SEC","Formule 6","CPR_U-SEC","F_CPR_U_SEC"]
["CPR_U-SEC",7,"Formule_7_CPR_U-SEC","Formule 7","CPR_U-SEC","F_CPR_U_SEC"]
["CPR_U-SEC",5,"Formule_5_CPR_U-SEC","Formule 5","CPR_U-SEC","F_CPR_U_SEC"]
["EC_MIXTE-BAS","1-EC1","Formule_1-EC1_EC_MIXTE-BAS","Formule 1 - EC1","EC_MIXTE_BAS","F_EC_MIXTE_BAS"]
["EC_MIXTE-BAS","1-EC2","Formule_1-EC2_EC_MIXTE-BAS","Formule 1 - EC2","EC_MIXTE_BAS","F_EC_MIXTE_BAS"]
["EC_MIXTE-BAS",2,"Formule_2_EC_MIXTE-BAS","Formule 2","EC_MIXTE_BAS","F_EC_MIXTE_BAS"]
["EC_MIXTE-HAUT","1-EC1","Formule_1-EC1_EC_MIXTE-HAUT","Formule 1 - EC1","EC_MIXTE_HAUT","F_EC_MIXTE_HAUT"]
["EC_MIXTE-HAUT","1-EC2","Formule_1-EC2_EC_MIXTE-HAUT","Formule 1 - EC2","EC_MIXTE_HAUT","F_EC_MIXTE_HAUT"]
["EC_MIXTE-HAUT",2,"Formule_2_EC_MIXTE-HAUT","Formule 2","EC_MIXTE_HAUT","F_EC_MIXTE_HAUT"]
["EC_MIXTE-NEUTRE","1-EC1","Formule_1-EC1_EC_MIXTE-NEUTRE","Formule 1 - EC1","EC_MIXTE_NEUTRE","F_EC_MIXTE_NEUTRE"]
["EC_MIXTE-NEUTRE","1-EC2","Formule_1-EC2_EC_MIXTE-NEUTRE","Formule 1 - EC2","EC_MIXTE_NEUTRE","F_EC_MIXTE_NEUTRE"]
["EC_MIXTE-NEUTRE",2,"Formule_2_EC_MIXTE-NEUTRE","Formule 2","EC_MIXTE_NEUTRE","F_EC_MIXTE_NEUTRE"]
["EC_SEL-BAS","1-EC1","Formule_1-EC1_EC_SEL-BAS","Formule 1 - EC1","EC_SEL_BAS","F_EC_SEL_BAS"]
["EC_SEL-BAS","1-EC2","Formule_1-EC2_EC_SEL-BAS","Formule 1 - EC2","EC_SEL_BAS","F_EC_SEL_BAS"]
["EC_SEL-BAS",2,"Formule_2_EC_SEL-BAS","Formule 2","EC_SEL_BAS","F_EC_SEL_BAS"]
["EC_SEL-HAUT","1-EC1","Formule_1-EC1_EC_SEL-HAUT","Formule 1 - EC1","EC_SEL_HAUT","F_EC_SEL_HAUT"]
["EC_SEL-HAUT","1-EC2","Formule_1-EC2_EC_SEL-HAUT","Formule 1 - EC2","EC_SEL_HAUT","F_EC_SEL_HAUT"]
["EC_SEL-HAUT",2,"Formule_2_EC_SEL-HAUT","Formule 2","EC_SEL_HAUT","F_EC_SEL_HAUT"]
["EC_SEL-NEUTRE","1-EC1","Formule_1-EC1_EC_SEL-NEUTRE","Formule 1 - EC1","EC_SEL_NEUTRE","F_EC_SEL_NEUTRE"]
["EC_SEL-NEUTRE","1-EC2","Formule_1-EC2_EC_SEL-NEUTRE","Formule 1 - EC2","EC_SEL_NEUTRE","F_EC_SEL_NEUTRE"]
["EC_SEL-NEUTRE",2,"Formule_2_EC_SEL-NEUTRE","Formule 2","EC_SEL_NEUTRE","F_EC_SEL_NEUTRE"]
["EJ_P-CLAS",4,"Formule_4_EJ_P-CLAS","Formule 4","EJ_P_CLAS","F_EJ_P_CLAS"]
["EJ_PG-CLAS",4,"Formule_4_EJ_PG-CLAS","Formule 4","EJ_PG_CLAS","F_EJ_PG_CLAS"]
["EJ_PG-INI",4,"Formule_4_EJ_PG-INI","Formule 4","EJ_PG_INI","F_EJ_PG_INI"]
["EJ_P-INI",4,"Formule_4_EJ_P-INI","Formule 4","EJ_P_INI","F_EJ_P_INI"]
[null,"1-EC1","Formule_1-EC1_Utilisateur","Formule 1 - EC1","Utilisateur","F_Utilisateur"]
[null,"1-EC2","Formule_1-EC2_Utilisateur","Formule 1 - EC2","Utilisateur","F_Utilisateur"]
[null,2,"Formule_2_Utilisateur","Formule 2","Utilisateur","F_Utilisateur"]
[null,4,"Formule_4_Utilisateur","Formule 4","Utilisateur","F_Utilisateur"]
[null,6,"Formule_6_Utilisateur","Formule 6","Utilisateur","F_Utilisateur"]
[null,7,"Formule_7_Utilisateur","Formule 7","Utilisateur","F_Utilisateur"]
[null,5,"Formule_5_Utilisateur","Formule 5","Utilisateur","F_Utilisateur"]
[]
[]
["Zone de tarification","Taux"]
[151,0]
[152,0]
[153,0]
[154,0]
[155,0]
[156,0]
[157,0]
[158,0]
[180,0]
[181,140]
[182,20]
[183,100]
[184,300]
[185,160]
[186,140]
[187,220]
[190,320]
[191,280]
[192,240]
[193,160]
[194,60]
[195,0]
[200,320]
[240,20]
[241,140]
[242,240]
[243,220]
[244,300]
[245,320]
[246,320]
[247,320]
[248,300]
[249,320]
[251,320]
[252,320]
[253,320]
[254,320]
[255,200]
[256,300]
[257,320]
[258,320]
[259,320]
[260,320]
[261,280]
[262,320]
[263,320]
[264,320]
[265,320]
[267,320]
[268,320]
[269,320]
[270,320]
[271,320]
[272,320]
[273,320]
[274,320]
[275,320]
[276,320]
[277,320]
[278,320]
[279,320]
[280,320]
[281,320]
[282,320]
[283,320]
[284,320]
[285,320]
[286,320]
[287,320]
[288,320]
[289,320]
[290,320]
[291,320]
[292,320]
[299,200]
[349,60]
[351,20]
[352,60]
[353,60]
[354,180]
[355,260]
[356,320]
[357,320]
[448,120]
[449,220]
[451,0]
[452,0]
[453,0]
[454,0]
[455,20]
[456,0]
[457,0]
[458,100]
[459,120]
[460,280]
[461,320]
[549,0]
[648,120]
[649,0]
[651,120]
[652,280]
[653,200]
[654,260]
[656,220]
[657,220]
[658,320]
[659,320]
[660,240]
[661,100]
[662,0]
[750,0]
[751,100]
[752,260]
[753,320]
[754,220]
[755,140]
[756,320]
[757,320]
[758,320]
[850,0]
[851,0]
[852,0]
[853,60]
[854,0]
[855,0]
[856,60]
[857,100]
[858,120]
[859,220]
[860,320]
[861,300]
[862,320]
[863,320]
[864,320]
[865,320]
[866,320]
[867,320]
[868,320]
[869,320]
[870,320]
[871,320]
[872,320]
[873,320]
[874,320]
[875,320]
[876,320]
[877,320]
[878,320]
[879,320]
[880,320]
[881,320]
[882,320]
[883,320]
[884,320]
[885,320]
[886,320]
[887,320]
[888,320]
[889,320]
[890,320]
[891,320]
[892,320]
[931,320]
[932,320]
[933,320]
[934,320]
[935,320]
[951,320]
[952,320]
[953,320]
[954,320]
[955,320]
[956,320]
[957,320]
[960,320]
[961,320]
[962,320]
[963,320]
[964,320]
[965,320]
[966,320]
[967,320]
[970,320]
[980,320]
[984,320]
[985,320]
[986,320]
[987,320]
[990,320]
[]
["Transport pâtes"]
["Zone","Coût final pondéré non calibré","Usine","Nom_usine","Seuil enquête","Aide $/m3","Aide arrondie $/m3","Plafond Aide","Admissibilité","Remarques"]
[151,14.534216180064009,"011-0-003","Cascades Canada ULC",-17.5986160881349,0,0,0,{"$f":"IF(F676=0,\"Non admissible\",\"Admissible\")","v":"Non admissible"}]
[152,8.1525749191702932,"011-0-003","Cascades Canada ULC",-17.5986160881349,0,0,0,{"$f":"IF(F677=0,\"Non admissible\",\"Admissible\")","v":"Non admissible"}]
[153,8.4072923127115082,"011-0-003","Cascades Canada ULC",-17.5986160881349,0,0,0,"Non admissible"]
[154,13.203965187438904,"012-0-001","Uniboard Canada INC",-17.5986160881349,0,0,0,"Non admissible"]
[155,12.943858239730924,"012-0-001","Uniboard Canada INC",-17.5986160881349,0,0,0,"Non admissible"]
[156,11.985690403220612,"012-0-001","Uniboard Canada INC",-17.5986160881349,0,0,0,"Non admissible"]
[157,10.672400053712506,"012-0-003","Tembec",-17.5986160881349,0,0,0,"Non admissible"]
[158,11.889257155413622,"012-0-003","Tembec",-17.5986160881349,0,0,0,"Non admissible"]
[180,17.213202871216836,"012-0-001","Uniboard Canada INC",-17.5986160881349,0,0,0,"Non admissible"]
[181,24.763528683296993,"012-0-003","Tembec",-17.5986160881349,7.1649125951620931,5.3333333333333304,320,"Admissible"]
[182,18.60922377721948,"012-0-001","Uniboard Canada INC",-17.5986160881349,1.0106076890845799,{"$f":"H686/$B$868","v":1},60,"Admissible"]
[183,22.307329910447603,"012-0-001","Uniboard Canada INC",-17.5986160881349,4.7087138223127027,{"$f":"H687/$B$868","v":4.666666666666667},280,"Admissible"]
[184,32.415024895844034,"012-0-001","Uniboard Canada INC",-17.5986160881349,14.816408807709134,5.3333333333333304,320,"Admissible"]
[185,25.482048007417124,"012-0-003","Tembec",-17.5986160881349,7.8834319192822235,5.3333333333333304,320,"Admissible"]
[186,25.074551123485332,"012-0-001","Uniboard Canada INC",-17.5986160881349,7.4759350353504317,5.3333333333333304,320,"Admissible"]
[187,28.68920137181853,"012-0-001","Uniboard Canada INC",-17.5986160881349,11.09058528368363,5.3333333333333304,320,"Admissible"]
[190,34.707000781730009,"012-0-003","Tembec",-17.5986160881349,17.108384693595109,5.3333333333333304,320,"Admissible"]
[191,32.033376054612638,"012-0-003","Tembec",-17.5986160881349,14.434759966477738,5.3333333333333304,320,"Admissible"]
[192,29.698055461979102,"012-0-003","Tembec",-17.5986160881349,12.099439373844202,5.3333333333333304,320,"Admissible"]
[193,25.189451920362615,"012-0-003","Tembec",-17.5986160881349,7.5908358322277145,5.3333333333333304,320,"Admissible"]
[194,22.022846502132222,"012-0-003","Tembec",-17.5986160881349,4.4242304139973214,{"$f":"H696/$B$868","v":4},240,"Admissible","Plafond $/m³ = Plafond/60"]
[195,15.324204458781866,"012-0-003","Tembec",-17.5986160881349,0,0,0,"Non admissible"]
[200,34.097485018790969,"042-0-001","Compagnie RockTenn du Canada INC",-17.5986160881349,16.498868930656069,5.3333333333333304,320,"Admissible"]
[240,18.327638894996067,"042-0-001","Compagnie RockTenn du Canada INC",-17.5986160881349,0.72902280686116683,{"$f":"H699/$B$868","v":0.66666666666666663},40,"Admissible"]
[241,24.582908840281924,"042-0-001","Compagnie RockTenn du Canada INC",-17.5986160881349,6.9842927521470237,5.3333333333333304,320,"Admissible"]
[242,31.089950461040946,"042-0-001","Compagnie RockTenn du Canada INC",-17.5986160881349,13.491334372906046,{"$f":"H701/$B$868","v":5},300,"Admissible","Plafond $/m³ = Plafond/60"]
[243,28.937430922043799,"042-0-001","Compagnie RockTenn du Canada INC",-17.5986160881349,11.338814833908899,5.3333333333333304,320,"Admissible"]
[244,32.819347653864646,"042-0-001","Compagnie RockTenn du Canada INC",-17.5986160881349,15.220731565729746,5.3333333333333304,320,"Admissible"]
[245,33.44363040778746,"042-0-001","Compagnie RockTenn du Canada INC",-17.5986160881349,15.845014319652559,5.3333333333333304,320,"Admissible"]
[246,39.816788831708415,"042-0-001","Compagnie RockTenn du Canada INC",-17.5986160881349,22.218172743573515,5.3333333333333304,320,"Admissible"]
[247,43.169855449718661,"042-0-001","Compagnie RockTenn du Canada INC",-17.5986160881349,25.571239361583761,5.3333333333333304,320,"Admissible"]
[248,32.606897042621185,"042-0-001","Compagnie RockTenn du Canada INC",-17.5986160881349,15.008280954486285,5.3333333333333304,320,"Admissible"]
[249,44.65028855442376,"042-0-001","Compagnie RockTenn du Canada INC",-17.5986160881349,27.05167246628886,5.3333333333333304,320,"Admissible"]
[251,47.162785550220157,"042-0-001","Compagnie RockTenn du Canada INC",-17.5986160881349,29.564169462085257,5.3333333333333304,320,"Admissible"]
[252,47.784507452794024,"042-0-001","Compagnie RockTenn du Canada INC",-17.5986160881349,30.185891364659124,5.3333333333333304,320,"Admissible"]
[253,56.902794611429044,"042-0-001","Compagnie RockTenn du Canada INC",-17.5986160881349,39.304178523294141,5.3333333333333304,320,"Admissible"]
[254,59.77888775072028,"042-0-001","Compagnie RockTenn du Canada INC",-17.5986160881349,42.180271662585383,5.3333333333333304,320,"Admissible"]
[255,27.656401503745741,"042-0-001","Compagnie RockTenn du Canada INC",-17.5986160881349,10.057785415610841,5.3333333333333304,320,"Admissible"]
[256,32.63384611665947,"042-0-001","Compagnie RockTenn du Canada INC",-17.5986160881349,15.03523002852457,5.3333333333333304,320,"Admissible"]
[257,37.315211716935742,"042-0-001","Compagnie RockTenn du Canada INC",-17.5986160881349,19.716595628800842,5.3333333333333304,320,"Admissible"]
[258,41.118040529233035,"042-0-001","Compagnie RockTenn du Canada INC",-17.5986160881349,23.519424441098135,5.3333333333333304,320,"Admissible"]
[259,49.266837369457605,"042-0-001","Compagnie RockTenn du Canada INC",-17.5986160881349,31.668221281322705,5.3333333333333304,320,"Admissible"]
[260,59.486131585637146,"042-0-001","Compagnie RockTenn du Canada INC",-17.5986160881349,41.88751549750225,5.3333333333333304,320,"Admissible"]
[261,31.842910218274369,"042-0-001","Compagnie RockTenn du Canada INC",-17.5986160881349,14.244294130139469,5.3333333333333304,320,"Admissible"]
[262,37.771705463237218,"042-0-001","Compagnie RockTenn du Canada INC",-17.5986160881349,20.173089375102318,5.3333333333333304,320,"Admissible"]
[263,41.882281219084597,"042-0-001","Compagnie RockTenn du Canada INC",-17.5986160881349,24.283665130949696,5.3333333333333304,320,"Admissible"]
[264,46.952318204169991,"042-0-001","Compagnie RockTenn du Canada INC",-17.5986160881349,29.353702116035091,5.3333333333333304,320,"Admissible"]
[265,52.236391075085841,"042-0-001","Compagnie RockTenn du Canada INC",-17.5986160881349,34.637774986950944,5.3333333333333304,320,"Admissible"]
[267,37.644069424009039,"042-0-001","Compagnie RockTenn du Canada INC",-17.5986160881349,20.045453335874139,5.3333333333333304,320,"Admissible"]
[268,42.48633643184457,"042-0-001","Compagnie RockTenn du Canada INC",-17.5986160881349,24.88772034370967,5.3333333333333304,320,"Admissible"]
[269,44.744841291411333,"042-0-001","Compagnie RockTenn du Canada INC",-17.5986160881349,27.146225203276433,5.3333333333333304,320,"Admissible"]
[270,46.818751848595603,"042-0-001","Compagnie RockTenn du Canada INC",-17.5986160881349,29.220135760460703,5.3333333333333304,320,"Admissible"]
[271,53.103507236884319,"042-0-001","Compagnie RockTenn du Canada INC",-17.5986160881349,35.504891148749422,5.3333333333333304,320,"Admissible"]
[272,56.663317955497227,"042-0-001","Compagnie RockTenn du Canada INC",-17.5986160881349,39.064701867362331,5.3333333333333304,320,"Admissible"]
[273,44.051235869898733,"042-0-001","Compagnie RockTenn du Canada INC",-17.5986160881349,26.452619781763833,5.3333333333333304,320,"Admissible"]
[274,44.52434827387296,"042-0-001","Compagnie RockTenn du Canada INC",-17.5986160881349,26.92573218573806,5.3333333333333304,320,"Admissible"]
[275,41.759908758755721,"042-0-001","Compagnie RockTenn du Canada INC",-17.5986160881349,24.161292670620821,5.3333333333333304,320,"Admissible"]
[276,42.743783219640356,"042-0-001","Compagnie RockTenn du Canada INC",-17.5986160881349,25.145167131505456,5.3333333333333304,320,"Admissible"]
[277,48.866937885546157,"042-0-001","Compagnie RockTenn du Canada INC",-17.5986160881349,31.268321797411257,5.3333333333333304,320,"Admissible"]
[278,49.724286170322614,"042-0-001","Compagnie RockTenn du Canada INC",-17.5986160881349,32.12567008218771,5.3333333333333304,320,"Admissible"]
[279,54.453646156767235,"042-0-001","Compagnie RockTenn du Canada INC",-17.5986160881349,36.855030068632331,5.3333333333333304,320,"Admissible"]
[280,58.705756987459381,"042-0-001","Compagnie RockTenn du Canada INC",-17.5986160881349,41.107140899324477,5.3333333333333304,320,"Admissible"]
[281,60.702602201902685,"042-0-001","Compagnie RockTenn du Canada INC",-17.5986160881349,43.103986113767789,5.3333333333333304,320,"Admissible"]
[282,53.582262844373588,"042-0-001","Compagnie RockTenn du Canada INC",-17.5986160881349,35.983646756238684,5.3333333333333304,320,"Admissible"]
[283,59.121086708760785,"042-0-001","Compagnie RockTenn du Canada INC",-17.5986160881349,41.522470620625882,5.3333333333333304,320,"Admissible"]
[284,60.033646523420465,"042-0-001","Compagnie RockTenn du Canada INC",-17.5986160881349,42.435030435285569,5.3333333333333304,320,{"$f":"IF(F741=0,\"Non admissible\",\"Admissible\")","v":"Admissible"}]
[285,56.129012706118772,"042-0-001","Compagnie RockTenn du Canada INC",-17.5986160881349,38.530396617983868,5.3333333333333304,320,"Admissible"]
[286,48.584409277845197,"042-0-001","Compagnie RockTenn du Canada INC",-17.5986160881349,30.985793189710297,5.3333333333333304,320,"Admissible"]
[287,65.031582911224163,"042-0-001","Compagnie RockTenn du Canada INC",-17.5986160881349,47.432966823089259,5.3333333333333304,320,"Admissible"]
[288,57.460342896240689,"042-0-001","Compagnie RockTenn du Canada INC",-17.5986160881349,39.861726808105786,5.3333333333333304,320,"Admissible"]
[289,53.521472033971293,"042-0-001","Compagnie RockTenn du Canada INC",-17.5986160881349,35.922855945836389,5.3333333333333304,320,"Admissible"]
[290,48.898687290017612,"042-0-001","Compagnie RockTenn du Canada INC",-17.5986160881349,31.300071201882712,5.3333333333333304,320,"Admissible"]
[291,48.440943917743461,"042-0-001","Compagnie RockTenn du Canada INC",-17.5986160881349,30.842327829608561,5.3333333333333304,320,"Admissible"]
[292,49.755763936505879,"042-0-001","Compagnie RockTenn du Canada INC",-17.5986160881349,32.157147848370983,5.3333333333333304,320,"Admissible"]
[299,27.539836889887976,"042-0-001","Compagnie RockTenn du Canada INC",-17.5986160881349,9.9412208017530759,5.3333333333333304,320,"Admissible"]
[349,22.625863875867672,"011-0-003","Cascades Canada ULC",-17.5986160881349,5.0272477877327724,{"$f":"H751/$B$868","v":3},180,"Admissible","Plafond $/m³ = Plafond/60"]
[351,18.790235499642709,"051-0-003","Domtar INC",-17.5986160881349,1.1916194115078085,1.3333333333333333,80,"Admissible"]
[352,20.784889157495961,"042-0-001","Compagnie RockTenn du Canada INC",-17.5986160881349,3.1862730693610608,3.3333333333333335,200,"Admissible"]
[353,20.354139835392129,"042-0-001","Compagnie RockTenn du Canada INC",-17.5986160881349,2.7555237472572287,2.6666666666666665,160,"Admissible"]
[354,27.242267068315538,"042-0-001","Compagnie RockTenn du Canada INC",-17.5986160881349,9.643650980180638,5,300,"Admissible","Plafond $/m³ = Plafond/60"]
[355,31.869581797952605,"051-0-003","Domtar INC",-17.5986160881349,14.270965709817705,5,300,"Admissible","Plafond $/m³ = Plafond/60"]
[356,36.352216686954648,"042-0-001","Compagnie RockTenn du Canada INC",-17.5986160881349,18.753600598819748,5.3333333333333304,320,"Admissible"]
[357,33.813308537039788,"042-0-001","Compagnie RockTenn du Canada INC",-17.5986160881349,16.214692448904888,5.3333333333333304,320,"Admissible"]
[448,23.140343141688234,"042-0-001","Compagnie RockTenn du Canada INC",-17.5986160881349,5.5417270535533341,5.3333333333333304,320,"Admissible"]
[449,28.556671037468533,"042-0-001","Compagnie RockTenn du Canada INC",-17.5986160881349,10.958054949333633,5.3333333333333304,320,"Admissible"]
[451,16.153305765446142,"042-0-001","Compagnie RockTenn du Canada INC",-17.5986160881349,0,0,0,"Non admissible"]
[452,12.75260800763342,"042-0-001","Compagnie RockTenn du Canada INC",-17.5986160881349,0,0,0,"Non admissible"]
[453,10.196483204958653,"042-0-001","Compagnie RockTenn du Canada INC",-17.5986160881349,0,0,0,"Non admissible"]
[454,10.724525169826295,"042-0-001","Compagnie RockTenn du Canada INC",-17.5986160881349,0,0,0,"Non admissible"]
[455,18.947457619869116,"042-0-001","Compagnie RockTenn du Canada INC",-17.5986160881349,1.3488415317342159,{"$f":"H765/$B$868","v":1.3333333333333333},80,"Admissible"]
[456,9.9097995638527241,"042-0-001","Compagnie RockTenn du Canada INC",-17.5986160881349,0,0,0,"Non admissible"]
[457,13.236716741304523,"042-0-001","Compagnie RockTenn du Canada INC",-17.5986160881349,0,0,0,"Non admissible"]
[458,22.737629969824354,"042-0-001","Compagnie RockTenn du Canada INC",-17.5986160881349,5.1390138816894542,{"$f":"H768/$B$868","v":5},300,"Admissible"]
[459,23.923810733671413,"042-0-001","Compagnie RockTenn du Canada INC",-17.5986160881349,6.3251946455365129,5.3333333333333304,320,"Admissible"]
[460,31.683731117398008,"042-0-001","Compagnie RockTenn du Canada INC",-17.5986160881349,14.085115029263108,5.3333333333333304,320,"Admissible"]
[461,35.501470792137752,"042-0-001","Compagnie RockTenn du Canada INC",-17.5986160881349,17.902854704002852,5.3333333333333304,320,"Admissible"]
[549,13.726904871070591,"051-0-003","Domtar INC",-17.5986160881349,0,0,0,"Non admissible"]
[648,23.478829831548886,"072-0-002","Fortress Specialty Cellulose INC",-17.5986160881349,5.8802137434139858,5.3333333333333304,320,"Admissible"]
[649,14.068570282420245,"072-0-002","Fortress Specialty Cellulose INC",-17.5986160881349,0,0,0,"Non admissible"]
[651,24.753010918820067,"072-0-002","Fortress Specialty Cellulose INC",-17.5986160881349,7.1543948306851668,{"$f":"H775/$B$868","v":5},300,"Admissible","Plafond $/m³ = Plafond/60"]
[652,31.991710030051177,"042-0-001","Compagnie RockTenn du Canada INC",-17.5986160881349,14.393093941916277,5.3333333333333304,320,"Admissible"]
[653,27.625922493822607,"042-0-001","Compagnie RockTenn du Canada INC",-17.5986160881349,10.027306405687707,5.3333333333333304,320,"Admissible"]
[654,30.830892433431796,"042-0-001","Compagnie RockTenn du Canada INC",-17.5986160881349,13.232276345296896,5.3333333333333304,320,"Admissible"]
[656,28.537810206377973,"042-0-001","Compagnie RockTenn du Canada INC",-17.5986160881349,10.939194118243073,5.3333333333333304,320,"Admissible"]
[657,28.940805522872868,"042-0-001","Compagnie RockTenn du Canada INC",-17.5986160881349,11.342189434737968,5.3333333333333304,320,"Admissible"]
[658,34.957398163900947,"042-0-001","Compagnie RockTenn du Canada INC",-17.5986160881349,17.358782075766047,5.3333333333333304,320,"Admissible"]
[659,38.132914945427856,"042-0-001","Compagnie RockTenn du Canada INC",-17.5986160881349,20.534298857292956,5.3333333333333304,320,"Admissible"]
[660,29.241441757358299,"072-0-002","Fortress Specialty Cellulose INC",-17.5986160881349,11.642825669223399,5.3333333333333304,320,"Admissible"]
[661,22.623630998608299,"072-0-002","Fortress Specialty Cellulose INC",-17.5986160881349,5.0250149104733985,{"$f":"H784/$B$868","v":5},300,"Admissible"]
[662,16.223963899241653,"072-0-002","Fortress Specialty Cellulose INC",-17.5986160881349,0,0,0,"Non admissible"]
[750,9.9384229585248711,"072-0-002","Fortress Specialty Cellulose INC",-17.5986160881349,0,0,0,"Non admissible"]
[751,22.112239810113348,"072-0-002","Fortress Specialty Cellulose INC",-17.5986160881349,4.5136237219784476,{"$f":"H787/$B$868","v":4.666666666666667},280,"Admissible"]
[752,28.250098864976934,"072-0-002","Fortress Specialty Cellulose INC",-17.5986160881349,10.651482776842034,5.3333333333333304,320,"Admissible"]
[753,37.240479952045149,"081-0-001","Tembec",-17.5986160881349,19.641863863910249,5.3333333333333304,320,"Admissible"]
[754,29.436112588781992,"072-0-002","Fortress Specialty Cellulose INC",-17.5986160881349,11.837496500647092,5.3333333333333304,320,"Admissible"]
[755,24.264040127933065,"072-0-002","Fortress Specialty Cellulose INC",-17.5986160881349,6.6654240397981646,5.3333333333333304,320,"Admissible"]
[756,38.035760815763034,"081-0-001","Tembec",-17.5986160881349,20.437144727628134,5.3333333333333304,320,"Admissible"]
[757,37.29037110373239,"081-0-001","Tembec",-17.5986160881349,19.69175501559749,5.3333333333333304,320,"Admissible"]
[758,47.419231400558147,"042-0-001","Compagnie RockTenn du Canada INC",-17.5986160881349,29.820615312423246,5.3333333333333304,320,"Admissible"]
[850,16.378891790836711,"081-0-001","Tembec",-17.5986160881349,0,0,0,"Non admissible"]
[851,15.415415893829287,"081-0-001","Tembec",-17.5986160881349,0,0,0,"Non admissible"]
[852,16.849846754090585,"081-0-001","Tembec",-17.5986160881349,0,0,0,"Non admissible"]
[853,20.691920731355143,"081-0-001","Tembec",-17.5986160881349,3.0933046432202431,{"$f":"H798/$B$868","v":3},180,"Admissible"]
[854,13.16295002829907,"081-0-001","Tembec",-17.5986160881349,0,0,0,"Non admissible"]
[855,14.513123253835506,"081-0-001","Tembec",-17.5986160881349,0,0,0,"Non admissible"]
[856,20.86758099930077,"081-0-001","Tembec",-17.5986160881349,3.2689649111658703,{"$f":"H801/$B$868","v":3.3333333333333335},200,"Admissible"]
[857,23.031835343705161,"081-0-001","Tembec",-17.5986160881349,5.4332192555702612,5.3333333333333304,320,"Admissible"]
[858,23.780636146753043,"081-0-001","Tembec",-17.5986160881349,6.1820200586181429,5.3333333333333304,320,"Admissible"]
[859,29.094000735360922,"081-0-001","Tembec",-17.5986160881349,11.495384647226022,5.3333333333333304,320,"Admissible"]
[860,38.028193583848235,"081-0-001","Tembec",-17.5986160881349,20.429577495713335,5.3333333333333304,320,{"$f":"IF(F805=0,\"Non admissible\",\"Admissible\")","v":"Admissible"}]
[861,34.4275129514402,"081-0-001","Tembec",-17.5986160881349,16.8288968633053,5.3333333333333304,320,"Admissible"]
[862,47.002787505702784,"072-0-002","Fortress Specialty Cellulose INC",-17.5986160881349,29.404171417567884,5.3333333333333304,320,"Admissible"]
[863,42.774676153064895,"042-0-001","Compagnie RockTenn du Canada INC",-17.5986160881349,25.176060064929995,5.3333333333333304,320,"Admissible"]
[864,49.518918210173702,"081-0-001","Tembec",-17.5986160881349,31.920302122038802,5.3333333333333304,320,"Admissible"]
[865,48.24128177036971,"042-0-001","Compagnie RockTenn du Canada INC",-17.5986160881349,30.64266568223481,5.3333333333333304,320,"Admissible"]
[866,45.673718009923334,"081-0-001","Tembec",-17.5986160881349,28.075101921788434,5.3333333333333304,320,"Admissible"]
[867,50.797243635338482,"042-0-001","Compagnie RockTenn du Canada INC",-17.5986160881349,33.198627547203586,5.3333333333333304,320,"Admissible"]
[868,55.270598360204168,"042-0-001","Compagnie RockTenn du Canada INC",-17.5986160881349,37.671982272069272,5.3333333333333304,320,"Admissible"]
[869,55.352961893379977,"042-0-001","Compagnie RockTenn du Canada INC",-17.5986160881349,37.75434580524508,5.3333333333333304,320,"Admissible"]
[870,58.183855261873077,"042-0-001","Compagnie RockTenn du Canada INC",-17.5986160881349,40.585239173738174,5.3333333333333304,320,"Admissible"]
[871,58.715619163289716,"081-0-001","Tembec",-17.5986160881349,41.117003075154813,5.3333333333333304,320,"Admissible"]
[872,55.267424567239807,"081-0-001","Tembec",-17.5986160881349,37.668808479104911,5.3333333333333304,320,"Admissible"]
[873,57.127536602703998,"081-0-001","Tembec",-17.5986160881349,39.528920514569094,5.3333333333333304,320,"Admissible"]
[874,58.624493247029591,"081-0-001","Tembec",-17.5986160881349,41.025877158894687,5.3333333333333304,320,"Admissible"]
[875,57.347724587974383,"042-0-001","Compagnie RockTenn du Canada INC",-17.5986160881349,39.74910849983948,5.3333333333333304,320,"Admissible"]
[876,65.219654747811632,"042-0-001","Compagnie RockTenn du Canada INC",-17.5986160881349,47.621038659676728,5.3333333333333304,320,"Admissible"]
[877,62.741506027972342,"081-0-001","Tembec",-17.5986160881349,45.142889939837445,5.3333333333333304,320,"Admissible"]
[878,66.729258778691914,"081-0-001","Tembec",-17.5986160881349,49.130642690557011,5.3333333333333304,320,"Admissible"]
[879,71.101759669270649,"042-0-001","Compagnie RockTenn du Canada INC",-17.5986160881349,53.503143581135745,5.3333333333333304,320,"Admissible"]
[880,73.208069945634335,"081-0-001","Tembec",-17.5986160881349,55.609453857499432,5.3333333333333304,320,"Admissible"]
[881,60.070632491372443,"081-0-001","Tembec",-17.5986160881349,42.472016403237546,5.3333333333333304,320,"Admissible"]
[882,55.365764999284259,"081-0-001","Tembec",-17.5986160881349,37.767148911149363,5.3333333333333304,320,"Admissible"]
[883,58.925377250927561,"081-0-001","Tembec",-17.5986160881349,41.326761162792664,5.3333333333333304,320,"Admissible"]
[884,66.12214935113424,"081-0-001","Tembec",-17.5986160881349,48.523533262999337,5.3333333333333304,320,"Admissible"]
[885,67.882351071654341,"081-0-001","Tembec",-17.5986160881349,50.283734983519437,5.3333333333333304,320,"Admissible"]
[886,47.297995846873839,"081-0-001","Tembec",-17.5986160881349,29.699379758738939,5.3333333333333304,320,"Admissible"]
[887,47.801960966926337,"081-0-001","Tembec",-17.5986160881349,30.203344878791437,5.3333333333333304,320,"Admissible"]
[888,38.231372681070859,"081-0-001","Tembec",-17.5986160881349,20.632756592935959,5.3333333333333304,320,"Admissible"]
[889,36.444152244944256,"081-0-001","Tembec",-17.5986160881349,18.845536156809356,5.3333333333333304,320,"Admissible"]
[890,38.65519098052706,"081-0-001","Tembec",-17.5986160881349,21.05657489239216,5.3333333333333304,320,"Admissible"]
[891,45.094020304582315,"081-0-001","Tembec",-17.5986160881349,27.495404216447415,5.3333333333333304,320,"Admissible"]
[892,55.563717378453298,"081-0-001","Tembec",-17.5986160881349,37.965101290318401,5.3333333333333304,320,"Admissible"]
[931,91.235533722379031,"042-0-001","Compagnie RockTenn du Canada INC",-17.5986160881349,73.636917634244128,5.3333333333333304,320,"Admissible"]
[932,77.854115417336232,"042-0-001","Compagnie RockTenn du Canada INC",-17.5986160881349,60.255499329201328,5.3333333333333304,320,"Admissible"]
[933,84.066017956393878,"042-0-001","Compagnie RockTenn du Canada INC",-17.5986160881349,66.467401868258975,5.3333333333333304,320,"Admissible"]
[934,47.212923766319861,"042-0-001","Compagnie RockTenn du Canada INC",-17.5986160881349,29.614307678184961,5.3333333333333304,320,"Admissible"]
[935,37.281734522969856,"042-0-001","Compagnie RockTenn du Canada INC",-17.5986160881349,19.683118434834956,5.3333333333333304,320,"Admissible"]
[951,41.415320427938866,"042-0-001","Compagnie RockTenn du Canada INC",-17.5986160881349,23.816704339803966,5.3333333333333304,320,"Admissible"]
[952,49.656609516945444,"042-0-001","Compagnie RockTenn du Canada INC",-17.5986160881349,32.057993428810548,5.3333333333333304,320,"Admissible"]
[953,53.083193816135932,"042-0-001","Compagnie RockTenn du Canada INC",-17.5986160881349,35.484577728001028,5.3333333333333304,320,"Admissible"]
[954,51.266085583514773,"042-0-001","Compagnie RockTenn du Canada INC",-17.5986160881349,33.667469495379876,5.3333333333333304,320,"Admissible"]
[955,61.949595438462239,"042-0-001","Compagnie RockTenn du Canada INC",-17.5986160881349,44.350979350327336,5.3333333333333304,320,"Admissible"]
[956,64.065411015841704,"042-0-001","Compagnie RockTenn du Canada INC",-17.5986160881349,46.4667949277068,5.3333333333333304,320,"Admissible"]
[957,52.250468781486333,"042-0-001","Compagnie RockTenn du Canada INC",-17.5986160881349,34.651852693351429,5.3333333333333304,320,"Admissible"]
[960,58.790893627475086,"042-0-001","Compagnie RockTenn du Canada INC",-17.5986160881349,41.192277539340182,5.3333333333333304,320,"Admissible"]
[961,63.883302963831014,"042-0-001","Compagnie RockTenn du Canada INC",-17.5986160881349,46.28468687569611,5.3333333333333304,320,"Admissible"]
[962,71.816062267413329,"042-0-001","Compagnie RockTenn du Canada INC",-17.5986160881349,54.217446179278426,5.3333333333333304,320,"Admissible"]
[963,76.857738203562562,"042-0-001","Compagnie RockTenn du Canada INC",-17.5986160881349,59.259122115427658,5.3333333333333304,320,"Admissible"]
[964,81.660271204828746,"042-0-001","Compagnie RockTenn du Canada INC",-17.5986160881349,64.061655116693842,5.3333333333333304,320,"Admissible"]
[965,74.262936270306582,"042-0-001","Compagnie RockTenn du Canada INC",-17.5986160881349,56.664320182171679,5.3333333333333304,320,"Admissible"]
[966,72.770633512177525,"042-0-001","Compagnie RockTenn du Canada INC",-17.5986160881349,55.172017424042622,5.3333333333333304,320,"Admissible"]
[967,67.777958152703675,"042-0-001","Compagnie RockTenn du Canada INC",-17.5986160881349,50.179342064568772,5.3333333333333304,320,"Admissible"]
[970,90.926570184161804,"042-0-001","Compagnie RockTenn du Canada INC",-17.5986160881349,73.3279540960269,5.3333333333333304,320,"Admissible"]
[980,70.380910209535969,"042-0-001","Compagnie RockTenn du Canada INC",-17.5986160881349,52.782294121401065,5.3333333333333304,320,"Admissible"]
[984,83.540415030746416,"042-0-001","Compagnie RockTenn du Canada INC",-17.5986160881349,65.941798942611513,5.3333333333333304,320,"Admissible"]
[985,94.080028900497751,"042-0-001","Compagnie RockTenn du Canada INC",-17.5986160881349,76.481412812362848,5.3333333333333304,320,"Admissible"]
[986,94.10011989581588,"042-0-001","Compagnie RockTenn du Canada INC",-17.5986160881349,76.501503807680976,5.3333333333333304,320,"Admissible"]
[987,77.503739059803749,"042-0-001","Compagnie RockTenn du Canada INC",-17.5986160881349,59.905122971668845,5.3333333333333304,320,"Admissible"]
[990,93.373092177116177,"042-0-001","Compagnie RockTenn du Canada INC",-17.5986160881349,75.774476088981274,5.3333333333333304,320,"Admissible"]
[]
["Seuil « Transport pâtes »"]
["Minimum FD trituration",30]
["Maximum FD trituration (équation)",60]
["Multiple pour le maximum FD trituration (équation)",20]
["Plafond (équation)",320]
[]
["Équation Aide",{"$f":"\"Aide = \"&B873&\" * \"&B875&\" - \"&B874","v":"Aide = 0,0207 * Distance « Aller simple » - 2,333"}]
["Constante 1",2.07E-2]
["Constante 2",2.3330000000000002]
["Variable","Distance « Aller simple »"]
["Stopper aide m³ vers plafond multiple de 20$",5.333333333333333]
[]
["Contexte"]
["Planification"]
["BGAD"]
["Ministère"]
["Inscrire une valeur"]
[]
["Question_2 (Plancher d'investissement)"]
["Oui"]
["Non"]
["Sans objet"]
[]
[]
["Onglet «Martelage»"]
[]
["Traitement unique","Taux","Unité"]
["Martelage","Variable","$/ha"]
["Martelage négatif - EC (résineux ou mixte résineux)",{"$f":"'Calculs grille'!$K$9","v":203},"$/ha"]
["Martelage positif - EC (résineux ou mixte résineux)",{"$f":"'Calculs grille'!$K$10","v":106},"$/ha"]
["Inscrire une valeur",0,"-"]
[]
["Type de coupe","Facteur"]
["CRS",0.64200000000000002]
["CPI",1]
["CPR",1]
["CJ",1]
["EC feuillus et pins",1]
[]
["H3"]
["AVEC hébergement (inscrire un taux)",0]
["AVEC hébergement (taux maximum)",9.0999999999999998E-2]
["SANS hébergement",0]
[]
["D200"]
["Distance de 0 à 199 kilomètres",0]
["Distance de 200 kilomètres et plus",5.8000000000000003E-2]
[]
["Délimitation des secteurs"]
[0]
[{"$f":"'Calculs grille'!$K$3","v":84}]
[]
["Taux vérification"]
[0]
[{"$f":"'Calculs grille'!$K$11","v":26}]
[]
["Codes_DICA"]
["MART"]
[]
["Codes_RATF"]
["INVAPM"]
["MARTGE"]
["MECON"]
["MECOP"]
[]
["Rexforêt"]
["Vérification INCLUS"]
["Vérification EXCLUS"]
["Inscrire une valeur"]

{"sheet":"Majorations applicables","index":12,"n_rows":53,"n_cols":7,"rows_kept":53,"cut":false,"hidden":true,"merged":[]}
["Formule","M1","M2","M3","M4","M5","Total"]
["Formule 1 - EC1","PE2","MAN","RUB1","H1",null,{"$f":"B2&\" - \"&C2&\" - \"&D2&\" - \"&E2","v":"PE2 - MAN - RUB1 - H1"}]
["Formule 1 - EC2","PE2","RUB1","H1",null,null,{"$f":"B3&\" - \"&C3&\" - \"&D3","v":"PE2 - RUB1 - H1"}]
["Formule 2","PE2","RUB1","H1",null,null,{"$f":"B4&\" - \"&C4&\" - \"&D4","v":"PE2 - RUB1 - H1"}]
["Formule 4","EMR1","BNT1","PE2","RUB1","H1",{"$f":"B5&\" - \"&C5&\" - \"&D5&\" - \"&E5&\" - \"&F5","v":"EMR1 - BNT1 - PE2 - RUB1 - H1"}]
["Formule 6","EMR1","BNT1","PE2","H1",null,{"$f":"B6&\" - \"&C6&\" - \"&D6&\" - \"&E6","v":"EMR1 - BNT1 - PE2 - H1"}]
["Formule 7","EMR1","BNT1","PE2","RUB1","H1",{"$f":"B7&\" - \"&C7&\" - \"&D7&\" - \"&E7&\" - \"&F7","v":"EMR1 - BNT1 - PE2 - RUB1 - H1"}]
["Inscrire une valeur",null,null,null,null,null,"Inscrire une valeur à la cellule I13"]
[]
["PE2"]
["Pente A",{"$f":"(0+1)","v":1}]
["Pente B",{"$f":"(0+1)","v":1}]
["Pente C",{"$f":"(1+0.007)","v":1.0069999999999999}]
["Pente D",{"$f":"(1+0.026)","v":1.026}]
["Pente E et plus",{"$f":"(1+0.061)","v":1.0609999999999999}]
[]
["BNT1 2019-2020"]
["Formule","BNT1 = (1,8 x Pr2) - (2,7 x Pr) + 1"]
["C1",1.8]
["C2",2]
["C3",2.7]
["C4",1]
[]
["Pr 2019-2020"]
[" Pr (%)  = LP x 2 / (LP x 2 + SE + ZNT)"]
[]
["RUB1"]
["Formule",{"$f":"$B$29&\" * ESP EXP \"&$B$30","v":"1209 * ESP EXP -1"}]
["C1",1209,"[Grilles TSNC  2019-2020.xlsx]Feuille de calcul'!$AE$100"]
["C2",-1]
[]
["PCT Investissement"]
[0.9]
[]
["Volet I (Transport)"]
["Formule","(2,03 * Distance) - 472"]
["C1",2.0299999999999998]
["C2",472]
[]
["Volet II"]
["Bois transporté en longueur",49]
["Mesurage  optimisé",79]
[]
["Plancher d'investissement"]
["Travaux techniques",40]
[]
["Traitement","Équation_texte","Équation_référencée"]
["Martelage","Taux ($/ha) = (159,90 - (39,56 * PF) + (4,54 * NbMSCROP)) * TC",{"$f":"\"Taux ($/ha) = (\"&TEXT('Calculs grille'!$K$6,\"0,00\")&\" - (\"&TEXT('Calculs grille'!$K$7,\"0,00\")&\" * PF) + (\"&TEXT('Calculs grille'!$K$8,\"0,00\")&\" * NbMSCROP)) * TC\"","v":"Taux ($/ha) = (159,90 - (39,56 * PF) + (4,54 * NbMSCROP)) * TC"}]
[]
["Majorations applicables"]
["Martelage","Martelage","H3","D200"]
["Martelage","Martelage positif - EC (résineux ou mixte résineux)","H3","D200"]
["Martelage","Martelage négatif - EC (résineux ou mixte résineux)","H3","D200"]

{"sheet":"RXF","index":13,"n_rows":4,"n_cols":7,"rows_kept":4,"cut":false,"hidden":true,"merged":[]}
["Traitement","Onglet","Taux total","Taux sans vérification","Grand total","Vérification","Grand total sans vérification"]
[{"$f":"Menus!A893","v":"Martelage"},"Martelage",{"$f":"Martelage!$G$47","v":0},{"$f":"Martelage!$G$44","v":0},{"$f":"Martelage!$G$51","v":0},{"$f":"Martelage!$G$50","v":0},{"$f":"E2-F2","v":0}]
[{"$f":"Menus!A894","v":"Martelage négatif - EC (résineux ou mixte résineux)"},"Martelage",{"$f":"Martelage!$G$59","v":0},{"$f":"Martelage!$G$56","v":0},{"$f":"Martelage!$G$63","v":0},{"$f":"Martelage!$G$62","v":0},{"$f":"E3-F3","v":0}]
[{"$f":"Menus!A895","v":"Martelage positif - EC (résineux ou mixte résineux)"},"Martelage",{"$f":"Martelage!$G$59","v":0},{"$f":"Martelage!$G$56","v":0},{"$f":"Martelage!$G$63","v":0},{"$f":"Martelage!$G$62","v":0},0]

{"sheet":"Log","index":14,"n_rows":2,"n_cols":4,"rows_kept":2,"cut":false,"hidden":true,"merged":[]}
["Utilisateur","Date","OS","Excel"]
["Pouliot, Simon (BMMB)","2020-01-07T08:27:02","Windows (32-bit) NT 6.01","15.0"]